Payment Date,Transaction Number,Net Amount,Supplier (Beneficiary) Name,Local Supplier Internal Reference,Directorate / Service Where Expenditure Incurred,Service Category Label,Service Category URI,SeRCOP Expenditure Category,SeRCOP Expenditure Code,Purpose of Spend,SeRCOP Detailed Expenditure Code,Capital/Revenue,Procurement Classification
26-NOV-2021,309,-352,CREDIT ADJUSTMENT,382385,"Health, Education, Care and Safeguarding",Children's & Education Services,103,Third Party Payments,505,Private Contractors,5042,Revenue,NON INFLUENCIBLE.NON INFLUENCIBLE
26-NOV-2021,310,-250,DREAMS LTD,401526,"Health, Education, Care and Safeguarding",Children's & Education Services,103,Third Party Payments,505,Other Establishments,5041,Revenue,FURNITURE.DOMESTIC
26-NOV-2021,311,-390,EB  OFFSHORE WIND NORTH,399075,Regeneration & Economic Development,Planning Services ,110,Supplies and Services,504,"Printing, Stationery and General Office Expenses",5026,Revenue,NON INFLUENCIBLE.INDIVIDUAL
26-NOV-2021,7012430,33.33,THE CONAIR GROUP,402247,"Health, Education, Care and Safeguarding",Children's & Education Services,103,Supplies and Services,504,"Clothing, Uniforms and Laundry",5025,Revenue,NON INFLUENCIBLE.NON INFLUENCIBLE
26-NOV-2021,7012431,16.8,GYMCATCH LIMITED,402246,"Environment, Housing & Leisure",Cultural & Related Services,104,Supplies and Services,504,Equipment,5023,Revenue,NON INFLUENCIBLE.NON INFLUENCIBLE
26-NOV-2021,7012432,166.67,WESTLYNNE HOTEL,402245,"Health, Education, Care and Safeguarding",Children's & Education Services,103,Supplies and Services,504,Expenses,5030,Revenue,HUMAN RESOURCES.ACCOMMODATION
26-NOV-2021,7012433,20.22,STRESS FREE PRINT,402244,"Health, Education, Care and Safeguarding",Children's & Education Services,103,Supplies and Services,504,"Printing, Stationery and General Office Expenses",5026,Revenue,NON INFLUENCIBLE.INDIVIDUAL
26-NOV-2021,7012434,0.01,TOASTD,402243,"Health, Education, Care and Safeguarding",Children's & Education Services,103,Supplies and Services,504,Miscellaneous Expenses,5034,Revenue,NON INFLUENCIBLE.NON INFLUENCIBLE
26-NOV-2021,7012434,19.12,TOASTD,402243,"Health, Education, Care and Safeguarding",Children's & Education Services,103,Supplies and Services,504,Miscellaneous Expenses,5034,Revenue,NON INFLUENCIBLE.NON INFLUENCIBLE
26-NOV-2021,7012435,2.5,OUSEBURN COFFEE,402242,"Health, Education, Care and Safeguarding",Children's & Education Services,103,Third Party Payments,505,Other Establishments,5041,Revenue,NON INFLUENCIBLE.NON INFLUENCIBLE
26-NOV-2021,7012436,10,BLACKHAWK NETWORK,402241,"Health, Education, Care and Safeguarding",Children's & Education Services,103,Third Party Payments,505,Other Establishments,5041,Revenue,NON INFLUENCIBLE.NON INFLUENCIBLE
26-NOV-2021,7012437,5.58,ARTISAN COFFEE,402240,"Health, Education, Care and Safeguarding",Children's & Education Services,103,Third Party Payments,505,Other Establishments,5041,Revenue,CATERING.FOOD & BEVERAGES
26-NOV-2021,7012438,13.33,BOLT EU,402239,"Health, Education, Care and Safeguarding",Children's & Education Services,103,Third Party Payments,505,Other Establishments,5041,Revenue,NON INFLUENCIBLE.NON INFLUENCIBLE
26-NOV-2021,7012439,-23.99,EMP MAIL ORDER,402238,"Health, Education, Care and Safeguarding",Children's & Education Services,103,Supplies and Services,504,"Clothing, Uniforms and Laundry",5025,Revenue,
26-NOV-2021,7012439,23.32,EMP MAIL ORDER,402238,"Health, Education, Care and Safeguarding",Children's & Education Services,103,Supplies and Services,504,"Clothing, Uniforms and Laundry",5025,Revenue,
26-NOV-2021,7012440,118.08,CANMAC,402237,"Environment, Housing & Leisure",Environmental & Regulatory Services,105,Supplies and Services,504,Equipment,5023,Revenue,NON INFLUENCIBLE.INDIVIDUAL
26-NOV-2021,7012441,25.8,BUY BACK DROP,402236,"Environment, Housing & Leisure",Environmental & Regulatory Services,105,Supplies and Services,504,Equipment,5023,Revenue,NON INFLUENCIBLE.NON INFLUENCIBLE
26-NOV-2021,7012442,47.91,EVAN LEISURE,402235,"Environment, Housing & Leisure",Environmental & Regulatory Services,105,Supplies and Services,504,Equipment,5023,Revenue,NON INFLUENCIBLE.NON INFLUENCIBLE
26-NOV-2021,7012443,50.69,BULK SUPERMARKET,402234,"Environment, Housing & Leisure",Environmental & Regulatory Services,105,Supplies and Services,504,Equipment,5023,Revenue,NON INFLUENCIBLE.NON INFLUENCIBLE
26-NOV-2021,7012444,14.29,BOOST POWER,402233,"Health, Education, Care and Safeguarding",Children's & Education Services,103,Third Party Payments,505,Other Establishments,5041,Revenue,NON INFLUENCIBLE.NON INFLUENCIBLE
26-NOV-2021,7012445,146.2,TREND MACHINERY,402232,Housing Property and Construction,Housing Services,108,Supplies and Services,504,Equipment,5023,Revenue,NON INFLUENCIBLE.INDIVIDUAL
26-NOV-2021,7012446,62.6,PRO CATERING EQUIPMENT,402231,Commissioning & Asset Management,Children's & Education Services,103,Supplies and Services,504,Equipment,5023,Revenue,CATERING.BANQUET & CATERING
26-NOV-2021,7012446,189,PRO CATERING EQUIPMENT,402231,Commissioning & Asset Management,Children's & Education Services,103,Supplies and Services,504,Equipment,5023,Revenue,CATERING.BANQUET & CATERING
26-NOV-2021,7012446,387.5,PRO CATERING EQUIPMENT,402231,Commissioning & Asset Management,Children's & Education Services,103,Supplies and Services,504,Equipment,5023,Revenue,CATERING.BANQUET & CATERING
26-NOV-2021,7012447,0.01,JELLY COMB UK,402230,"Health, Education, Care and Safeguarding",Adult Social Care,101,Supplies and Services,504,Equipment,5023,Revenue,NON INFLUENCIBLE.NON INFLUENCIBLE
26-NOV-2021,7012447,18.32,JELLY COMB UK,402230,"Health, Education, Care and Safeguarding",Adult Social Care,101,Supplies and Services,504,Equipment,5023,Revenue,NON INFLUENCIBLE.NON INFLUENCIBLE
26-NOV-2021,7012448,10,VIMEO PLUS,395248,"Health, Education, Care and Safeguarding",Children's & Education Services,103,Supplies and Services,504,Communications & Computing,5028,Revenue,ICT.SOFTWARE
26-NOV-2021,7012449,636.38,HOTEL ONBOOKING.COM,395243,"Health, Education, Care and Safeguarding",Adult Social Care,101,Supplies and Services,504,"Printing, Stationery and General Office Expenses",5026,Revenue,HUMAN RESOURCES.ACCOMMODATION
26-NOV-2021,7012450,7.99,UNLIMITED WEBHOSTING,394828,"Health, Education, Care and Safeguarding",Children's & Education Services,103,Supplies and Services,504,Miscellaneous Expenses,5034,Revenue,ICT.WEBSITE DEVELOPMENT
26-NOV-2021,7012451,116.64,MOJO HELPDESK,394317,"Health, Education, Care and Safeguarding",Children's & Education Services,103,Supplies and Services,504,Communications & Computing,5028,Revenue,ICT.SOFTWARE
26-NOV-2021,7012451,118.98,MOJO HELPDESK,394317,"Health, Education, Care and Safeguarding",Children's & Education Services,103,Supplies and Services,504,Communications & Computing,5028,Revenue,ICT.SOFTWARE
26-NOV-2021,7012452,0.01,W BOYES & CO LTD,393691,"Health, Education, Care and Safeguarding",Children's & Education Services,103,Supplies and Services,504,Equipment,5023,Revenue,CLEANING & JANITORIAL.EQUIPMENT
26-NOV-2021,7012452,2.62,W BOYES & CO LTD,393691,"Health, Education, Care and Safeguarding",Children's & Education Services,103,Supplies and Services,504,Equipment,5023,Revenue,CLEANING & JANITORIAL.EQUIPMENT
26-NOV-2021,7012453,5.67,TOOLSTATION LTD,393689,"Environment, Housing & Leisure",Cultural & Related Services,104,Supplies and Services,504,Equipment,5023,Revenue,HORTICULTURAL.TOOLS & EQUIPMENT
26-NOV-2021,7012453,44.84,TOOLSTATION LTD,393689,Central Items,Planning Services ,110,Third Party Payments,505,Private Contractors,5042,Revenue,HORTICULTURAL.TOOLS & EQUIPMENT
26-NOV-2021,7012453,57.1,TOOLSTATION LTD,393689,"Environment, Housing & Leisure",Cultural & Related Services,104,Supplies and Services,504,Equipment,5023,Revenue,HORTICULTURAL.TOOLS & EQUIPMENT
26-NOV-2021,7012454,15,MOORPARK CONVENIENCE,393460,Housing Operations,Housing Revenue Account,N/A,Premises-Related Expenditure,502,Energy Costs,5006,Revenue,CATERING.FOOD & BEVERAGES
26-NOV-2021,7012454,35,MOORPARK CONVENIENCE,393460,Housing Operations,Housing Revenue Account,N/A,Premises-Related Expenditure,502,Energy Costs,5006,Revenue,CATERING.FOOD & BEVERAGES
26-NOV-2021,7012455,48,TAHDAH VERIFIED,393356,Resources,Children's & Education Services,103,Employees,501,Indirect Employee Expenses,5002,Revenue,ICT.SOFTWARE
26-NOV-2021,7012455,61.5,TAHDAH VERIFIED,393356,Resources,Children's & Education Services,103,Employees,501,Indirect Employee Expenses,5002,Revenue,ICT.SOFTWARE
26-NOV-2021,7012455,456,TAHDAH VERIFIED,393356,"Environment, Housing & Leisure",Cultural & Related Services,104,Supplies and Services,504,Equipment,5023,Revenue,ICT.SOFTWARE
26-NOV-2021,7012456,48.1,CAPITA RECRUITMENT VET,393348,"Health, Education, Care and Safeguarding",Children's & Education Services,103,Supplies and Services,504,Miscellaneous Expenses,5034,Revenue,HUMAN RESOURCES.RECRUITMENT & ASSESSMENT
26-NOV-2021,7012457,0.01,FACEBOOK,393228,"Environment, Housing & Leisure",Cultural & Related Services,104,Supplies and Services,504,"Printing, Stationery and General Office Expenses",5026,Revenue,ADVERTISING & MARKETING.ADVERTISING
26-NOV-2021,7012457,0.01,FACEBOOK,393228,"Environment, Housing & Leisure",Environmental & Regulatory Services,105,Third Party Payments,505,Private Contractors,5042,Revenue,ADVERTISING & MARKETING.ADVERTISING
26-NOV-2021,7012457,9,FACEBOOK,393228,"Environment, Housing & Leisure",Environmental & Regulatory Services,105,Third Party Payments,505,Private Contractors,5042,Revenue,ADVERTISING & MARKETING.ADVERTISING
26-NOV-2021,7012457,13.06,FACEBOOK,393228,"Health, Education, Care and Safeguarding",Children's & Education Services,103,Supplies and Services,504,Equipment,5023,Revenue,ADVERTISING & MARKETING.ADVERTISING
26-NOV-2021,7012457,14.99,FACEBOOK,393228,"Environment, Housing & Leisure",Environmental & Regulatory Services,105,Third Party Payments,505,Private Contractors,5042,Revenue,ADVERTISING & MARKETING.ADVERTISING
26-NOV-2021,7012457,25,FACEBOOK,393228,"Health, Education, Care and Safeguarding",Children's & Education Services,103,Supplies and Services,504,Equipment,5023,Revenue,ADVERTISING & MARKETING.ADVERTISING
26-NOV-2021,7012457,25,FACEBOOK,393228,"Health, Education, Care and Safeguarding",Children's & Education Services,103,Supplies and Services,504,Equipment,5023,Revenue,ADVERTISING & MARKETING.ADVERTISING
26-NOV-2021,7012457,30.58,FACEBOOK,393228,"Environment, Housing & Leisure",Cultural & Related Services,104,Supplies and Services,504,"Printing, Stationery and General Office Expenses",5026,Revenue,ADVERTISING & MARKETING.ADVERTISING
26-NOV-2021,7012458,130.83,BARENBRUG UK LIMITED,357164,"Environment, Housing & Leisure",Cultural & Related Services,104,Supplies and Services,504,Equipment,5023,Revenue,HORTICULTURAL.LANDSCAPING
26-NOV-2021,7012459,14.29,BRITISH GAS BUSINESS,361360,"Health, Education, Care and Safeguarding",Children's & Education Services,103,Third Party Payments,505,Other Establishments,5041,Revenue,GAS.GAS
26-NOV-2021,7012459,40,BRITISH GAS BUSINESS,361360,Housing Property and Construction,Housing Services,108,Supplies and Services,504,Miscellaneous Expenses,5034,Revenue,GAS.GAS
26-NOV-2021,7012459,40,BRITISH GAS BUSINESS,361360,Housing Property and Construction,Housing Services,108,Supplies and Services,504,Miscellaneous Expenses,5034,Revenue,GAS.GAS
26-NOV-2021,7012459,40,BRITISH GAS BUSINESS,361360,Housing Property and Construction,Housing Services,108,Supplies and Services,504,Miscellaneous Expenses,5034,Revenue,GAS.GAS
26-NOV-2021,7012459,40,BRITISH GAS BUSINESS,361360,Housing Property and Construction,Housing Services,108,Supplies and Services,504,Miscellaneous Expenses,5034,Revenue,GAS.GAS
26-NOV-2021,7012459,70,BRITISH GAS BUSINESS,361360,Housing Operations,Housing Revenue Account,N/A,Premises-Related Expenditure,502,Energy Costs,5006,Revenue,GAS.GAS
26-NOV-2021,7012459,70,BRITISH GAS BUSINESS,361360,Housing Operations,Housing Revenue Account,N/A,Premises-Related Expenditure,502,Energy Costs,5006,Revenue,GAS.GAS
26-NOV-2021,7012459,82.5,BRITISH GAS BUSINESS,361360,"Environment, Housing & Leisure",Housing Services,108,Supplies and Services,504,Miscellaneous Expenses,5034,Revenue,GAS.GAS
26-NOV-2021,7012459,82.5,BRITISH GAS BUSINESS,361360,"Environment, Housing & Leisure",Housing Services,108,Supplies and Services,504,Miscellaneous Expenses,5034,Revenue,GAS.GAS
26-NOV-2021,7012459,82.5,BRITISH GAS BUSINESS,361360,"Environment, Housing & Leisure",Housing Services,108,Supplies and Services,504,Miscellaneous Expenses,5034,Revenue,GAS.GAS
26-NOV-2021,7012459,89.58,BRITISH GAS BUSINESS,361360,Housing Operations,Housing Revenue Account,N/A,Premises-Related Expenditure,502,Energy Costs,5006,Revenue,GAS.GAS
26-NOV-2021,7012459,150.17,BRITISH GAS BUSINESS,361360,Housing Operations,Housing Revenue Account,N/A,Premises-Related Expenditure,502,Energy Costs,5006,Revenue,GAS.GAS
26-NOV-2021,7012459,390.53,BRITISH GAS BUSINESS,361360,Housing Operations,Housing Revenue Account,N/A,Premises-Related Expenditure,502,Energy Costs,5006,Revenue,GAS.GAS
26-NOV-2021,7012459,604.88,BRITISH GAS BUSINESS,361360,Housing Operations,Housing Revenue Account,N/A,Premises-Related Expenditure,502,Energy Costs,5006,Revenue,GAS.GAS
26-NOV-2021,7012460,1.5,.GOV.UK,392443,"Health, Education, Care and Safeguarding",Adult Social Care,101,Third Party Payments,505,Government Departments,5039,Revenue,LEGAL.GENERAL SUPPORT
26-NOV-2021,7012460,1.5,.GOV.UK,392443,"Health, Education, Care and Safeguarding",Adult Social Care,101,Third Party Payments,505,Government Departments,5039,Revenue,LEGAL.GENERAL SUPPORT
26-NOV-2021,7012461,60,BERA,379552,"Health, Education, Care and Safeguarding",Children's & Education Services,103,Supplies and Services,504,Grants and Subscriptions,5031,Revenue,SUBSCRIPTIONS & PUBLICATIONS.MEMBERSHIPS
26-NOV-2021,7012462,0.01,PARTY DELIGHTS LTD,392203,"Health, Education, Care and Safeguarding",Children's & Education Services,103,Supplies and Services,504,Equipment,5023,Revenue,ADVERTISING & MARKETING.EVENTS & PROMOTIONS
26-NOV-2021,7012462,44.12,PARTY DELIGHTS LTD,392203,"Health, Education, Care and Safeguarding",Children's & Education Services,103,Supplies and Services,504,Equipment,5023,Revenue,ADVERTISING & MARKETING.EVENTS & PROMOTIONS
26-NOV-2021,7012463,130,HEALTH & SAFETY TRAINING LTD,354964,Housing Property and Construction,Housing Services,108,Supplies and Services,504,Miscellaneous Expenses,5034,Revenue,HUMAN RESOURCES.TRAINING & CONFERENCES
26-NOV-2021,7012464,1988.5,DVSA,392128,"Environment, Housing & Leisure",Unallocated,N/A,Transport,503,Direct Transport Costs,5016,Revenue,NON INFLUENCIBLE.PUBLIC SECTOR
26-NOV-2021,7012465,0.79,ON A ROLL SANDWICH COMPANY,391893,Commissioning & Asset Management,Children's & Education Services,103,Supplies and Services,504,Equipment,5023,Revenue,CATERING.FOOD & BEVERAGES
26-NOV-2021,7012465,0.79,ON A ROLL SANDWICH COMPANY,391893,Commissioning & Asset Management,Children's & Education Services,103,Supplies and Services,504,Equipment,5023,Revenue,CATERING.FOOD & BEVERAGES
26-NOV-2021,7012465,0.79,ON A ROLL SANDWICH COMPANY,391893,Commissioning & Asset Management,Children's & Education Services,103,Supplies and Services,504,Equipment,5023,Revenue,CATERING.FOOD & BEVERAGES
26-NOV-2021,7012465,0.79,ON A ROLL SANDWICH COMPANY,391893,Commissioning & Asset Management,Children's & Education Services,103,Supplies and Services,504,Equipment,5023,Revenue,CATERING.FOOD & BEVERAGES
26-NOV-2021,7012465,0.81,ON A ROLL SANDWICH COMPANY,391893,Commissioning & Asset Management,Children's & Education Services,103,Supplies and Services,504,Equipment,5023,Revenue,CATERING.FOOD & BEVERAGES
26-NOV-2021,7012465,0.81,ON A ROLL SANDWICH COMPANY,391893,Commissioning & Asset Management,Children's & Education Services,103,Supplies and Services,504,Equipment,5023,Revenue,CATERING.FOOD & BEVERAGES
26-NOV-2021,7012465,0.91,ON A ROLL SANDWICH COMPANY,391893,Commissioning & Asset Management,Children's & Education Services,103,Supplies and Services,504,Equipment,5023,Revenue,CATERING.FOOD & BEVERAGES
26-NOV-2021,7012465,0.91,ON A ROLL SANDWICH COMPANY,391893,Commissioning & Asset Management,Children's & Education Services,103,Supplies and Services,504,Equipment,5023,Revenue,CATERING.FOOD & BEVERAGES
26-NOV-2021,7012465,0.91,ON A ROLL SANDWICH COMPANY,391893,Commissioning & Asset Management,Children's & Education Services,103,Supplies and Services,504,Equipment,5023,Revenue,CATERING.FOOD & BEVERAGES
26-NOV-2021,7012465,1.05,ON A ROLL SANDWICH COMPANY,391893,Commissioning & Asset Management,Children's & Education Services,103,Supplies and Services,504,Equipment,5023,Revenue,CATERING.FOOD & BEVERAGES
26-NOV-2021,7012465,1.05,ON A ROLL SANDWICH COMPANY,391893,Commissioning & Asset Management,Children's & Education Services,103,Supplies and Services,504,Equipment,5023,Revenue,CATERING.FOOD & BEVERAGES
26-NOV-2021,7012465,1.06,ON A ROLL SANDWICH COMPANY,391893,Commissioning & Asset Management,Children's & Education Services,103,Supplies and Services,504,Equipment,5023,Revenue,CATERING.FOOD & BEVERAGES
26-NOV-2021,7012465,1.06,ON A ROLL SANDWICH COMPANY,391893,Commissioning & Asset Management,Children's & Education Services,103,Supplies and Services,504,Equipment,5023,Revenue,CATERING.FOOD & BEVERAGES
26-NOV-2021,7012465,1.06,ON A ROLL SANDWICH COMPANY,391893,Commissioning & Asset Management,Children's & Education Services,103,Supplies and Services,504,Equipment,5023,Revenue,CATERING.FOOD & BEVERAGES
26-NOV-2021,7012465,1.06,ON A ROLL SANDWICH COMPANY,391893,Commissioning & Asset Management,Children's & Education Services,103,Supplies and Services,504,Equipment,5023,Revenue,CATERING.FOOD & BEVERAGES
26-NOV-2021,7012465,1.06,ON A ROLL SANDWICH COMPANY,391893,Commissioning & Asset Management,Children's & Education Services,103,Supplies and Services,504,Equipment,5023,Revenue,CATERING.FOOD & BEVERAGES
26-NOV-2021,7012465,1.08,ON A ROLL SANDWICH COMPANY,391893,Commissioning & Asset Management,Children's & Education Services,103,Supplies and Services,504,Equipment,5023,Revenue,CATERING.FOOD & BEVERAGES
26-NOV-2021,7012465,1.13,ON A ROLL SANDWICH COMPANY,391893,Commissioning & Asset Management,Children's & Education Services,103,Supplies and Services,504,Equipment,5023,Revenue,CATERING.FOOD & BEVERAGES
26-NOV-2021,7012465,1.13,ON A ROLL SANDWICH COMPANY,391893,Commissioning & Asset Management,Children's & Education Services,103,Supplies and Services,504,Equipment,5023,Revenue,CATERING.FOOD & BEVERAGES
26-NOV-2021,7012465,1.18,ON A ROLL SANDWICH COMPANY,391893,Commissioning & Asset Management,Children's & Education Services,103,Supplies and Services,504,Equipment,5023,Revenue,CATERING.FOOD & BEVERAGES
26-NOV-2021,7012465,1.18,ON A ROLL SANDWICH COMPANY,391893,Commissioning & Asset Management,Children's & Education Services,103,Supplies and Services,504,Equipment,5023,Revenue,CATERING.FOOD & BEVERAGES
26-NOV-2021,7012465,1.34,ON A ROLL SANDWICH COMPANY,391893,Commissioning & Asset Management,Children's & Education Services,103,Supplies and Services,504,Equipment,5023,Revenue,CATERING.FOOD & BEVERAGES
26-NOV-2021,7012465,1.34,ON A ROLL SANDWICH COMPANY,391893,Commissioning & Asset Management,Children's & Education Services,103,Supplies and Services,504,Equipment,5023,Revenue,CATERING.FOOD & BEVERAGES
26-NOV-2021,7012465,1.39,ON A ROLL SANDWICH COMPANY,391893,Commissioning & Asset Management,Children's & Education Services,103,Supplies and Services,504,Equipment,5023,Revenue,CATERING.FOOD & BEVERAGES
26-NOV-2021,7012465,1.58,ON A ROLL SANDWICH COMPANY,391893,Commissioning & Asset Management,Children's & Education Services,103,Supplies and Services,504,Equipment,5023,Revenue,CATERING.FOOD & BEVERAGES
26-NOV-2021,7012465,1.58,ON A ROLL SANDWICH COMPANY,391893,Commissioning & Asset Management,Children's & Education Services,103,Supplies and Services,504,Equipment,5023,Revenue,CATERING.FOOD & BEVERAGES
26-NOV-2021,7012465,1.58,ON A ROLL SANDWICH COMPANY,391893,Commissioning & Asset Management,Children's & Education Services,103,Supplies and Services,504,Equipment,5023,Revenue,CATERING.FOOD & BEVERAGES
26-NOV-2021,7012465,1.58,ON A ROLL SANDWICH COMPANY,391893,Commissioning & Asset Management,Children's & Education Services,103,Supplies and Services,504,Equipment,5023,Revenue,CATERING.FOOD & BEVERAGES
26-NOV-2021,7012465,1.58,ON A ROLL SANDWICH COMPANY,391893,Commissioning & Asset Management,Children's & Education Services,103,Supplies and Services,504,Equipment,5023,Revenue,CATERING.FOOD & BEVERAGES
26-NOV-2021,7012465,1.58,ON A ROLL SANDWICH COMPANY,391893,Commissioning & Asset Management,Children's & Education Services,103,Supplies and Services,504,Equipment,5023,Revenue,CATERING.FOOD & BEVERAGES
26-NOV-2021,7012465,1.58,ON A ROLL SANDWICH COMPANY,391893,Commissioning & Asset Management,Children's & Education Services,103,Supplies and Services,504,Equipment,5023,Revenue,CATERING.FOOD & BEVERAGES
26-NOV-2021,7012465,1.58,ON A ROLL SANDWICH COMPANY,391893,Commissioning & Asset Management,Children's & Education Services,103,Supplies and Services,504,Equipment,5023,Revenue,CATERING.FOOD & BEVERAGES
26-NOV-2021,7012465,1.58,ON A ROLL SANDWICH COMPANY,391893,Commissioning & Asset Management,Children's & Education Services,103,Supplies and Services,504,Equipment,5023,Revenue,CATERING.FOOD & BEVERAGES
26-NOV-2021,7012465,1.58,ON A ROLL SANDWICH COMPANY,391893,Commissioning & Asset Management,Children's & Education Services,103,Supplies and Services,504,Equipment,5023,Revenue,CATERING.FOOD & BEVERAGES
26-NOV-2021,7012465,1.58,ON A ROLL SANDWICH COMPANY,391893,Commissioning & Asset Management,Children's & Education Services,103,Supplies and Services,504,Equipment,5023,Revenue,CATERING.FOOD & BEVERAGES
26-NOV-2021,7012465,1.58,ON A ROLL SANDWICH COMPANY,391893,Commissioning & Asset Management,Children's & Education Services,103,Supplies and Services,504,Equipment,5023,Revenue,CATERING.FOOD & BEVERAGES
26-NOV-2021,7012465,1.62,ON A ROLL SANDWICH COMPANY,391893,Commissioning & Asset Management,Children's & Education Services,103,Supplies and Services,504,Equipment,5023,Revenue,CATERING.FOOD & BEVERAGES
26-NOV-2021,7012465,1.62,ON A ROLL SANDWICH COMPANY,391893,Commissioning & Asset Management,Children's & Education Services,103,Supplies and Services,504,Equipment,5023,Revenue,CATERING.FOOD & BEVERAGES
26-NOV-2021,7012465,1.62,ON A ROLL SANDWICH COMPANY,391893,Commissioning & Asset Management,Children's & Education Services,103,Supplies and Services,504,Equipment,5023,Revenue,CATERING.FOOD & BEVERAGES
26-NOV-2021,7012465,1.62,ON A ROLL SANDWICH COMPANY,391893,Commissioning & Asset Management,Children's & Education Services,103,Supplies and Services,504,Equipment,5023,Revenue,CATERING.FOOD & BEVERAGES
26-NOV-2021,7012465,1.7,ON A ROLL SANDWICH COMPANY,391893,Commissioning & Asset Management,Children's & Education Services,103,Supplies and Services,504,Equipment,5023,Revenue,CATERING.FOOD & BEVERAGES
26-NOV-2021,7012465,1.76,ON A ROLL SANDWICH COMPANY,391893,Commissioning & Asset Management,Children's & Education Services,103,Supplies and Services,504,Equipment,5023,Revenue,CATERING.FOOD & BEVERAGES
26-NOV-2021,7012465,1.82,ON A ROLL SANDWICH COMPANY,391893,Commissioning & Asset Management,Children's & Education Services,103,Supplies and Services,504,Equipment,5023,Revenue,CATERING.FOOD & BEVERAGES
26-NOV-2021,7012465,1.82,ON A ROLL SANDWICH COMPANY,391893,Commissioning & Asset Management,Children's & Education Services,103,Supplies and Services,504,Equipment,5023,Revenue,CATERING.FOOD & BEVERAGES
26-NOV-2021,7012465,1.82,ON A ROLL SANDWICH COMPANY,391893,Commissioning & Asset Management,Children's & Education Services,103,Supplies and Services,504,Equipment,5023,Revenue,CATERING.FOOD & BEVERAGES
26-NOV-2021,7012465,1.94,ON A ROLL SANDWICH COMPANY,391893,Commissioning & Asset Management,Children's & Education Services,103,Supplies and Services,504,Equipment,5023,Revenue,CATERING.FOOD & BEVERAGES
26-NOV-2021,7012465,2,ON A ROLL SANDWICH COMPANY,391893,Commissioning & Asset Management,Children's & Education Services,103,Supplies and Services,504,Equipment,5023,Revenue,CATERING.FOOD & BEVERAGES
26-NOV-2021,7012465,2.04,ON A ROLL SANDWICH COMPANY,391893,Commissioning & Asset Management,Children's & Education Services,103,Supplies and Services,504,Equipment,5023,Revenue,CATERING.FOOD & BEVERAGES
26-NOV-2021,7012465,2.04,ON A ROLL SANDWICH COMPANY,391893,Commissioning & Asset Management,Children's & Education Services,103,Supplies and Services,504,Equipment,5023,Revenue,CATERING.FOOD & BEVERAGES
26-NOV-2021,7012465,2.04,ON A ROLL SANDWICH COMPANY,391893,Commissioning & Asset Management,Children's & Education Services,103,Supplies and Services,504,Equipment,5023,Revenue,CATERING.FOOD & BEVERAGES
26-NOV-2021,7012465,2.04,ON A ROLL SANDWICH COMPANY,391893,Commissioning & Asset Management,Children's & Education Services,103,Supplies and Services,504,Equipment,5023,Revenue,CATERING.FOOD & BEVERAGES
26-NOV-2021,7012465,2.04,ON A ROLL SANDWICH COMPANY,391893,Commissioning & Asset Management,Children's & Education Services,103,Supplies and Services,504,Equipment,5023,Revenue,CATERING.FOOD & BEVERAGES
26-NOV-2021,7012465,2.1,ON A ROLL SANDWICH COMPANY,391893,Commissioning & Asset Management,Children's & Education Services,103,Supplies and Services,504,Equipment,5023,Revenue,CATERING.FOOD & BEVERAGES
26-NOV-2021,7012465,2.1,ON A ROLL SANDWICH COMPANY,391893,Commissioning & Asset Management,Children's & Education Services,103,Supplies and Services,504,Equipment,5023,Revenue,CATERING.FOOD & BEVERAGES
26-NOV-2021,7012465,2.1,ON A ROLL SANDWICH COMPANY,391893,Commissioning & Asset Management,Children's & Education Services,103,Supplies and Services,504,Equipment,5023,Revenue,CATERING.FOOD & BEVERAGES
26-NOV-2021,7012465,2.1,ON A ROLL SANDWICH COMPANY,391893,Commissioning & Asset Management,Children's & Education Services,103,Supplies and Services,504,Equipment,5023,Revenue,CATERING.FOOD & BEVERAGES
26-NOV-2021,7012465,2.1,ON A ROLL SANDWICH COMPANY,391893,Commissioning & Asset Management,Children's & Education Services,103,Supplies and Services,504,Equipment,5023,Revenue,CATERING.FOOD & BEVERAGES
26-NOV-2021,7012465,2.1,ON A ROLL SANDWICH COMPANY,391893,Commissioning & Asset Management,Children's & Education Services,103,Supplies and Services,504,Equipment,5023,Revenue,CATERING.FOOD & BEVERAGES
26-NOV-2021,7012465,2.1,ON A ROLL SANDWICH COMPANY,391893,Commissioning & Asset Management,Children's & Education Services,103,Supplies and Services,504,Equipment,5023,Revenue,CATERING.FOOD & BEVERAGES
26-NOV-2021,7012465,2.12,ON A ROLL SANDWICH COMPANY,391893,Commissioning & Asset Management,Children's & Education Services,103,Supplies and Services,504,Equipment,5023,Revenue,CATERING.FOOD & BEVERAGES
26-NOV-2021,7012465,2.12,ON A ROLL SANDWICH COMPANY,391893,Commissioning & Asset Management,Children's & Education Services,103,Supplies and Services,504,Equipment,5023,Revenue,CATERING.FOOD & BEVERAGES
26-NOV-2021,7012465,2.12,ON A ROLL SANDWICH COMPANY,391893,Commissioning & Asset Management,Children's & Education Services,103,Supplies and Services,504,Equipment,5023,Revenue,CATERING.FOOD & BEVERAGES
26-NOV-2021,7012465,2.12,ON A ROLL SANDWICH COMPANY,391893,Commissioning & Asset Management,Children's & Education Services,103,Supplies and Services,504,Equipment,5023,Revenue,CATERING.FOOD & BEVERAGES
26-NOV-2021,7012465,2.16,ON A ROLL SANDWICH COMPANY,391893,Commissioning & Asset Management,Children's & Education Services,103,Supplies and Services,504,Equipment,5023,Revenue,CATERING.FOOD & BEVERAGES
26-NOV-2021,7012465,2.16,ON A ROLL SANDWICH COMPANY,391893,Commissioning & Asset Management,Children's & Education Services,103,Supplies and Services,504,Equipment,5023,Revenue,CATERING.FOOD & BEVERAGES
26-NOV-2021,7012465,2.18,ON A ROLL SANDWICH COMPANY,391893,Commissioning & Asset Management,Children's & Education Services,103,Supplies and Services,504,Equipment,5023,Revenue,CATERING.FOOD & BEVERAGES
26-NOV-2021,7012465,2.18,ON A ROLL SANDWICH COMPANY,391893,Commissioning & Asset Management,Children's & Education Services,103,Supplies and Services,504,Equipment,5023,Revenue,CATERING.FOOD & BEVERAGES
26-NOV-2021,7012465,2.22,ON A ROLL SANDWICH COMPANY,391893,Commissioning & Asset Management,Children's & Education Services,103,Supplies and Services,504,Equipment,5023,Revenue,CATERING.FOOD & BEVERAGES
26-NOV-2021,7012465,2.22,ON A ROLL SANDWICH COMPANY,391893,Commissioning & Asset Management,Children's & Education Services,103,Supplies and Services,504,Equipment,5023,Revenue,CATERING.FOOD & BEVERAGES
26-NOV-2021,7012465,2.22,ON A ROLL SANDWICH COMPANY,391893,Commissioning & Asset Management,Children's & Education Services,103,Supplies and Services,504,Equipment,5023,Revenue,CATERING.FOOD & BEVERAGES
26-NOV-2021,7012465,2.22,ON A ROLL SANDWICH COMPANY,391893,Commissioning & Asset Management,Children's & Education Services,103,Supplies and Services,504,Equipment,5023,Revenue,CATERING.FOOD & BEVERAGES
26-NOV-2021,7012465,2.22,ON A ROLL SANDWICH COMPANY,391893,Commissioning & Asset Management,Children's & Education Services,103,Supplies and Services,504,Equipment,5023,Revenue,CATERING.FOOD & BEVERAGES
26-NOV-2021,7012465,2.22,ON A ROLL SANDWICH COMPANY,391893,Commissioning & Asset Management,Children's & Education Services,103,Supplies and Services,504,Equipment,5023,Revenue,CATERING.FOOD & BEVERAGES
26-NOV-2021,7012465,2.22,ON A ROLL SANDWICH COMPANY,391893,Commissioning & Asset Management,Children's & Education Services,103,Supplies and Services,504,Equipment,5023,Revenue,CATERING.FOOD & BEVERAGES
26-NOV-2021,7012465,2.22,ON A ROLL SANDWICH COMPANY,391893,Commissioning & Asset Management,Children's & Education Services,103,Supplies and Services,504,Equipment,5023,Revenue,CATERING.FOOD & BEVERAGES
26-NOV-2021,7012465,2.22,ON A ROLL SANDWICH COMPANY,391893,Commissioning & Asset Management,Children's & Education Services,103,Supplies and Services,504,Equipment,5023,Revenue,CATERING.FOOD & BEVERAGES
26-NOV-2021,7012465,2.26,ON A ROLL SANDWICH COMPANY,391893,Commissioning & Asset Management,Children's & Education Services,103,Supplies and Services,504,Equipment,5023,Revenue,CATERING.FOOD & BEVERAGES
26-NOV-2021,7012465,2.32,ON A ROLL SANDWICH COMPANY,391893,Commissioning & Asset Management,Children's & Education Services,103,Supplies and Services,504,Equipment,5023,Revenue,CATERING.FOOD & BEVERAGES
26-NOV-2021,7012465,2.32,ON A ROLL SANDWICH COMPANY,391893,Commissioning & Asset Management,Children's & Education Services,103,Supplies and Services,504,Equipment,5023,Revenue,CATERING.FOOD & BEVERAGES
26-NOV-2021,7012465,2.32,ON A ROLL SANDWICH COMPANY,391893,Commissioning & Asset Management,Children's & Education Services,103,Supplies and Services,504,Equipment,5023,Revenue,CATERING.FOOD & BEVERAGES
26-NOV-2021,7012465,2.32,ON A ROLL SANDWICH COMPANY,391893,Commissioning & Asset Management,Children's & Education Services,103,Supplies and Services,504,Equipment,5023,Revenue,CATERING.FOOD & BEVERAGES
26-NOV-2021,7012465,2.32,ON A ROLL SANDWICH COMPANY,391893,Commissioning & Asset Management,Children's & Education Services,103,Supplies and Services,504,Equipment,5023,Revenue,CATERING.FOOD & BEVERAGES
26-NOV-2021,7012465,2.35,ON A ROLL SANDWICH COMPANY,391893,Commissioning & Asset Management,Children's & Education Services,103,Supplies and Services,504,Equipment,5023,Revenue,CATERING.FOOD & BEVERAGES
26-NOV-2021,7012465,2.36,ON A ROLL SANDWICH COMPANY,391893,Commissioning & Asset Management,Children's & Education Services,103,Supplies and Services,504,Equipment,5023,Revenue,CATERING.FOOD & BEVERAGES
26-NOV-2021,7012465,2.36,ON A ROLL SANDWICH COMPANY,391893,Commissioning & Asset Management,Children's & Education Services,103,Supplies and Services,504,Equipment,5023,Revenue,CATERING.FOOD & BEVERAGES
26-NOV-2021,7012465,2.36,ON A ROLL SANDWICH COMPANY,391893,Commissioning & Asset Management,Children's & Education Services,103,Supplies and Services,504,Equipment,5023,Revenue,CATERING.FOOD & BEVERAGES
26-NOV-2021,7012465,2.37,ON A ROLL SANDWICH COMPANY,391893,Commissioning & Asset Management,Children's & Education Services,103,Supplies and Services,504,Equipment,5023,Revenue,CATERING.FOOD & BEVERAGES
26-NOV-2021,7012465,2.37,ON A ROLL SANDWICH COMPANY,391893,Commissioning & Asset Management,Children's & Education Services,103,Supplies and Services,504,Equipment,5023,Revenue,CATERING.FOOD & BEVERAGES
26-NOV-2021,7012465,2.37,ON A ROLL SANDWICH COMPANY,391893,Commissioning & Asset Management,Children's & Education Services,103,Supplies and Services,504,Equipment,5023,Revenue,CATERING.FOOD & BEVERAGES
26-NOV-2021,7012465,2.37,ON A ROLL SANDWICH COMPANY,391893,Commissioning & Asset Management,Children's & Education Services,103,Supplies and Services,504,Equipment,5023,Revenue,CATERING.FOOD & BEVERAGES
26-NOV-2021,7012465,2.37,ON A ROLL SANDWICH COMPANY,391893,Commissioning & Asset Management,Children's & Education Services,103,Supplies and Services,504,Equipment,5023,Revenue,CATERING.FOOD & BEVERAGES
26-NOV-2021,7012465,2.37,ON A ROLL SANDWICH COMPANY,391893,Commissioning & Asset Management,Children's & Education Services,103,Supplies and Services,504,Equipment,5023,Revenue,CATERING.FOOD & BEVERAGES
26-NOV-2021,7012465,2.56,ON A ROLL SANDWICH COMPANY,391893,Commissioning & Asset Management,Children's & Education Services,103,Supplies and Services,504,Equipment,5023,Revenue,CATERING.FOOD & BEVERAGES
26-NOV-2021,7012465,2.56,ON A ROLL SANDWICH COMPANY,391893,Commissioning & Asset Management,Children's & Education Services,103,Supplies and Services,504,Equipment,5023,Revenue,CATERING.FOOD & BEVERAGES
26-NOV-2021,7012465,2.56,ON A ROLL SANDWICH COMPANY,391893,Commissioning & Asset Management,Children's & Education Services,103,Supplies and Services,504,Equipment,5023,Revenue,CATERING.FOOD & BEVERAGES
26-NOV-2021,7012465,2.66,ON A ROLL SANDWICH COMPANY,391893,Commissioning & Asset Management,Children's & Education Services,103,Supplies and Services,504,Equipment,5023,Revenue,CATERING.FOOD & BEVERAGES
26-NOV-2021,7012465,2.66,ON A ROLL SANDWICH COMPANY,391893,Commissioning & Asset Management,Children's & Education Services,103,Supplies and Services,504,Equipment,5023,Revenue,CATERING.FOOD & BEVERAGES
26-NOV-2021,7012465,2.68,ON A ROLL SANDWICH COMPANY,391893,Commissioning & Asset Management,Children's & Education Services,103,Supplies and Services,504,Equipment,5023,Revenue,CATERING.FOOD & BEVERAGES
26-NOV-2021,7012465,2.68,ON A ROLL SANDWICH COMPANY,391893,Commissioning & Asset Management,Children's & Education Services,103,Supplies and Services,504,Equipment,5023,Revenue,CATERING.FOOD & BEVERAGES
26-NOV-2021,7012465,2.68,ON A ROLL SANDWICH COMPANY,391893,Commissioning & Asset Management,Children's & Education Services,103,Supplies and Services,504,Equipment,5023,Revenue,CATERING.FOOD & BEVERAGES
26-NOV-2021,7012465,2.73,ON A ROLL SANDWICH COMPANY,391893,Commissioning & Asset Management,Children's & Education Services,103,Supplies and Services,504,Equipment,5023,Revenue,CATERING.FOOD & BEVERAGES
26-NOV-2021,7012465,2.76,ON A ROLL SANDWICH COMPANY,391893,Commissioning & Asset Management,Children's & Education Services,103,Supplies and Services,504,Equipment,5023,Revenue,CATERING.FOOD & BEVERAGES
26-NOV-2021,7012465,2.76,ON A ROLL SANDWICH COMPANY,391893,Commissioning & Asset Management,Children's & Education Services,103,Supplies and Services,504,Equipment,5023,Revenue,CATERING.FOOD & BEVERAGES
26-NOV-2021,7012465,2.78,ON A ROLL SANDWICH COMPANY,391893,Commissioning & Asset Management,Children's & Education Services,103,Supplies and Services,504,Equipment,5023,Revenue,CATERING.FOOD & BEVERAGES
26-NOV-2021,7012465,2.8,ON A ROLL SANDWICH COMPANY,391893,Commissioning & Asset Management,Children's & Education Services,103,Supplies and Services,504,Equipment,5023,Revenue,CATERING.FOOD & BEVERAGES
26-NOV-2021,7012465,2.8,ON A ROLL SANDWICH COMPANY,391893,Commissioning & Asset Management,Children's & Education Services,103,Supplies and Services,504,Equipment,5023,Revenue,CATERING.FOOD & BEVERAGES
26-NOV-2021,7012465,2.82,ON A ROLL SANDWICH COMPANY,391893,Commissioning & Asset Management,Children's & Education Services,103,Supplies and Services,504,Equipment,5023,Revenue,CATERING.FOOD & BEVERAGES
26-NOV-2021,7012465,2.84,ON A ROLL SANDWICH COMPANY,391893,Commissioning & Asset Management,Children's & Education Services,103,Supplies and Services,504,Equipment,5023,Revenue,CATERING.FOOD & BEVERAGES
26-NOV-2021,7012465,2.96,ON A ROLL SANDWICH COMPANY,391893,Commissioning & Asset Management,Children's & Education Services,103,Supplies and Services,504,Equipment,5023,Revenue,CATERING.FOOD & BEVERAGES
26-NOV-2021,7012465,3.06,ON A ROLL SANDWICH COMPANY,391893,Commissioning & Asset Management,Children's & Education Services,103,Supplies and Services,504,Equipment,5023,Revenue,CATERING.FOOD & BEVERAGES
26-NOV-2021,7012465,3.15,ON A ROLL SANDWICH COMPANY,391893,Commissioning & Asset Management,Children's & Education Services,103,Supplies and Services,504,Equipment,5023,Revenue,CATERING.FOOD & BEVERAGES
26-NOV-2021,7012465,3.16,ON A ROLL SANDWICH COMPANY,391893,Commissioning & Asset Management,Children's & Education Services,103,Supplies and Services,504,Equipment,5023,Revenue,CATERING.FOOD & BEVERAGES
26-NOV-2021,7012465,3.16,ON A ROLL SANDWICH COMPANY,391893,Commissioning & Asset Management,Children's & Education Services,103,Supplies and Services,504,Equipment,5023,Revenue,CATERING.FOOD & BEVERAGES
26-NOV-2021,7012465,3.16,ON A ROLL SANDWICH COMPANY,391893,Commissioning & Asset Management,Children's & Education Services,103,Supplies and Services,504,Equipment,5023,Revenue,CATERING.FOOD & BEVERAGES
26-NOV-2021,7012465,3.16,ON A ROLL SANDWICH COMPANY,391893,Commissioning & Asset Management,Children's & Education Services,103,Supplies and Services,504,Equipment,5023,Revenue,CATERING.FOOD & BEVERAGES
26-NOV-2021,7012465,3.16,ON A ROLL SANDWICH COMPANY,391893,Commissioning & Asset Management,Children's & Education Services,103,Supplies and Services,504,Equipment,5023,Revenue,CATERING.FOOD & BEVERAGES
26-NOV-2021,7012465,3.16,ON A ROLL SANDWICH COMPANY,391893,Commissioning & Asset Management,Children's & Education Services,103,Supplies and Services,504,Equipment,5023,Revenue,CATERING.FOOD & BEVERAGES
26-NOV-2021,7012465,3.16,ON A ROLL SANDWICH COMPANY,391893,Commissioning & Asset Management,Children's & Education Services,103,Supplies and Services,504,Equipment,5023,Revenue,CATERING.FOOD & BEVERAGES
26-NOV-2021,7012465,3.16,ON A ROLL SANDWICH COMPANY,391893,Commissioning & Asset Management,Children's & Education Services,103,Supplies and Services,504,Equipment,5023,Revenue,CATERING.FOOD & BEVERAGES
26-NOV-2021,7012465,3.16,ON A ROLL SANDWICH COMPANY,391893,Commissioning & Asset Management,Children's & Education Services,103,Supplies and Services,504,Equipment,5023,Revenue,CATERING.FOOD & BEVERAGES
26-NOV-2021,7012465,3.16,ON A ROLL SANDWICH COMPANY,391893,Commissioning & Asset Management,Children's & Education Services,103,Supplies and Services,504,Equipment,5023,Revenue,CATERING.FOOD & BEVERAGES
26-NOV-2021,7012465,3.16,ON A ROLL SANDWICH COMPANY,391893,Commissioning & Asset Management,Children's & Education Services,103,Supplies and Services,504,Equipment,5023,Revenue,CATERING.FOOD & BEVERAGES
26-NOV-2021,7012465,3.2,ON A ROLL SANDWICH COMPANY,391893,Commissioning & Asset Management,Children's & Education Services,103,Supplies and Services,504,Equipment,5023,Revenue,CATERING.FOOD & BEVERAGES
26-NOV-2021,7012465,3.24,ON A ROLL SANDWICH COMPANY,391893,Commissioning & Asset Management,Children's & Education Services,103,Supplies and Services,504,Equipment,5023,Revenue,CATERING.FOOD & BEVERAGES
26-NOV-2021,7012465,3.24,ON A ROLL SANDWICH COMPANY,391893,Commissioning & Asset Management,Children's & Education Services,103,Supplies and Services,504,Equipment,5023,Revenue,CATERING.FOOD & BEVERAGES
26-NOV-2021,7012465,3.33,ON A ROLL SANDWICH COMPANY,391893,Commissioning & Asset Management,Children's & Education Services,103,Supplies and Services,504,Equipment,5023,Revenue,CATERING.FOOD & BEVERAGES
26-NOV-2021,7012465,3.33,ON A ROLL SANDWICH COMPANY,391893,Commissioning & Asset Management,Children's & Education Services,103,Supplies and Services,504,Equipment,5023,Revenue,CATERING.FOOD & BEVERAGES
26-NOV-2021,7012465,3.36,ON A ROLL SANDWICH COMPANY,391893,Commissioning & Asset Management,Children's & Education Services,103,Supplies and Services,504,Equipment,5023,Revenue,CATERING.FOOD & BEVERAGES
26-NOV-2021,7012465,3.36,ON A ROLL SANDWICH COMPANY,391893,Commissioning & Asset Management,Children's & Education Services,103,Supplies and Services,504,Equipment,5023,Revenue,CATERING.FOOD & BEVERAGES
26-NOV-2021,7012465,3.36,ON A ROLL SANDWICH COMPANY,391893,Commissioning & Asset Management,Children's & Education Services,103,Supplies and Services,504,Equipment,5023,Revenue,CATERING.FOOD & BEVERAGES
26-NOV-2021,7012465,3.36,ON A ROLL SANDWICH COMPANY,391893,Commissioning & Asset Management,Children's & Education Services,103,Supplies and Services,504,Equipment,5023,Revenue,CATERING.FOOD & BEVERAGES
26-NOV-2021,7012465,3.39,ON A ROLL SANDWICH COMPANY,391893,Commissioning & Asset Management,Children's & Education Services,103,Supplies and Services,504,Equipment,5023,Revenue,CATERING.FOOD & BEVERAGES
26-NOV-2021,7012465,3.39,ON A ROLL SANDWICH COMPANY,391893,Commissioning & Asset Management,Children's & Education Services,103,Supplies and Services,504,Equipment,5023,Revenue,CATERING.FOOD & BEVERAGES
26-NOV-2021,7012465,3.46,ON A ROLL SANDWICH COMPANY,391893,Commissioning & Asset Management,Children's & Education Services,103,Supplies and Services,504,Equipment,5023,Revenue,CATERING.FOOD & BEVERAGES
26-NOV-2021,7012465,3.48,ON A ROLL SANDWICH COMPANY,391893,Commissioning & Asset Management,Children's & Education Services,103,Supplies and Services,504,Equipment,5023,Revenue,CATERING.FOOD & BEVERAGES
26-NOV-2021,7012465,3.52,ON A ROLL SANDWICH COMPANY,391893,Commissioning & Asset Management,Children's & Education Services,103,Supplies and Services,504,Equipment,5023,Revenue,CATERING.FOOD & BEVERAGES
26-NOV-2021,7012465,3.54,ON A ROLL SANDWICH COMPANY,391893,Commissioning & Asset Management,Children's & Education Services,103,Supplies and Services,504,Equipment,5023,Revenue,CATERING.FOOD & BEVERAGES
26-NOV-2021,7012465,3.64,ON A ROLL SANDWICH COMPANY,391893,Commissioning & Asset Management,Children's & Education Services,103,Supplies and Services,504,Equipment,5023,Revenue,CATERING.FOOD & BEVERAGES
26-NOV-2021,7012465,3.64,ON A ROLL SANDWICH COMPANY,391893,Commissioning & Asset Management,Children's & Education Services,103,Supplies and Services,504,Equipment,5023,Revenue,CATERING.FOOD & BEVERAGES
26-NOV-2021,7012465,3.64,ON A ROLL SANDWICH COMPANY,391893,Commissioning & Asset Management,Children's & Education Services,103,Supplies and Services,504,Equipment,5023,Revenue,CATERING.FOOD & BEVERAGES
26-NOV-2021,7012465,3.64,ON A ROLL SANDWICH COMPANY,391893,Commissioning & Asset Management,Children's & Education Services,103,Supplies and Services,504,Equipment,5023,Revenue,CATERING.FOOD & BEVERAGES
26-NOV-2021,7012465,3.64,ON A ROLL SANDWICH COMPANY,391893,Commissioning & Asset Management,Children's & Education Services,103,Supplies and Services,504,Equipment,5023,Revenue,CATERING.FOOD & BEVERAGES
26-NOV-2021,7012465,3.69,ON A ROLL SANDWICH COMPANY,391893,Commissioning & Asset Management,Children's & Education Services,103,Supplies and Services,504,Equipment,5023,Revenue,CATERING.FOOD & BEVERAGES
26-NOV-2021,7012465,3.72,ON A ROLL SANDWICH COMPANY,391893,Commissioning & Asset Management,Children's & Education Services,103,Supplies and Services,504,Equipment,5023,Revenue,CATERING.FOOD & BEVERAGES
26-NOV-2021,7012465,3.72,ON A ROLL SANDWICH COMPANY,391893,Commissioning & Asset Management,Children's & Education Services,103,Supplies and Services,504,Equipment,5023,Revenue,CATERING.FOOD & BEVERAGES
26-NOV-2021,7012465,3.72,ON A ROLL SANDWICH COMPANY,391893,Commissioning & Asset Management,Children's & Education Services,103,Supplies and Services,504,Equipment,5023,Revenue,CATERING.FOOD & BEVERAGES
26-NOV-2021,7012465,3.72,ON A ROLL SANDWICH COMPANY,391893,Commissioning & Asset Management,Children's & Education Services,103,Supplies and Services,504,Equipment,5023,Revenue,CATERING.FOOD & BEVERAGES
26-NOV-2021,7012465,3.72,ON A ROLL SANDWICH COMPANY,391893,Commissioning & Asset Management,Children's & Education Services,103,Supplies and Services,504,Equipment,5023,Revenue,CATERING.FOOD & BEVERAGES
26-NOV-2021,7012465,3.84,ON A ROLL SANDWICH COMPANY,391893,Commissioning & Asset Management,Children's & Education Services,103,Supplies and Services,504,Equipment,5023,Revenue,CATERING.FOOD & BEVERAGES
26-NOV-2021,7012465,3.87,ON A ROLL SANDWICH COMPANY,391893,Commissioning & Asset Management,Children's & Education Services,103,Supplies and Services,504,Equipment,5023,Revenue,CATERING.FOOD & BEVERAGES
26-NOV-2021,7012465,3.95,ON A ROLL SANDWICH COMPANY,391893,Commissioning & Asset Management,Children's & Education Services,103,Supplies and Services,504,Equipment,5023,Revenue,CATERING.FOOD & BEVERAGES
26-NOV-2021,7012465,3.95,ON A ROLL SANDWICH COMPANY,391893,Commissioning & Asset Management,Children's & Education Services,103,Supplies and Services,504,Equipment,5023,Revenue,CATERING.FOOD & BEVERAGES
26-NOV-2021,7012465,3.95,ON A ROLL SANDWICH COMPANY,391893,Commissioning & Asset Management,Children's & Education Services,103,Supplies and Services,504,Equipment,5023,Revenue,CATERING.FOOD & BEVERAGES
26-NOV-2021,7012465,3.95,ON A ROLL SANDWICH COMPANY,391893,Commissioning & Asset Management,Children's & Education Services,103,Supplies and Services,504,Equipment,5023,Revenue,CATERING.FOOD & BEVERAGES
26-NOV-2021,7012465,3.95,ON A ROLL SANDWICH COMPANY,391893,Commissioning & Asset Management,Children's & Education Services,103,Supplies and Services,504,Equipment,5023,Revenue,CATERING.FOOD & BEVERAGES
26-NOV-2021,7012465,3.95,ON A ROLL SANDWICH COMPANY,391893,Commissioning & Asset Management,Children's & Education Services,103,Supplies and Services,504,Equipment,5023,Revenue,CATERING.FOOD & BEVERAGES
26-NOV-2021,7012465,3.95,ON A ROLL SANDWICH COMPANY,391893,Commissioning & Asset Management,Children's & Education Services,103,Supplies and Services,504,Equipment,5023,Revenue,CATERING.FOOD & BEVERAGES
26-NOV-2021,7012465,3.95,ON A ROLL SANDWICH COMPANY,391893,Commissioning & Asset Management,Children's & Education Services,103,Supplies and Services,504,Equipment,5023,Revenue,CATERING.FOOD & BEVERAGES
26-NOV-2021,7012465,3.95,ON A ROLL SANDWICH COMPANY,391893,Commissioning & Asset Management,Children's & Education Services,103,Supplies and Services,504,Equipment,5023,Revenue,CATERING.FOOD & BEVERAGES
26-NOV-2021,7012465,3.95,ON A ROLL SANDWICH COMPANY,391893,Commissioning & Asset Management,Children's & Education Services,103,Supplies and Services,504,Equipment,5023,Revenue,CATERING.FOOD & BEVERAGES
26-NOV-2021,7012465,3.95,ON A ROLL SANDWICH COMPANY,391893,Commissioning & Asset Management,Children's & Education Services,103,Supplies and Services,504,Equipment,5023,Revenue,CATERING.FOOD & BEVERAGES
26-NOV-2021,7012465,3.95,ON A ROLL SANDWICH COMPANY,391893,Commissioning & Asset Management,Children's & Education Services,103,Supplies and Services,504,Equipment,5023,Revenue,CATERING.FOOD & BEVERAGES
26-NOV-2021,7012465,3.95,ON A ROLL SANDWICH COMPANY,391893,Commissioning & Asset Management,Children's & Education Services,103,Supplies and Services,504,Equipment,5023,Revenue,CATERING.FOOD & BEVERAGES
26-NOV-2021,7012465,3.95,ON A ROLL SANDWICH COMPANY,391893,Commissioning & Asset Management,Children's & Education Services,103,Supplies and Services,504,Equipment,5023,Revenue,CATERING.FOOD & BEVERAGES
26-NOV-2021,7012465,3.95,ON A ROLL SANDWICH COMPANY,391893,Commissioning & Asset Management,Children's & Education Services,103,Supplies and Services,504,Equipment,5023,Revenue,CATERING.FOOD & BEVERAGES
26-NOV-2021,7012465,3.95,ON A ROLL SANDWICH COMPANY,391893,Commissioning & Asset Management,Children's & Education Services,103,Supplies and Services,504,Equipment,5023,Revenue,CATERING.FOOD & BEVERAGES
26-NOV-2021,7012465,3.95,ON A ROLL SANDWICH COMPANY,391893,Commissioning & Asset Management,Children's & Education Services,103,Supplies and Services,504,Equipment,5023,Revenue,CATERING.FOOD & BEVERAGES
26-NOV-2021,7012465,3.95,ON A ROLL SANDWICH COMPANY,391893,Commissioning & Asset Management,Children's & Education Services,103,Supplies and Services,504,Equipment,5023,Revenue,CATERING.FOOD & BEVERAGES
26-NOV-2021,7012465,3.95,ON A ROLL SANDWICH COMPANY,391893,Commissioning & Asset Management,Children's & Education Services,103,Supplies and Services,504,Equipment,5023,Revenue,CATERING.FOOD & BEVERAGES
26-NOV-2021,7012465,3.95,ON A ROLL SANDWICH COMPANY,391893,Commissioning & Asset Management,Children's & Education Services,103,Supplies and Services,504,Equipment,5023,Revenue,CATERING.FOOD & BEVERAGES
26-NOV-2021,7012465,3.95,ON A ROLL SANDWICH COMPANY,391893,Commissioning & Asset Management,Children's & Education Services,103,Supplies and Services,504,Equipment,5023,Revenue,CATERING.FOOD & BEVERAGES
26-NOV-2021,7012465,3.95,ON A ROLL SANDWICH COMPANY,391893,Commissioning & Asset Management,Children's & Education Services,103,Supplies and Services,504,Equipment,5023,Revenue,CATERING.FOOD & BEVERAGES
26-NOV-2021,7012465,3.95,ON A ROLL SANDWICH COMPANY,391893,Commissioning & Asset Management,Children's & Education Services,103,Supplies and Services,504,Equipment,5023,Revenue,CATERING.FOOD & BEVERAGES
26-NOV-2021,7012465,3.95,ON A ROLL SANDWICH COMPANY,391893,Commissioning & Asset Management,Children's & Education Services,103,Supplies and Services,504,Equipment,5023,Revenue,CATERING.FOOD & BEVERAGES
26-NOV-2021,7012465,3.95,ON A ROLL SANDWICH COMPANY,391893,Commissioning & Asset Management,Children's & Education Services,103,Supplies and Services,504,Equipment,5023,Revenue,CATERING.FOOD & BEVERAGES
26-NOV-2021,7012465,3.99,ON A ROLL SANDWICH COMPANY,391893,Commissioning & Asset Management,Children's & Education Services,103,Supplies and Services,504,Equipment,5023,Revenue,CATERING.FOOD & BEVERAGES
26-NOV-2021,7012465,3.99,ON A ROLL SANDWICH COMPANY,391893,Commissioning & Asset Management,Children's & Education Services,103,Supplies and Services,504,Equipment,5023,Revenue,CATERING.FOOD & BEVERAGES
26-NOV-2021,7012465,4.08,ON A ROLL SANDWICH COMPANY,391893,Commissioning & Asset Management,Children's & Education Services,103,Supplies and Services,504,Equipment,5023,Revenue,CATERING.FOOD & BEVERAGES
26-NOV-2021,7012465,4.14,ON A ROLL SANDWICH COMPANY,391893,Commissioning & Asset Management,Children's & Education Services,103,Supplies and Services,504,Equipment,5023,Revenue,CATERING.FOOD & BEVERAGES
26-NOV-2021,7012465,4.17,ON A ROLL SANDWICH COMPANY,391893,Commissioning & Asset Management,Children's & Education Services,103,Supplies and Services,504,Equipment,5023,Revenue,CATERING.FOOD & BEVERAGES
26-NOV-2021,7012465,4.28,ON A ROLL SANDWICH COMPANY,391893,Commissioning & Asset Management,Children's & Education Services,103,Supplies and Services,504,Equipment,5023,Revenue,CATERING.FOOD & BEVERAGES
26-NOV-2021,7012465,4.28,ON A ROLL SANDWICH COMPANY,391893,Commissioning & Asset Management,Children's & Education Services,103,Supplies and Services,504,Equipment,5023,Revenue,CATERING.FOOD & BEVERAGES
26-NOV-2021,7012465,4.32,ON A ROLL SANDWICH COMPANY,391893,Commissioning & Asset Management,Children's & Education Services,103,Supplies and Services,504,Equipment,5023,Revenue,CATERING.FOOD & BEVERAGES
26-NOV-2021,7012465,4.32,ON A ROLL SANDWICH COMPANY,391893,Commissioning & Asset Management,Children's & Education Services,103,Supplies and Services,504,Equipment,5023,Revenue,CATERING.FOOD & BEVERAGES
26-NOV-2021,7012465,4.32,ON A ROLL SANDWICH COMPANY,391893,Commissioning & Asset Management,Children's & Education Services,103,Supplies and Services,504,Equipment,5023,Revenue,CATERING.FOOD & BEVERAGES
26-NOV-2021,7012465,4.32,ON A ROLL SANDWICH COMPANY,391893,Commissioning & Asset Management,Children's & Education Services,103,Supplies and Services,504,Equipment,5023,Revenue,CATERING.FOOD & BEVERAGES
26-NOV-2021,7012465,4.32,ON A ROLL SANDWICH COMPANY,391893,Commissioning & Asset Management,Children's & Education Services,103,Supplies and Services,504,Equipment,5023,Revenue,CATERING.FOOD & BEVERAGES
26-NOV-2021,7012465,4.32,ON A ROLL SANDWICH COMPANY,391893,Commissioning & Asset Management,Children's & Education Services,103,Supplies and Services,504,Equipment,5023,Revenue,CATERING.FOOD & BEVERAGES
26-NOV-2021,7012465,4.4,ON A ROLL SANDWICH COMPANY,391893,Commissioning & Asset Management,Children's & Education Services,103,Supplies and Services,504,Equipment,5023,Revenue,CATERING.FOOD & BEVERAGES
26-NOV-2021,7012465,4.4,ON A ROLL SANDWICH COMPANY,391893,Commissioning & Asset Management,Children's & Education Services,103,Supplies and Services,504,Equipment,5023,Revenue,CATERING.FOOD & BEVERAGES
26-NOV-2021,7012465,4.4,ON A ROLL SANDWICH COMPANY,391893,Commissioning & Asset Management,Children's & Education Services,103,Supplies and Services,504,Equipment,5023,Revenue,CATERING.FOOD & BEVERAGES
26-NOV-2021,7012465,4.4,ON A ROLL SANDWICH COMPANY,391893,Commissioning & Asset Management,Children's & Education Services,103,Supplies and Services,504,Equipment,5023,Revenue,CATERING.FOOD & BEVERAGES
26-NOV-2021,7012465,4.44,ON A ROLL SANDWICH COMPANY,391893,Commissioning & Asset Management,Children's & Education Services,103,Supplies and Services,504,Equipment,5023,Revenue,CATERING.FOOD & BEVERAGES
26-NOV-2021,7012465,4.44,ON A ROLL SANDWICH COMPANY,391893,Commissioning & Asset Management,Children's & Education Services,103,Supplies and Services,504,Equipment,5023,Revenue,CATERING.FOOD & BEVERAGES
26-NOV-2021,7012465,4.44,ON A ROLL SANDWICH COMPANY,391893,Commissioning & Asset Management,Children's & Education Services,103,Supplies and Services,504,Equipment,5023,Revenue,CATERING.FOOD & BEVERAGES
26-NOV-2021,7012465,4.44,ON A ROLL SANDWICH COMPANY,391893,Commissioning & Asset Management,Children's & Education Services,103,Supplies and Services,504,Equipment,5023,Revenue,CATERING.FOOD & BEVERAGES
26-NOV-2021,7012465,4.48,ON A ROLL SANDWICH COMPANY,391893,Commissioning & Asset Management,Children's & Education Services,103,Supplies and Services,504,Equipment,5023,Revenue,CATERING.FOOD & BEVERAGES
26-NOV-2021,7012465,4.48,ON A ROLL SANDWICH COMPANY,391893,Commissioning & Asset Management,Children's & Education Services,103,Supplies and Services,504,Equipment,5023,Revenue,CATERING.FOOD & BEVERAGES
26-NOV-2021,7012465,4.52,ON A ROLL SANDWICH COMPANY,391893,Commissioning & Asset Management,Children's & Education Services,103,Supplies and Services,504,Equipment,5023,Revenue,CATERING.FOOD & BEVERAGES
26-NOV-2021,7012465,4.52,ON A ROLL SANDWICH COMPANY,391893,Commissioning & Asset Management,Children's & Education Services,103,Supplies and Services,504,Equipment,5023,Revenue,CATERING.FOOD & BEVERAGES
26-NOV-2021,7012465,4.52,ON A ROLL SANDWICH COMPANY,391893,Commissioning & Asset Management,Children's & Education Services,103,Supplies and Services,504,Equipment,5023,Revenue,CATERING.FOOD & BEVERAGES
26-NOV-2021,7012465,4.52,ON A ROLL SANDWICH COMPANY,391893,Commissioning & Asset Management,Children's & Education Services,103,Supplies and Services,504,Equipment,5023,Revenue,CATERING.FOOD & BEVERAGES
26-NOV-2021,7012465,4.52,ON A ROLL SANDWICH COMPANY,391893,Commissioning & Asset Management,Children's & Education Services,103,Supplies and Services,504,Equipment,5023,Revenue,CATERING.FOOD & BEVERAGES
26-NOV-2021,7012465,4.52,ON A ROLL SANDWICH COMPANY,391893,Commissioning & Asset Management,Children's & Education Services,103,Supplies and Services,504,Equipment,5023,Revenue,CATERING.FOOD & BEVERAGES
26-NOV-2021,7012465,4.55,ON A ROLL SANDWICH COMPANY,391893,Commissioning & Asset Management,Children's & Education Services,103,Supplies and Services,504,Equipment,5023,Revenue,CATERING.FOOD & BEVERAGES
26-NOV-2021,7012465,4.55,ON A ROLL SANDWICH COMPANY,391893,Commissioning & Asset Management,Children's & Education Services,103,Supplies and Services,504,Equipment,5023,Revenue,CATERING.FOOD & BEVERAGES
26-NOV-2021,7012465,4.55,ON A ROLL SANDWICH COMPANY,391893,Commissioning & Asset Management,Children's & Education Services,103,Supplies and Services,504,Equipment,5023,Revenue,CATERING.FOOD & BEVERAGES
26-NOV-2021,7012465,4.55,ON A ROLL SANDWICH COMPANY,391893,Commissioning & Asset Management,Children's & Education Services,103,Supplies and Services,504,Equipment,5023,Revenue,CATERING.FOOD & BEVERAGES
26-NOV-2021,7012465,4.55,ON A ROLL SANDWICH COMPANY,391893,Commissioning & Asset Management,Children's & Education Services,103,Supplies and Services,504,Equipment,5023,Revenue,CATERING.FOOD & BEVERAGES
26-NOV-2021,7012465,4.55,ON A ROLL SANDWICH COMPANY,391893,Commissioning & Asset Management,Children's & Education Services,103,Supplies and Services,504,Equipment,5023,Revenue,CATERING.FOOD & BEVERAGES
26-NOV-2021,7012465,4.64,ON A ROLL SANDWICH COMPANY,391893,Commissioning & Asset Management,Children's & Education Services,103,Supplies and Services,504,Equipment,5023,Revenue,CATERING.FOOD & BEVERAGES
26-NOV-2021,7012465,4.64,ON A ROLL SANDWICH COMPANY,391893,Commissioning & Asset Management,Children's & Education Services,103,Supplies and Services,504,Equipment,5023,Revenue,CATERING.FOOD & BEVERAGES
26-NOV-2021,7012465,4.64,ON A ROLL SANDWICH COMPANY,391893,Commissioning & Asset Management,Children's & Education Services,103,Supplies and Services,504,Equipment,5023,Revenue,CATERING.FOOD & BEVERAGES
26-NOV-2021,7012465,4.7,ON A ROLL SANDWICH COMPANY,391893,Commissioning & Asset Management,Children's & Education Services,103,Supplies and Services,504,Equipment,5023,Revenue,CATERING.FOOD & BEVERAGES
26-NOV-2021,7012465,4.72,ON A ROLL SANDWICH COMPANY,391893,Commissioning & Asset Management,Children's & Education Services,103,Supplies and Services,504,Equipment,5023,Revenue,CATERING.FOOD & BEVERAGES
26-NOV-2021,7012465,4.72,ON A ROLL SANDWICH COMPANY,391893,Commissioning & Asset Management,Children's & Education Services,103,Supplies and Services,504,Equipment,5023,Revenue,CATERING.FOOD & BEVERAGES
26-NOV-2021,7012465,4.72,ON A ROLL SANDWICH COMPANY,391893,Commissioning & Asset Management,Children's & Education Services,103,Supplies and Services,504,Equipment,5023,Revenue,CATERING.FOOD & BEVERAGES
26-NOV-2021,7012465,4.72,ON A ROLL SANDWICH COMPANY,391893,Commissioning & Asset Management,Children's & Education Services,103,Supplies and Services,504,Equipment,5023,Revenue,CATERING.FOOD & BEVERAGES
26-NOV-2021,7012465,4.72,ON A ROLL SANDWICH COMPANY,391893,Commissioning & Asset Management,Children's & Education Services,103,Supplies and Services,504,Equipment,5023,Revenue,CATERING.FOOD & BEVERAGES
26-NOV-2021,7012465,4.72,ON A ROLL SANDWICH COMPANY,391893,Commissioning & Asset Management,Children's & Education Services,103,Supplies and Services,504,Equipment,5023,Revenue,CATERING.FOOD & BEVERAGES
26-NOV-2021,7012465,4.74,ON A ROLL SANDWICH COMPANY,391893,Commissioning & Asset Management,Children's & Education Services,103,Supplies and Services,504,Equipment,5023,Revenue,CATERING.FOOD & BEVERAGES
26-NOV-2021,7012465,4.74,ON A ROLL SANDWICH COMPANY,391893,Commissioning & Asset Management,Children's & Education Services,103,Supplies and Services,504,Equipment,5023,Revenue,CATERING.FOOD & BEVERAGES
26-NOV-2021,7012465,4.74,ON A ROLL SANDWICH COMPANY,391893,Commissioning & Asset Management,Children's & Education Services,103,Supplies and Services,504,Equipment,5023,Revenue,CATERING.FOOD & BEVERAGES
26-NOV-2021,7012465,4.74,ON A ROLL SANDWICH COMPANY,391893,Commissioning & Asset Management,Children's & Education Services,103,Supplies and Services,504,Equipment,5023,Revenue,CATERING.FOOD & BEVERAGES
26-NOV-2021,7012465,4.74,ON A ROLL SANDWICH COMPANY,391893,Commissioning & Asset Management,Children's & Education Services,103,Supplies and Services,504,Equipment,5023,Revenue,CATERING.FOOD & BEVERAGES
26-NOV-2021,7012465,4.74,ON A ROLL SANDWICH COMPANY,391893,Commissioning & Asset Management,Children's & Education Services,103,Supplies and Services,504,Equipment,5023,Revenue,CATERING.FOOD & BEVERAGES
26-NOV-2021,7012465,4.74,ON A ROLL SANDWICH COMPANY,391893,Commissioning & Asset Management,Children's & Education Services,103,Supplies and Services,504,Equipment,5023,Revenue,CATERING.FOOD & BEVERAGES
26-NOV-2021,7012465,4.74,ON A ROLL SANDWICH COMPANY,391893,Commissioning & Asset Management,Children's & Education Services,103,Supplies and Services,504,Equipment,5023,Revenue,CATERING.FOOD & BEVERAGES
26-NOV-2021,7012465,4.74,ON A ROLL SANDWICH COMPANY,391893,Commissioning & Asset Management,Children's & Education Services,103,Supplies and Services,504,Equipment,5023,Revenue,CATERING.FOOD & BEVERAGES
26-NOV-2021,7012465,4.74,ON A ROLL SANDWICH COMPANY,391893,Commissioning & Asset Management,Children's & Education Services,103,Supplies and Services,504,Equipment,5023,Revenue,CATERING.FOOD & BEVERAGES
26-NOV-2021,7012465,4.74,ON A ROLL SANDWICH COMPANY,391893,Commissioning & Asset Management,Children's & Education Services,103,Supplies and Services,504,Equipment,5023,Revenue,CATERING.FOOD & BEVERAGES
26-NOV-2021,7012465,4.74,ON A ROLL SANDWICH COMPANY,391893,Commissioning & Asset Management,Children's & Education Services,103,Supplies and Services,504,Equipment,5023,Revenue,CATERING.FOOD & BEVERAGES
26-NOV-2021,7012465,4.85,ON A ROLL SANDWICH COMPANY,391893,Commissioning & Asset Management,Children's & Education Services,103,Supplies and Services,504,Equipment,5023,Revenue,CATERING.FOOD & BEVERAGES
26-NOV-2021,7012465,4.92,ON A ROLL SANDWICH COMPANY,391893,Commissioning & Asset Management,Children's & Education Services,103,Supplies and Services,504,Equipment,5023,Revenue,CATERING.FOOD & BEVERAGES
26-NOV-2021,7012465,4.96,ON A ROLL SANDWICH COMPANY,391893,Commissioning & Asset Management,Children's & Education Services,103,Supplies and Services,504,Equipment,5023,Revenue,CATERING.FOOD & BEVERAGES
26-NOV-2021,7012465,4.96,ON A ROLL SANDWICH COMPANY,391893,Commissioning & Asset Management,Children's & Education Services,103,Supplies and Services,504,Equipment,5023,Revenue,CATERING.FOOD & BEVERAGES
26-NOV-2021,7012465,5.12,ON A ROLL SANDWICH COMPANY,391893,Commissioning & Asset Management,Children's & Education Services,103,Supplies and Services,504,Equipment,5023,Revenue,CATERING.FOOD & BEVERAGES
26-NOV-2021,7012465,5.24,ON A ROLL SANDWICH COMPANY,391893,Commissioning & Asset Management,Children's & Education Services,103,Supplies and Services,504,Equipment,5023,Revenue,CATERING.FOOD & BEVERAGES
26-NOV-2021,7012465,5.25,ON A ROLL SANDWICH COMPANY,391893,Commissioning & Asset Management,Children's & Education Services,103,Supplies and Services,504,Equipment,5023,Revenue,CATERING.FOOD & BEVERAGES
26-NOV-2021,7012465,5.28,ON A ROLL SANDWICH COMPANY,391893,Commissioning & Asset Management,Children's & Education Services,103,Supplies and Services,504,Equipment,5023,Revenue,CATERING.FOOD & BEVERAGES
26-NOV-2021,7012465,5.3,ON A ROLL SANDWICH COMPANY,391893,Commissioning & Asset Management,Children's & Education Services,103,Supplies and Services,504,Equipment,5023,Revenue,CATERING.FOOD & BEVERAGES
26-NOV-2021,7012465,5.32,ON A ROLL SANDWICH COMPANY,391893,Commissioning & Asset Management,Children's & Education Services,103,Supplies and Services,504,Equipment,5023,Revenue,CATERING.FOOD & BEVERAGES
26-NOV-2021,7012465,5.32,ON A ROLL SANDWICH COMPANY,391893,Commissioning & Asset Management,Children's & Education Services,103,Supplies and Services,504,Equipment,5023,Revenue,CATERING.FOOD & BEVERAGES
26-NOV-2021,7012465,5.32,ON A ROLL SANDWICH COMPANY,391893,Commissioning & Asset Management,Children's & Education Services,103,Supplies and Services,504,Equipment,5023,Revenue,CATERING.FOOD & BEVERAGES
26-NOV-2021,7012465,5.4,ON A ROLL SANDWICH COMPANY,391893,Commissioning & Asset Management,Children's & Education Services,103,Supplies and Services,504,Equipment,5023,Revenue,CATERING.FOOD & BEVERAGES
26-NOV-2021,7012465,5.4,ON A ROLL SANDWICH COMPANY,391893,Commissioning & Asset Management,Children's & Education Services,103,Supplies and Services,504,Equipment,5023,Revenue,CATERING.FOOD & BEVERAGES
26-NOV-2021,7012465,5.4,ON A ROLL SANDWICH COMPANY,391893,Commissioning & Asset Management,Children's & Education Services,103,Supplies and Services,504,Equipment,5023,Revenue,CATERING.FOOD & BEVERAGES
26-NOV-2021,7012465,5.46,ON A ROLL SANDWICH COMPANY,391893,Commissioning & Asset Management,Children's & Education Services,103,Supplies and Services,504,Equipment,5023,Revenue,CATERING.FOOD & BEVERAGES
26-NOV-2021,7012465,5.52,ON A ROLL SANDWICH COMPANY,391893,Commissioning & Asset Management,Children's & Education Services,103,Supplies and Services,504,Equipment,5023,Revenue,CATERING.FOOD & BEVERAGES
26-NOV-2021,7012465,5.52,ON A ROLL SANDWICH COMPANY,391893,Commissioning & Asset Management,Children's & Education Services,103,Supplies and Services,504,Equipment,5023,Revenue,CATERING.FOOD & BEVERAGES
26-NOV-2021,7012465,5.52,ON A ROLL SANDWICH COMPANY,391893,Commissioning & Asset Management,Children's & Education Services,103,Supplies and Services,504,Equipment,5023,Revenue,CATERING.FOOD & BEVERAGES
26-NOV-2021,7012465,5.52,ON A ROLL SANDWICH COMPANY,391893,Commissioning & Asset Management,Children's & Education Services,103,Supplies and Services,504,Equipment,5023,Revenue,CATERING.FOOD & BEVERAGES
26-NOV-2021,7012465,5.52,ON A ROLL SANDWICH COMPANY,391893,Commissioning & Asset Management,Children's & Education Services,103,Supplies and Services,504,Equipment,5023,Revenue,CATERING.FOOD & BEVERAGES
26-NOV-2021,7012465,5.52,ON A ROLL SANDWICH COMPANY,391893,Commissioning & Asset Management,Children's & Education Services,103,Supplies and Services,504,Equipment,5023,Revenue,CATERING.FOOD & BEVERAGES
26-NOV-2021,7012465,5.52,ON A ROLL SANDWICH COMPANY,391893,Commissioning & Asset Management,Children's & Education Services,103,Supplies and Services,504,Equipment,5023,Revenue,CATERING.FOOD & BEVERAGES
26-NOV-2021,7012465,5.53,ON A ROLL SANDWICH COMPANY,391893,Commissioning & Asset Management,Children's & Education Services,103,Supplies and Services,504,Equipment,5023,Revenue,CATERING.FOOD & BEVERAGES
26-NOV-2021,7012465,5.53,ON A ROLL SANDWICH COMPANY,391893,Commissioning & Asset Management,Children's & Education Services,103,Supplies and Services,504,Equipment,5023,Revenue,CATERING.FOOD & BEVERAGES
26-NOV-2021,7012465,5.53,ON A ROLL SANDWICH COMPANY,391893,Commissioning & Asset Management,Children's & Education Services,103,Supplies and Services,504,Equipment,5023,Revenue,CATERING.FOOD & BEVERAGES
26-NOV-2021,7012465,5.53,ON A ROLL SANDWICH COMPANY,391893,Commissioning & Asset Management,Children's & Education Services,103,Supplies and Services,504,Equipment,5023,Revenue,CATERING.FOOD & BEVERAGES
26-NOV-2021,7012465,5.53,ON A ROLL SANDWICH COMPANY,391893,Commissioning & Asset Management,Children's & Education Services,103,Supplies and Services,504,Equipment,5023,Revenue,CATERING.FOOD & BEVERAGES
26-NOV-2021,7012465,5.53,ON A ROLL SANDWICH COMPANY,391893,Commissioning & Asset Management,Children's & Education Services,103,Supplies and Services,504,Equipment,5023,Revenue,CATERING.FOOD & BEVERAGES
26-NOV-2021,7012465,5.53,ON A ROLL SANDWICH COMPANY,391893,Commissioning & Asset Management,Children's & Education Services,103,Supplies and Services,504,Equipment,5023,Revenue,CATERING.FOOD & BEVERAGES
26-NOV-2021,7012465,5.53,ON A ROLL SANDWICH COMPANY,391893,Commissioning & Asset Management,Children's & Education Services,103,Supplies and Services,504,Equipment,5023,Revenue,CATERING.FOOD & BEVERAGES
26-NOV-2021,7012465,5.53,ON A ROLL SANDWICH COMPANY,391893,Commissioning & Asset Management,Children's & Education Services,103,Supplies and Services,504,Equipment,5023,Revenue,CATERING.FOOD & BEVERAGES
26-NOV-2021,7012465,5.55,ON A ROLL SANDWICH COMPANY,391893,Commissioning & Asset Management,Children's & Education Services,103,Supplies and Services,504,Equipment,5023,Revenue,CATERING.FOOD & BEVERAGES
26-NOV-2021,7012465,5.55,ON A ROLL SANDWICH COMPANY,391893,Commissioning & Asset Management,Children's & Education Services,103,Supplies and Services,504,Equipment,5023,Revenue,CATERING.FOOD & BEVERAGES
26-NOV-2021,7012465,5.56,ON A ROLL SANDWICH COMPANY,391893,Commissioning & Asset Management,Children's & Education Services,103,Supplies and Services,504,Equipment,5023,Revenue,CATERING.FOOD & BEVERAGES
26-NOV-2021,7012465,5.56,ON A ROLL SANDWICH COMPANY,391893,Commissioning & Asset Management,Children's & Education Services,103,Supplies and Services,504,Equipment,5023,Revenue,CATERING.FOOD & BEVERAGES
26-NOV-2021,7012465,5.56,ON A ROLL SANDWICH COMPANY,391893,Commissioning & Asset Management,Children's & Education Services,103,Supplies and Services,504,Equipment,5023,Revenue,CATERING.FOOD & BEVERAGES
26-NOV-2021,7012465,5.56,ON A ROLL SANDWICH COMPANY,391893,Commissioning & Asset Management,Children's & Education Services,103,Supplies and Services,504,Equipment,5023,Revenue,CATERING.FOOD & BEVERAGES
26-NOV-2021,7012465,5.6,ON A ROLL SANDWICH COMPANY,391893,Commissioning & Asset Management,Children's & Education Services,103,Supplies and Services,504,Equipment,5023,Revenue,CATERING.FOOD & BEVERAGES
26-NOV-2021,7012465,5.64,ON A ROLL SANDWICH COMPANY,391893,Commissioning & Asset Management,Children's & Education Services,103,Supplies and Services,504,Equipment,5023,Revenue,CATERING.FOOD & BEVERAGES
26-NOV-2021,7012465,5.64,ON A ROLL SANDWICH COMPANY,391893,Commissioning & Asset Management,Children's & Education Services,103,Supplies and Services,504,Equipment,5023,Revenue,CATERING.FOOD & BEVERAGES
26-NOV-2021,7012465,5.64,ON A ROLL SANDWICH COMPANY,391893,Commissioning & Asset Management,Children's & Education Services,103,Supplies and Services,504,Equipment,5023,Revenue,CATERING.FOOD & BEVERAGES
26-NOV-2021,7012465,5.64,ON A ROLL SANDWICH COMPANY,391893,Commissioning & Asset Management,Children's & Education Services,103,Supplies and Services,504,Equipment,5023,Revenue,CATERING.FOOD & BEVERAGES
26-NOV-2021,7012465,5.64,ON A ROLL SANDWICH COMPANY,391893,Commissioning & Asset Management,Children's & Education Services,103,Supplies and Services,504,Equipment,5023,Revenue,CATERING.FOOD & BEVERAGES
26-NOV-2021,7012465,5.65,ON A ROLL SANDWICH COMPANY,391893,Commissioning & Asset Management,Children's & Education Services,103,Supplies and Services,504,Equipment,5023,Revenue,CATERING.FOOD & BEVERAGES
26-NOV-2021,7012465,5.65,ON A ROLL SANDWICH COMPANY,391893,Commissioning & Asset Management,Children's & Education Services,103,Supplies and Services,504,Equipment,5023,Revenue,CATERING.FOOD & BEVERAGES
26-NOV-2021,7012465,5.65,ON A ROLL SANDWICH COMPANY,391893,Commissioning & Asset Management,Children's & Education Services,103,Supplies and Services,504,Equipment,5023,Revenue,CATERING.FOOD & BEVERAGES
26-NOV-2021,7012465,5.65,ON A ROLL SANDWICH COMPANY,391893,Commissioning & Asset Management,Children's & Education Services,103,Supplies and Services,504,Equipment,5023,Revenue,CATERING.FOOD & BEVERAGES
26-NOV-2021,7012465,5.65,ON A ROLL SANDWICH COMPANY,391893,Commissioning & Asset Management,Children's & Education Services,103,Supplies and Services,504,Equipment,5023,Revenue,CATERING.FOOD & BEVERAGES
26-NOV-2021,7012465,5.76,ON A ROLL SANDWICH COMPANY,391893,Commissioning & Asset Management,Children's & Education Services,103,Supplies and Services,504,Equipment,5023,Revenue,CATERING.FOOD & BEVERAGES
26-NOV-2021,7012465,5.8,ON A ROLL SANDWICH COMPANY,391893,Commissioning & Asset Management,Children's & Education Services,103,Supplies and Services,504,Equipment,5023,Revenue,CATERING.FOOD & BEVERAGES
26-NOV-2021,7012465,5.8,ON A ROLL SANDWICH COMPANY,391893,Commissioning & Asset Management,Children's & Education Services,103,Supplies and Services,504,Equipment,5023,Revenue,CATERING.FOOD & BEVERAGES
26-NOV-2021,7012465,6.15,ON A ROLL SANDWICH COMPANY,391893,Commissioning & Asset Management,Children's & Education Services,103,Supplies and Services,504,Equipment,5023,Revenue,CATERING.FOOD & BEVERAGES
26-NOV-2021,7012465,6.2,ON A ROLL SANDWICH COMPANY,391893,Commissioning & Asset Management,Children's & Education Services,103,Supplies and Services,504,Equipment,5023,Revenue,CATERING.FOOD & BEVERAGES
26-NOV-2021,7012465,6.2,ON A ROLL SANDWICH COMPANY,391893,Commissioning & Asset Management,Children's & Education Services,103,Supplies and Services,504,Equipment,5023,Revenue,CATERING.FOOD & BEVERAGES
26-NOV-2021,7012465,6.2,ON A ROLL SANDWICH COMPANY,391893,Commissioning & Asset Management,Children's & Education Services,103,Supplies and Services,504,Equipment,5023,Revenue,CATERING.FOOD & BEVERAGES
26-NOV-2021,7012465,6.32,ON A ROLL SANDWICH COMPANY,391893,Commissioning & Asset Management,Children's & Education Services,103,Supplies and Services,504,Equipment,5023,Revenue,CATERING.FOOD & BEVERAGES
26-NOV-2021,7012465,6.32,ON A ROLL SANDWICH COMPANY,391893,Commissioning & Asset Management,Children's & Education Services,103,Supplies and Services,504,Equipment,5023,Revenue,CATERING.FOOD & BEVERAGES
26-NOV-2021,7012465,6.32,ON A ROLL SANDWICH COMPANY,391893,Commissioning & Asset Management,Children's & Education Services,103,Supplies and Services,504,Equipment,5023,Revenue,CATERING.FOOD & BEVERAGES
26-NOV-2021,7012465,6.32,ON A ROLL SANDWICH COMPANY,391893,Commissioning & Asset Management,Children's & Education Services,103,Supplies and Services,504,Equipment,5023,Revenue,CATERING.FOOD & BEVERAGES
26-NOV-2021,7012465,6.32,ON A ROLL SANDWICH COMPANY,391893,Commissioning & Asset Management,Children's & Education Services,103,Supplies and Services,504,Equipment,5023,Revenue,CATERING.FOOD & BEVERAGES
26-NOV-2021,7012465,6.32,ON A ROLL SANDWICH COMPANY,391893,Commissioning & Asset Management,Children's & Education Services,103,Supplies and Services,504,Equipment,5023,Revenue,CATERING.FOOD & BEVERAGES
26-NOV-2021,7012465,6.32,ON A ROLL SANDWICH COMPANY,391893,Commissioning & Asset Management,Children's & Education Services,103,Supplies and Services,504,Equipment,5023,Revenue,CATERING.FOOD & BEVERAGES
26-NOV-2021,7012465,6.32,ON A ROLL SANDWICH COMPANY,391893,Commissioning & Asset Management,Children's & Education Services,103,Supplies and Services,504,Equipment,5023,Revenue,CATERING.FOOD & BEVERAGES
26-NOV-2021,7012465,6.36,ON A ROLL SANDWICH COMPANY,391893,Commissioning & Asset Management,Children's & Education Services,103,Supplies and Services,504,Equipment,5023,Revenue,CATERING.FOOD & BEVERAGES
26-NOV-2021,7012465,6.36,ON A ROLL SANDWICH COMPANY,391893,Commissioning & Asset Management,Children's & Education Services,103,Supplies and Services,504,Equipment,5023,Revenue,CATERING.FOOD & BEVERAGES
26-NOV-2021,7012465,6.4,ON A ROLL SANDWICH COMPANY,391893,Commissioning & Asset Management,Children's & Education Services,103,Supplies and Services,504,Equipment,5023,Revenue,CATERING.FOOD & BEVERAGES
26-NOV-2021,7012465,6.4,ON A ROLL SANDWICH COMPANY,391893,Commissioning & Asset Management,Children's & Education Services,103,Supplies and Services,504,Equipment,5023,Revenue,CATERING.FOOD & BEVERAGES
26-NOV-2021,7012465,6.4,ON A ROLL SANDWICH COMPANY,391893,Commissioning & Asset Management,Children's & Education Services,103,Supplies and Services,504,Equipment,5023,Revenue,CATERING.FOOD & BEVERAGES
26-NOV-2021,7012465,6.42,ON A ROLL SANDWICH COMPANY,391893,Commissioning & Asset Management,Children's & Education Services,103,Supplies and Services,504,Equipment,5023,Revenue,CATERING.FOOD & BEVERAGES
26-NOV-2021,7012465,6.42,ON A ROLL SANDWICH COMPANY,391893,Commissioning & Asset Management,Children's & Education Services,103,Supplies and Services,504,Equipment,5023,Revenue,CATERING.FOOD & BEVERAGES
26-NOV-2021,7012465,6.48,ON A ROLL SANDWICH COMPANY,391893,Commissioning & Asset Management,Children's & Education Services,103,Supplies and Services,504,Equipment,5023,Revenue,CATERING.FOOD & BEVERAGES
26-NOV-2021,7012465,6.48,ON A ROLL SANDWICH COMPANY,391893,Commissioning & Asset Management,Children's & Education Services,103,Supplies and Services,504,Equipment,5023,Revenue,CATERING.FOOD & BEVERAGES
26-NOV-2021,7012465,6.54,ON A ROLL SANDWICH COMPANY,391893,Commissioning & Asset Management,Children's & Education Services,103,Supplies and Services,504,Equipment,5023,Revenue,CATERING.FOOD & BEVERAGES
26-NOV-2021,7012465,6.6,ON A ROLL SANDWICH COMPANY,391893,Commissioning & Asset Management,Children's & Education Services,103,Supplies and Services,504,Equipment,5023,Revenue,CATERING.FOOD & BEVERAGES
26-NOV-2021,7012465,6.6,ON A ROLL SANDWICH COMPANY,391893,Commissioning & Asset Management,Children's & Education Services,103,Supplies and Services,504,Equipment,5023,Revenue,CATERING.FOOD & BEVERAGES
26-NOV-2021,7012465,6.65,ON A ROLL SANDWICH COMPANY,391893,Commissioning & Asset Management,Children's & Education Services,103,Supplies and Services,504,Equipment,5023,Revenue,CATERING.FOOD & BEVERAGES
26-NOV-2021,7012465,6.66,ON A ROLL SANDWICH COMPANY,391893,Commissioning & Asset Management,Children's & Education Services,103,Supplies and Services,504,Equipment,5023,Revenue,CATERING.FOOD & BEVERAGES
26-NOV-2021,7012465,6.66,ON A ROLL SANDWICH COMPANY,391893,Commissioning & Asset Management,Children's & Education Services,103,Supplies and Services,504,Equipment,5023,Revenue,CATERING.FOOD & BEVERAGES
26-NOV-2021,7012465,6.66,ON A ROLL SANDWICH COMPANY,391893,Commissioning & Asset Management,Children's & Education Services,103,Supplies and Services,504,Equipment,5023,Revenue,CATERING.FOOD & BEVERAGES
26-NOV-2021,7012465,6.72,ON A ROLL SANDWICH COMPANY,391893,Commissioning & Asset Management,Children's & Education Services,103,Supplies and Services,504,Equipment,5023,Revenue,CATERING.FOOD & BEVERAGES
26-NOV-2021,7012465,6.72,ON A ROLL SANDWICH COMPANY,391893,Commissioning & Asset Management,Children's & Education Services,103,Supplies and Services,504,Equipment,5023,Revenue,CATERING.FOOD & BEVERAGES
26-NOV-2021,7012465,6.78,ON A ROLL SANDWICH COMPANY,391893,Commissioning & Asset Management,Children's & Education Services,103,Supplies and Services,504,Equipment,5023,Revenue,CATERING.FOOD & BEVERAGES
26-NOV-2021,7012465,6.78,ON A ROLL SANDWICH COMPANY,391893,Commissioning & Asset Management,Children's & Education Services,103,Supplies and Services,504,Equipment,5023,Revenue,CATERING.FOOD & BEVERAGES
26-NOV-2021,7012465,6.78,ON A ROLL SANDWICH COMPANY,391893,Commissioning & Asset Management,Children's & Education Services,103,Supplies and Services,504,Equipment,5023,Revenue,CATERING.FOOD & BEVERAGES
26-NOV-2021,7012465,6.78,ON A ROLL SANDWICH COMPANY,391893,Commissioning & Asset Management,Children's & Education Services,103,Supplies and Services,504,Equipment,5023,Revenue,CATERING.FOOD & BEVERAGES
26-NOV-2021,7012465,6.78,ON A ROLL SANDWICH COMPANY,391893,Commissioning & Asset Management,Children's & Education Services,103,Supplies and Services,504,Equipment,5023,Revenue,CATERING.FOOD & BEVERAGES
26-NOV-2021,7012465,6.79,ON A ROLL SANDWICH COMPANY,391893,Commissioning & Asset Management,Children's & Education Services,103,Supplies and Services,504,Equipment,5023,Revenue,CATERING.FOOD & BEVERAGES
26-NOV-2021,7012465,6.8,ON A ROLL SANDWICH COMPANY,391893,Commissioning & Asset Management,Children's & Education Services,103,Supplies and Services,504,Equipment,5023,Revenue,CATERING.FOOD & BEVERAGES
26-NOV-2021,7012465,6.9,ON A ROLL SANDWICH COMPANY,391893,Commissioning & Asset Management,Children's & Education Services,103,Supplies and Services,504,Equipment,5023,Revenue,CATERING.FOOD & BEVERAGES
26-NOV-2021,7012465,6.9,ON A ROLL SANDWICH COMPANY,391893,Commissioning & Asset Management,Children's & Education Services,103,Supplies and Services,504,Equipment,5023,Revenue,CATERING.FOOD & BEVERAGES
26-NOV-2021,7012465,6.9,ON A ROLL SANDWICH COMPANY,391893,Commissioning & Asset Management,Children's & Education Services,103,Supplies and Services,504,Equipment,5023,Revenue,CATERING.FOOD & BEVERAGES
26-NOV-2021,7012465,6.9,ON A ROLL SANDWICH COMPANY,391893,Commissioning & Asset Management,Children's & Education Services,103,Supplies and Services,504,Equipment,5023,Revenue,CATERING.FOOD & BEVERAGES
26-NOV-2021,7012465,6.95,ON A ROLL SANDWICH COMPANY,391893,Commissioning & Asset Management,Children's & Education Services,103,Supplies and Services,504,Equipment,5023,Revenue,CATERING.FOOD & BEVERAGES
26-NOV-2021,7012465,6.95,ON A ROLL SANDWICH COMPANY,391893,Commissioning & Asset Management,Children's & Education Services,103,Supplies and Services,504,Equipment,5023,Revenue,CATERING.FOOD & BEVERAGES
26-NOV-2021,7012465,6.95,ON A ROLL SANDWICH COMPANY,391893,Commissioning & Asset Management,Children's & Education Services,103,Supplies and Services,504,Equipment,5023,Revenue,CATERING.FOOD & BEVERAGES
26-NOV-2021,7012465,6.95,ON A ROLL SANDWICH COMPANY,391893,Commissioning & Asset Management,Children's & Education Services,103,Supplies and Services,504,Equipment,5023,Revenue,CATERING.FOOD & BEVERAGES
26-NOV-2021,7012465,6.95,ON A ROLL SANDWICH COMPANY,391893,Commissioning & Asset Management,Children's & Education Services,103,Supplies and Services,504,Equipment,5023,Revenue,CATERING.FOOD & BEVERAGES
26-NOV-2021,7012465,6.95,ON A ROLL SANDWICH COMPANY,391893,Commissioning & Asset Management,Children's & Education Services,103,Supplies and Services,504,Equipment,5023,Revenue,CATERING.FOOD & BEVERAGES
26-NOV-2021,7012465,6.95,ON A ROLL SANDWICH COMPANY,391893,Commissioning & Asset Management,Children's & Education Services,103,Supplies and Services,504,Equipment,5023,Revenue,CATERING.FOOD & BEVERAGES
26-NOV-2021,7012465,6.96,ON A ROLL SANDWICH COMPANY,391893,Commissioning & Asset Management,Children's & Education Services,103,Supplies and Services,504,Equipment,5023,Revenue,CATERING.FOOD & BEVERAGES
26-NOV-2021,7012465,6.96,ON A ROLL SANDWICH COMPANY,391893,Commissioning & Asset Management,Children's & Education Services,103,Supplies and Services,504,Equipment,5023,Revenue,CATERING.FOOD & BEVERAGES
26-NOV-2021,7012465,6.96,ON A ROLL SANDWICH COMPANY,391893,Commissioning & Asset Management,Children's & Education Services,103,Supplies and Services,504,Equipment,5023,Revenue,CATERING.FOOD & BEVERAGES
26-NOV-2021,7012465,7.05,ON A ROLL SANDWICH COMPANY,391893,Commissioning & Asset Management,Children's & Education Services,103,Supplies and Services,504,Equipment,5023,Revenue,CATERING.FOOD & BEVERAGES
26-NOV-2021,7012465,7.05,ON A ROLL SANDWICH COMPANY,391893,Commissioning & Asset Management,Children's & Education Services,103,Supplies and Services,504,Equipment,5023,Revenue,CATERING.FOOD & BEVERAGES
26-NOV-2021,7012465,7.08,ON A ROLL SANDWICH COMPANY,391893,Commissioning & Asset Management,Children's & Education Services,103,Supplies and Services,504,Equipment,5023,Revenue,CATERING.FOOD & BEVERAGES
26-NOV-2021,7012465,7.08,ON A ROLL SANDWICH COMPANY,391893,Commissioning & Asset Management,Children's & Education Services,103,Supplies and Services,504,Equipment,5023,Revenue,CATERING.FOOD & BEVERAGES
26-NOV-2021,7012465,7.08,ON A ROLL SANDWICH COMPANY,391893,Commissioning & Asset Management,Children's & Education Services,103,Supplies and Services,504,Equipment,5023,Revenue,CATERING.FOOD & BEVERAGES
26-NOV-2021,7012465,7.11,ON A ROLL SANDWICH COMPANY,391893,Commissioning & Asset Management,Children's & Education Services,103,Supplies and Services,504,Equipment,5023,Revenue,CATERING.FOOD & BEVERAGES
26-NOV-2021,7012465,7.11,ON A ROLL SANDWICH COMPANY,391893,Commissioning & Asset Management,Children's & Education Services,103,Supplies and Services,504,Equipment,5023,Revenue,CATERING.FOOD & BEVERAGES
26-NOV-2021,7012465,7.11,ON A ROLL SANDWICH COMPANY,391893,Commissioning & Asset Management,Children's & Education Services,103,Supplies and Services,504,Equipment,5023,Revenue,CATERING.FOOD & BEVERAGES
26-NOV-2021,7012465,7.2,ON A ROLL SANDWICH COMPANY,391893,Commissioning & Asset Management,Children's & Education Services,103,Supplies and Services,504,Equipment,5023,Revenue,CATERING.FOOD & BEVERAGES
26-NOV-2021,7012465,7.28,ON A ROLL SANDWICH COMPANY,391893,Commissioning & Asset Management,Children's & Education Services,103,Supplies and Services,504,Equipment,5023,Revenue,CATERING.FOOD & BEVERAGES
26-NOV-2021,7012465,7.28,ON A ROLL SANDWICH COMPANY,391893,Commissioning & Asset Management,Children's & Education Services,103,Supplies and Services,504,Equipment,5023,Revenue,CATERING.FOOD & BEVERAGES
26-NOV-2021,7012465,7.28,ON A ROLL SANDWICH COMPANY,391893,Commissioning & Asset Management,Children's & Education Services,103,Supplies and Services,504,Equipment,5023,Revenue,CATERING.FOOD & BEVERAGES
26-NOV-2021,7012465,7.28,ON A ROLL SANDWICH COMPANY,391893,Commissioning & Asset Management,Children's & Education Services,103,Supplies and Services,504,Equipment,5023,Revenue,CATERING.FOOD & BEVERAGES
26-NOV-2021,7012465,7.28,ON A ROLL SANDWICH COMPANY,391893,Commissioning & Asset Management,Children's & Education Services,103,Supplies and Services,504,Equipment,5023,Revenue,CATERING.FOOD & BEVERAGES
26-NOV-2021,7012465,7.38,ON A ROLL SANDWICH COMPANY,391893,Commissioning & Asset Management,Children's & Education Services,103,Supplies and Services,504,Equipment,5023,Revenue,CATERING.FOOD & BEVERAGES
26-NOV-2021,7012465,7.44,ON A ROLL SANDWICH COMPANY,391893,Commissioning & Asset Management,Children's & Education Services,103,Supplies and Services,504,Equipment,5023,Revenue,CATERING.FOOD & BEVERAGES
26-NOV-2021,7012465,7.68,ON A ROLL SANDWICH COMPANY,391893,Commissioning & Asset Management,Children's & Education Services,103,Supplies and Services,504,Equipment,5023,Revenue,CATERING.FOOD & BEVERAGES
26-NOV-2021,7012465,7.68,ON A ROLL SANDWICH COMPANY,391893,Commissioning & Asset Management,Children's & Education Services,103,Supplies and Services,504,Equipment,5023,Revenue,CATERING.FOOD & BEVERAGES
26-NOV-2021,7012465,7.75,ON A ROLL SANDWICH COMPANY,391893,Commissioning & Asset Management,Children's & Education Services,103,Supplies and Services,504,Equipment,5023,Revenue,CATERING.FOOD & BEVERAGES
26-NOV-2021,7012465,7.75,ON A ROLL SANDWICH COMPANY,391893,Commissioning & Asset Management,Children's & Education Services,103,Supplies and Services,504,Equipment,5023,Revenue,CATERING.FOOD & BEVERAGES
26-NOV-2021,7012465,7.75,ON A ROLL SANDWICH COMPANY,391893,Commissioning & Asset Management,Children's & Education Services,103,Supplies and Services,504,Equipment,5023,Revenue,CATERING.FOOD & BEVERAGES
26-NOV-2021,7012465,7.75,ON A ROLL SANDWICH COMPANY,391893,Commissioning & Asset Management,Children's & Education Services,103,Supplies and Services,504,Equipment,5023,Revenue,CATERING.FOOD & BEVERAGES
26-NOV-2021,7012465,7.76,ON A ROLL SANDWICH COMPANY,391893,Commissioning & Asset Management,Children's & Education Services,103,Supplies and Services,504,Equipment,5023,Revenue,CATERING.FOOD & BEVERAGES
26-NOV-2021,7012465,7.77,ON A ROLL SANDWICH COMPANY,391893,Commissioning & Asset Management,Children's & Education Services,103,Supplies and Services,504,Equipment,5023,Revenue,CATERING.FOOD & BEVERAGES
26-NOV-2021,7012465,7.86,ON A ROLL SANDWICH COMPANY,391893,Commissioning & Asset Management,Children's & Education Services,103,Supplies and Services,504,Equipment,5023,Revenue,CATERING.FOOD & BEVERAGES
26-NOV-2021,7012465,7.9,ON A ROLL SANDWICH COMPANY,391893,Commissioning & Asset Management,Children's & Education Services,103,Supplies and Services,504,Equipment,5023,Revenue,CATERING.FOOD & BEVERAGES
26-NOV-2021,7012465,7.9,ON A ROLL SANDWICH COMPANY,391893,Commissioning & Asset Management,Children's & Education Services,103,Supplies and Services,504,Equipment,5023,Revenue,CATERING.FOOD & BEVERAGES
26-NOV-2021,7012465,7.9,ON A ROLL SANDWICH COMPANY,391893,Commissioning & Asset Management,Children's & Education Services,103,Supplies and Services,504,Equipment,5023,Revenue,CATERING.FOOD & BEVERAGES
26-NOV-2021,7012465,7.9,ON A ROLL SANDWICH COMPANY,391893,Commissioning & Asset Management,Children's & Education Services,103,Supplies and Services,504,Equipment,5023,Revenue,CATERING.FOOD & BEVERAGES
26-NOV-2021,7012465,7.9,ON A ROLL SANDWICH COMPANY,391893,Commissioning & Asset Management,Children's & Education Services,103,Supplies and Services,504,Equipment,5023,Revenue,CATERING.FOOD & BEVERAGES
26-NOV-2021,7012465,7.9,ON A ROLL SANDWICH COMPANY,391893,Commissioning & Asset Management,Children's & Education Services,103,Supplies and Services,504,Equipment,5023,Revenue,CATERING.FOOD & BEVERAGES
26-NOV-2021,7012465,7.9,ON A ROLL SANDWICH COMPANY,391893,Commissioning & Asset Management,Children's & Education Services,103,Supplies and Services,504,Equipment,5023,Revenue,CATERING.FOOD & BEVERAGES
26-NOV-2021,7012465,7.9,ON A ROLL SANDWICH COMPANY,391893,Commissioning & Asset Management,Children's & Education Services,103,Supplies and Services,504,Equipment,5023,Revenue,CATERING.FOOD & BEVERAGES
26-NOV-2021,7012465,7.9,ON A ROLL SANDWICH COMPANY,391893,Commissioning & Asset Management,Children's & Education Services,103,Supplies and Services,504,Equipment,5023,Revenue,CATERING.FOOD & BEVERAGES
26-NOV-2021,7012465,7.9,ON A ROLL SANDWICH COMPANY,391893,Commissioning & Asset Management,Children's & Education Services,103,Supplies and Services,504,Equipment,5023,Revenue,CATERING.FOOD & BEVERAGES
26-NOV-2021,7012465,7.9,ON A ROLL SANDWICH COMPANY,391893,Commissioning & Asset Management,Children's & Education Services,103,Supplies and Services,504,Equipment,5023,Revenue,CATERING.FOOD & BEVERAGES
26-NOV-2021,7012465,7.9,ON A ROLL SANDWICH COMPANY,391893,Commissioning & Asset Management,Children's & Education Services,103,Supplies and Services,504,Equipment,5023,Revenue,CATERING.FOOD & BEVERAGES
26-NOV-2021,7012465,7.9,ON A ROLL SANDWICH COMPANY,391893,Commissioning & Asset Management,Children's & Education Services,103,Supplies and Services,504,Equipment,5023,Revenue,CATERING.FOOD & BEVERAGES
26-NOV-2021,7012465,7.9,ON A ROLL SANDWICH COMPANY,391893,Commissioning & Asset Management,Children's & Education Services,103,Supplies and Services,504,Equipment,5023,Revenue,CATERING.FOOD & BEVERAGES
26-NOV-2021,7012465,7.9,ON A ROLL SANDWICH COMPANY,391893,Commissioning & Asset Management,Children's & Education Services,103,Supplies and Services,504,Equipment,5023,Revenue,CATERING.FOOD & BEVERAGES
26-NOV-2021,7012465,7.9,ON A ROLL SANDWICH COMPANY,391893,Commissioning & Asset Management,Children's & Education Services,103,Supplies and Services,504,Equipment,5023,Revenue,CATERING.FOOD & BEVERAGES
26-NOV-2021,7012465,7.9,ON A ROLL SANDWICH COMPANY,391893,Commissioning & Asset Management,Children's & Education Services,103,Supplies and Services,504,Equipment,5023,Revenue,CATERING.FOOD & BEVERAGES
26-NOV-2021,7012465,7.9,ON A ROLL SANDWICH COMPANY,391893,Commissioning & Asset Management,Children's & Education Services,103,Supplies and Services,504,Equipment,5023,Revenue,CATERING.FOOD & BEVERAGES
26-NOV-2021,7012465,7.9,ON A ROLL SANDWICH COMPANY,391893,Commissioning & Asset Management,Children's & Education Services,103,Supplies and Services,504,Equipment,5023,Revenue,CATERING.FOOD & BEVERAGES
26-NOV-2021,7012465,7.9,ON A ROLL SANDWICH COMPANY,391893,Commissioning & Asset Management,Children's & Education Services,103,Supplies and Services,504,Equipment,5023,Revenue,CATERING.FOOD & BEVERAGES
26-NOV-2021,7012465,7.9,ON A ROLL SANDWICH COMPANY,391893,Commissioning & Asset Management,Children's & Education Services,103,Supplies and Services,504,Equipment,5023,Revenue,CATERING.FOOD & BEVERAGES
26-NOV-2021,7012465,7.9,ON A ROLL SANDWICH COMPANY,391893,Commissioning & Asset Management,Children's & Education Services,103,Supplies and Services,504,Equipment,5023,Revenue,CATERING.FOOD & BEVERAGES
26-NOV-2021,7012465,7.9,ON A ROLL SANDWICH COMPANY,391893,Commissioning & Asset Management,Children's & Education Services,103,Supplies and Services,504,Equipment,5023,Revenue,CATERING.FOOD & BEVERAGES
26-NOV-2021,7012465,7.9,ON A ROLL SANDWICH COMPANY,391893,Commissioning & Asset Management,Children's & Education Services,103,Supplies and Services,504,Equipment,5023,Revenue,CATERING.FOOD & BEVERAGES
26-NOV-2021,7012465,7.9,ON A ROLL SANDWICH COMPANY,391893,Commissioning & Asset Management,Children's & Education Services,103,Supplies and Services,504,Equipment,5023,Revenue,CATERING.FOOD & BEVERAGES
26-NOV-2021,7012465,7.9,ON A ROLL SANDWICH COMPANY,391893,Commissioning & Asset Management,Children's & Education Services,103,Supplies and Services,504,Equipment,5023,Revenue,CATERING.FOOD & BEVERAGES
26-NOV-2021,7012465,7.9,ON A ROLL SANDWICH COMPANY,391893,Commissioning & Asset Management,Children's & Education Services,103,Supplies and Services,504,Equipment,5023,Revenue,CATERING.FOOD & BEVERAGES
26-NOV-2021,7012465,7.9,ON A ROLL SANDWICH COMPANY,391893,Commissioning & Asset Management,Children's & Education Services,103,Supplies and Services,504,Equipment,5023,Revenue,CATERING.FOOD & BEVERAGES
26-NOV-2021,7012465,7.9,ON A ROLL SANDWICH COMPANY,391893,Commissioning & Asset Management,Children's & Education Services,103,Supplies and Services,504,Equipment,5023,Revenue,CATERING.FOOD & BEVERAGES
26-NOV-2021,7012465,7.9,ON A ROLL SANDWICH COMPANY,391893,Commissioning & Asset Management,Children's & Education Services,103,Supplies and Services,504,Equipment,5023,Revenue,CATERING.FOOD & BEVERAGES
26-NOV-2021,7012465,7.9,ON A ROLL SANDWICH COMPANY,391893,Commissioning & Asset Management,Children's & Education Services,103,Supplies and Services,504,Equipment,5023,Revenue,CATERING.FOOD & BEVERAGES
26-NOV-2021,7012465,7.91,ON A ROLL SANDWICH COMPANY,391893,Commissioning & Asset Management,Children's & Education Services,103,Supplies and Services,504,Equipment,5023,Revenue,CATERING.FOOD & BEVERAGES
26-NOV-2021,7012465,7.92,ON A ROLL SANDWICH COMPANY,391893,Commissioning & Asset Management,Children's & Education Services,103,Supplies and Services,504,Equipment,5023,Revenue,CATERING.FOOD & BEVERAGES
26-NOV-2021,7012465,7.98,ON A ROLL SANDWICH COMPANY,391893,Commissioning & Asset Management,Children's & Education Services,103,Supplies and Services,504,Equipment,5023,Revenue,CATERING.FOOD & BEVERAGES
26-NOV-2021,7012465,7.98,ON A ROLL SANDWICH COMPANY,391893,Commissioning & Asset Management,Children's & Education Services,103,Supplies and Services,504,Equipment,5023,Revenue,CATERING.FOOD & BEVERAGES
26-NOV-2021,7012465,8,ON A ROLL SANDWICH COMPANY,391893,Commissioning & Asset Management,Children's & Education Services,103,Supplies and Services,504,Equipment,5023,Revenue,CATERING.FOOD & BEVERAGES
26-NOV-2021,7012465,8,ON A ROLL SANDWICH COMPANY,391893,Commissioning & Asset Management,Children's & Education Services,103,Supplies and Services,504,Equipment,5023,Revenue,CATERING.FOOD & BEVERAGES
26-NOV-2021,7012465,8,ON A ROLL SANDWICH COMPANY,391893,Commissioning & Asset Management,Children's & Education Services,103,Supplies and Services,504,Equipment,5023,Revenue,CATERING.FOOD & BEVERAGES
26-NOV-2021,7012465,8.1,ON A ROLL SANDWICH COMPANY,391893,Commissioning & Asset Management,Children's & Education Services,103,Supplies and Services,504,Equipment,5023,Revenue,CATERING.FOOD & BEVERAGES
26-NOV-2021,7012465,8.1,ON A ROLL SANDWICH COMPANY,391893,Commissioning & Asset Management,Children's & Education Services,103,Supplies and Services,504,Equipment,5023,Revenue,CATERING.FOOD & BEVERAGES
26-NOV-2021,7012465,8.12,ON A ROLL SANDWICH COMPANY,391893,Commissioning & Asset Management,Children's & Education Services,103,Supplies and Services,504,Equipment,5023,Revenue,CATERING.FOOD & BEVERAGES
26-NOV-2021,7012465,8.12,ON A ROLL SANDWICH COMPANY,391893,Commissioning & Asset Management,Children's & Education Services,103,Supplies and Services,504,Equipment,5023,Revenue,CATERING.FOOD & BEVERAGES
26-NOV-2021,7012465,8.12,ON A ROLL SANDWICH COMPANY,391893,Commissioning & Asset Management,Children's & Education Services,103,Supplies and Services,504,Equipment,5023,Revenue,CATERING.FOOD & BEVERAGES
26-NOV-2021,7012465,8.16,ON A ROLL SANDWICH COMPANY,391893,Commissioning & Asset Management,Children's & Education Services,103,Supplies and Services,504,Equipment,5023,Revenue,CATERING.FOOD & BEVERAGES
26-NOV-2021,7012465,8.16,ON A ROLL SANDWICH COMPANY,391893,Commissioning & Asset Management,Children's & Education Services,103,Supplies and Services,504,Equipment,5023,Revenue,CATERING.FOOD & BEVERAGES
26-NOV-2021,7012465,8.16,ON A ROLL SANDWICH COMPANY,391893,Commissioning & Asset Management,Children's & Education Services,103,Supplies and Services,504,Equipment,5023,Revenue,CATERING.FOOD & BEVERAGES
26-NOV-2021,7012465,8.26,ON A ROLL SANDWICH COMPANY,391893,Commissioning & Asset Management,Children's & Education Services,103,Supplies and Services,504,Equipment,5023,Revenue,CATERING.FOOD & BEVERAGES
26-NOV-2021,7012465,8.28,ON A ROLL SANDWICH COMPANY,391893,Commissioning & Asset Management,Children's & Education Services,103,Supplies and Services,504,Equipment,5023,Revenue,CATERING.FOOD & BEVERAGES
26-NOV-2021,7012465,8.28,ON A ROLL SANDWICH COMPANY,391893,Commissioning & Asset Management,Children's & Education Services,103,Supplies and Services,504,Equipment,5023,Revenue,CATERING.FOOD & BEVERAGES
26-NOV-2021,7012465,8.28,ON A ROLL SANDWICH COMPANY,391893,Commissioning & Asset Management,Children's & Education Services,103,Supplies and Services,504,Equipment,5023,Revenue,CATERING.FOOD & BEVERAGES
26-NOV-2021,7012465,8.28,ON A ROLL SANDWICH COMPANY,391893,Commissioning & Asset Management,Children's & Education Services,103,Supplies and Services,504,Equipment,5023,Revenue,CATERING.FOOD & BEVERAGES
26-NOV-2021,7012465,8.28,ON A ROLL SANDWICH COMPANY,391893,Commissioning & Asset Management,Children's & Education Services,103,Supplies and Services,504,Equipment,5023,Revenue,CATERING.FOOD & BEVERAGES
26-NOV-2021,7012465,8.28,ON A ROLL SANDWICH COMPANY,391893,Commissioning & Asset Management,Children's & Education Services,103,Supplies and Services,504,Equipment,5023,Revenue,CATERING.FOOD & BEVERAGES
26-NOV-2021,7012465,8.28,ON A ROLL SANDWICH COMPANY,391893,Commissioning & Asset Management,Children's & Education Services,103,Supplies and Services,504,Equipment,5023,Revenue,CATERING.FOOD & BEVERAGES
26-NOV-2021,7012465,8.28,ON A ROLL SANDWICH COMPANY,391893,Commissioning & Asset Management,Children's & Education Services,103,Supplies and Services,504,Equipment,5023,Revenue,CATERING.FOOD & BEVERAGES
26-NOV-2021,7012465,8.34,ON A ROLL SANDWICH COMPANY,391893,Commissioning & Asset Management,Children's & Education Services,103,Supplies and Services,504,Equipment,5023,Revenue,CATERING.FOOD & BEVERAGES
26-NOV-2021,7012465,8.4,ON A ROLL SANDWICH COMPANY,391893,Commissioning & Asset Management,Children's & Education Services,103,Supplies and Services,504,Equipment,5023,Revenue,CATERING.FOOD & BEVERAGES
26-NOV-2021,7012465,8.4,ON A ROLL SANDWICH COMPANY,391893,Commissioning & Asset Management,Children's & Education Services,103,Supplies and Services,504,Equipment,5023,Revenue,CATERING.FOOD & BEVERAGES
26-NOV-2021,7012465,8.4,ON A ROLL SANDWICH COMPANY,391893,Commissioning & Asset Management,Children's & Education Services,103,Supplies and Services,504,Equipment,5023,Revenue,CATERING.FOOD & BEVERAGES
26-NOV-2021,7012465,8.46,ON A ROLL SANDWICH COMPANY,391893,Commissioning & Asset Management,Children's & Education Services,103,Supplies and Services,504,Equipment,5023,Revenue,CATERING.FOOD & BEVERAGES
26-NOV-2021,7012465,8.46,ON A ROLL SANDWICH COMPANY,391893,Commissioning & Asset Management,Children's & Education Services,103,Supplies and Services,504,Equipment,5023,Revenue,CATERING.FOOD & BEVERAGES
26-NOV-2021,7012465,8.46,ON A ROLL SANDWICH COMPANY,391893,Commissioning & Asset Management,Children's & Education Services,103,Supplies and Services,504,Equipment,5023,Revenue,CATERING.FOOD & BEVERAGES
26-NOV-2021,7012465,8.48,ON A ROLL SANDWICH COMPANY,391893,Commissioning & Asset Management,Children's & Education Services,103,Supplies and Services,504,Equipment,5023,Revenue,CATERING.FOOD & BEVERAGES
26-NOV-2021,7012465,8.48,ON A ROLL SANDWICH COMPANY,391893,Commissioning & Asset Management,Children's & Education Services,103,Supplies and Services,504,Equipment,5023,Revenue,CATERING.FOOD & BEVERAGES
26-NOV-2021,7012465,8.61,ON A ROLL SANDWICH COMPANY,391893,Commissioning & Asset Management,Children's & Education Services,103,Supplies and Services,504,Equipment,5023,Revenue,CATERING.FOOD & BEVERAGES
26-NOV-2021,7012465,8.64,ON A ROLL SANDWICH COMPANY,391893,Commissioning & Asset Management,Children's & Education Services,103,Supplies and Services,504,Equipment,5023,Revenue,CATERING.FOOD & BEVERAGES
26-NOV-2021,7012465,8.64,ON A ROLL SANDWICH COMPANY,391893,Commissioning & Asset Management,Children's & Education Services,103,Supplies and Services,504,Equipment,5023,Revenue,CATERING.FOOD & BEVERAGES
26-NOV-2021,7012465,8.64,ON A ROLL SANDWICH COMPANY,391893,Commissioning & Asset Management,Children's & Education Services,103,Supplies and Services,504,Equipment,5023,Revenue,CATERING.FOOD & BEVERAGES
26-NOV-2021,7012465,8.64,ON A ROLL SANDWICH COMPANY,391893,Commissioning & Asset Management,Children's & Education Services,103,Supplies and Services,504,Equipment,5023,Revenue,CATERING.FOOD & BEVERAGES
26-NOV-2021,7012465,8.64,ON A ROLL SANDWICH COMPANY,391893,Commissioning & Asset Management,Children's & Education Services,103,Supplies and Services,504,Equipment,5023,Revenue,CATERING.FOOD & BEVERAGES
26-NOV-2021,7012465,8.64,ON A ROLL SANDWICH COMPANY,391893,Commissioning & Asset Management,Children's & Education Services,103,Supplies and Services,504,Equipment,5023,Revenue,CATERING.FOOD & BEVERAGES
26-NOV-2021,7012465,8.64,ON A ROLL SANDWICH COMPANY,391893,Commissioning & Asset Management,Children's & Education Services,103,Supplies and Services,504,Equipment,5023,Revenue,CATERING.FOOD & BEVERAGES
26-NOV-2021,7012465,8.64,ON A ROLL SANDWICH COMPANY,391893,Commissioning & Asset Management,Children's & Education Services,103,Supplies and Services,504,Equipment,5023,Revenue,CATERING.FOOD & BEVERAGES
26-NOV-2021,7012465,8.68,ON A ROLL SANDWICH COMPANY,391893,Commissioning & Asset Management,Children's & Education Services,103,Supplies and Services,504,Equipment,5023,Revenue,CATERING.FOOD & BEVERAGES
26-NOV-2021,7012465,8.69,ON A ROLL SANDWICH COMPANY,391893,Commissioning & Asset Management,Children's & Education Services,103,Supplies and Services,504,Equipment,5023,Revenue,CATERING.FOOD & BEVERAGES
26-NOV-2021,7012465,8.8,ON A ROLL SANDWICH COMPANY,391893,Commissioning & Asset Management,Children's & Education Services,103,Supplies and Services,504,Equipment,5023,Revenue,CATERING.FOOD & BEVERAGES
26-NOV-2021,7012465,8.8,ON A ROLL SANDWICH COMPANY,391893,Commissioning & Asset Management,Children's & Education Services,103,Supplies and Services,504,Equipment,5023,Revenue,CATERING.FOOD & BEVERAGES
26-NOV-2021,7012465,8.8,ON A ROLL SANDWICH COMPANY,391893,Commissioning & Asset Management,Children's & Education Services,103,Supplies and Services,504,Equipment,5023,Revenue,CATERING.FOOD & BEVERAGES
26-NOV-2021,7012465,8.8,ON A ROLL SANDWICH COMPANY,391893,Commissioning & Asset Management,Children's & Education Services,103,Supplies and Services,504,Equipment,5023,Revenue,CATERING.FOOD & BEVERAGES
26-NOV-2021,7012465,8.8,ON A ROLL SANDWICH COMPANY,391893,Commissioning & Asset Management,Children's & Education Services,103,Supplies and Services,504,Equipment,5023,Revenue,CATERING.FOOD & BEVERAGES
26-NOV-2021,7012465,8.8,ON A ROLL SANDWICH COMPANY,391893,Commissioning & Asset Management,Children's & Education Services,103,Supplies and Services,504,Equipment,5023,Revenue,CATERING.FOOD & BEVERAGES
26-NOV-2021,7012465,8.8,ON A ROLL SANDWICH COMPANY,391893,Commissioning & Asset Management,Children's & Education Services,103,Supplies and Services,504,Equipment,5023,Revenue,CATERING.FOOD & BEVERAGES
26-NOV-2021,7012465,8.88,ON A ROLL SANDWICH COMPANY,391893,Commissioning & Asset Management,Children's & Education Services,103,Supplies and Services,504,Equipment,5023,Revenue,CATERING.FOOD & BEVERAGES
26-NOV-2021,7012465,8.88,ON A ROLL SANDWICH COMPANY,391893,Commissioning & Asset Management,Children's & Education Services,103,Supplies and Services,504,Equipment,5023,Revenue,CATERING.FOOD & BEVERAGES
26-NOV-2021,7012465,8.88,ON A ROLL SANDWICH COMPANY,391893,Commissioning & Asset Management,Children's & Education Services,103,Supplies and Services,504,Equipment,5023,Revenue,CATERING.FOOD & BEVERAGES
26-NOV-2021,7012465,9.04,ON A ROLL SANDWICH COMPANY,391893,Commissioning & Asset Management,Children's & Education Services,103,Supplies and Services,504,Equipment,5023,Revenue,CATERING.FOOD & BEVERAGES
26-NOV-2021,7012465,9.04,ON A ROLL SANDWICH COMPANY,391893,Commissioning & Asset Management,Children's & Education Services,103,Supplies and Services,504,Equipment,5023,Revenue,CATERING.FOOD & BEVERAGES
26-NOV-2021,7012465,9.04,ON A ROLL SANDWICH COMPANY,391893,Commissioning & Asset Management,Children's & Education Services,103,Supplies and Services,504,Equipment,5023,Revenue,CATERING.FOOD & BEVERAGES
26-NOV-2021,7012465,9.1,ON A ROLL SANDWICH COMPANY,391893,Commissioning & Asset Management,Children's & Education Services,103,Supplies and Services,504,Equipment,5023,Revenue,CATERING.FOOD & BEVERAGES
26-NOV-2021,7012465,9.1,ON A ROLL SANDWICH COMPANY,391893,Commissioning & Asset Management,Children's & Education Services,103,Supplies and Services,504,Equipment,5023,Revenue,CATERING.FOOD & BEVERAGES
26-NOV-2021,7012465,9.1,ON A ROLL SANDWICH COMPANY,391893,Commissioning & Asset Management,Children's & Education Services,103,Supplies and Services,504,Equipment,5023,Revenue,CATERING.FOOD & BEVERAGES
26-NOV-2021,7012465,9.1,ON A ROLL SANDWICH COMPANY,391893,Commissioning & Asset Management,Children's & Education Services,103,Supplies and Services,504,Equipment,5023,Revenue,CATERING.FOOD & BEVERAGES
26-NOV-2021,7012465,9.1,ON A ROLL SANDWICH COMPANY,391893,Commissioning & Asset Management,Children's & Education Services,103,Supplies and Services,504,Equipment,5023,Revenue,CATERING.FOOD & BEVERAGES
26-NOV-2021,7012465,9.1,ON A ROLL SANDWICH COMPANY,391893,Commissioning & Asset Management,Children's & Education Services,103,Supplies and Services,504,Equipment,5023,Revenue,CATERING.FOOD & BEVERAGES
26-NOV-2021,7012465,9.1,ON A ROLL SANDWICH COMPANY,391893,Commissioning & Asset Management,Children's & Education Services,103,Supplies and Services,504,Equipment,5023,Revenue,CATERING.FOOD & BEVERAGES
26-NOV-2021,7012465,9.1,ON A ROLL SANDWICH COMPANY,391893,Commissioning & Asset Management,Children's & Education Services,103,Supplies and Services,504,Equipment,5023,Revenue,CATERING.FOOD & BEVERAGES
26-NOV-2021,7012465,9.1,ON A ROLL SANDWICH COMPANY,391893,Commissioning & Asset Management,Children's & Education Services,103,Supplies and Services,504,Equipment,5023,Revenue,CATERING.FOOD & BEVERAGES
26-NOV-2021,7012465,9.17,ON A ROLL SANDWICH COMPANY,391893,Commissioning & Asset Management,Children's & Education Services,103,Supplies and Services,504,Equipment,5023,Revenue,CATERING.FOOD & BEVERAGES
26-NOV-2021,7012465,9.2,ON A ROLL SANDWICH COMPANY,391893,Commissioning & Asset Management,Children's & Education Services,103,Supplies and Services,504,Equipment,5023,Revenue,CATERING.FOOD & BEVERAGES
26-NOV-2021,7012465,9.2,ON A ROLL SANDWICH COMPANY,391893,Commissioning & Asset Management,Children's & Education Services,103,Supplies and Services,504,Equipment,5023,Revenue,CATERING.FOOD & BEVERAGES
26-NOV-2021,7012465,9.28,ON A ROLL SANDWICH COMPANY,391893,Commissioning & Asset Management,Children's & Education Services,103,Supplies and Services,504,Equipment,5023,Revenue,CATERING.FOOD & BEVERAGES
26-NOV-2021,7012465,9.28,ON A ROLL SANDWICH COMPANY,391893,Commissioning & Asset Management,Children's & Education Services,103,Supplies and Services,504,Equipment,5023,Revenue,CATERING.FOOD & BEVERAGES
26-NOV-2021,7012465,9.3,ON A ROLL SANDWICH COMPANY,391893,Commissioning & Asset Management,Children's & Education Services,103,Supplies and Services,504,Equipment,5023,Revenue,CATERING.FOOD & BEVERAGES
26-NOV-2021,7012465,9.3,ON A ROLL SANDWICH COMPANY,391893,Commissioning & Asset Management,Children's & Education Services,103,Supplies and Services,504,Equipment,5023,Revenue,CATERING.FOOD & BEVERAGES
26-NOV-2021,7012465,9.44,ON A ROLL SANDWICH COMPANY,391893,Commissioning & Asset Management,Children's & Education Services,103,Supplies and Services,504,Equipment,5023,Revenue,CATERING.FOOD & BEVERAGES
26-NOV-2021,7012465,9.44,ON A ROLL SANDWICH COMPANY,391893,Commissioning & Asset Management,Children's & Education Services,103,Supplies and Services,504,Equipment,5023,Revenue,CATERING.FOOD & BEVERAGES
26-NOV-2021,7012465,9.44,ON A ROLL SANDWICH COMPANY,391893,Commissioning & Asset Management,Children's & Education Services,103,Supplies and Services,504,Equipment,5023,Revenue,CATERING.FOOD & BEVERAGES
26-NOV-2021,7012465,9.44,ON A ROLL SANDWICH COMPANY,391893,Commissioning & Asset Management,Children's & Education Services,103,Supplies and Services,504,Equipment,5023,Revenue,CATERING.FOOD & BEVERAGES
26-NOV-2021,7012465,9.48,ON A ROLL SANDWICH COMPANY,391893,Commissioning & Asset Management,Children's & Education Services,103,Supplies and Services,504,Equipment,5023,Revenue,CATERING.FOOD & BEVERAGES
26-NOV-2021,7012465,9.48,ON A ROLL SANDWICH COMPANY,391893,Commissioning & Asset Management,Children's & Education Services,103,Supplies and Services,504,Equipment,5023,Revenue,CATERING.FOOD & BEVERAGES
26-NOV-2021,7012465,9.48,ON A ROLL SANDWICH COMPANY,391893,Commissioning & Asset Management,Children's & Education Services,103,Supplies and Services,504,Equipment,5023,Revenue,CATERING.FOOD & BEVERAGES
26-NOV-2021,7012465,9.54,ON A ROLL SANDWICH COMPANY,391893,Commissioning & Asset Management,Children's & Education Services,103,Supplies and Services,504,Equipment,5023,Revenue,CATERING.FOOD & BEVERAGES
26-NOV-2021,7012465,9.6,ON A ROLL SANDWICH COMPANY,391893,Commissioning & Asset Management,Children's & Education Services,103,Supplies and Services,504,Equipment,5023,Revenue,CATERING.FOOD & BEVERAGES
26-NOV-2021,7012465,9.6,ON A ROLL SANDWICH COMPANY,391893,Commissioning & Asset Management,Children's & Education Services,103,Supplies and Services,504,Equipment,5023,Revenue,CATERING.FOOD & BEVERAGES
26-NOV-2021,7012465,9.6,ON A ROLL SANDWICH COMPANY,391893,Commissioning & Asset Management,Children's & Education Services,103,Supplies and Services,504,Equipment,5023,Revenue,CATERING.FOOD & BEVERAGES
26-NOV-2021,7012465,9.6,ON A ROLL SANDWICH COMPANY,391893,Commissioning & Asset Management,Children's & Education Services,103,Supplies and Services,504,Equipment,5023,Revenue,CATERING.FOOD & BEVERAGES
26-NOV-2021,7012465,9.7,ON A ROLL SANDWICH COMPANY,391893,Commissioning & Asset Management,Children's & Education Services,103,Supplies and Services,504,Equipment,5023,Revenue,CATERING.FOOD & BEVERAGES
26-NOV-2021,7012465,9.7,ON A ROLL SANDWICH COMPANY,391893,Commissioning & Asset Management,Children's & Education Services,103,Supplies and Services,504,Equipment,5023,Revenue,CATERING.FOOD & BEVERAGES
26-NOV-2021,7012465,9.7,ON A ROLL SANDWICH COMPANY,391893,Commissioning & Asset Management,Children's & Education Services,103,Supplies and Services,504,Equipment,5023,Revenue,CATERING.FOOD & BEVERAGES
26-NOV-2021,7012465,9.72,ON A ROLL SANDWICH COMPANY,391893,Commissioning & Asset Management,Children's & Education Services,103,Supplies and Services,504,Equipment,5023,Revenue,CATERING.FOOD & BEVERAGES
26-NOV-2021,7012465,9.81,ON A ROLL SANDWICH COMPANY,391893,Commissioning & Asset Management,Children's & Education Services,103,Supplies and Services,504,Equipment,5023,Revenue,CATERING.FOOD & BEVERAGES
26-NOV-2021,7012465,9.84,ON A ROLL SANDWICH COMPANY,391893,Commissioning & Asset Management,Children's & Education Services,103,Supplies and Services,504,Equipment,5023,Revenue,CATERING.FOOD & BEVERAGES
26-NOV-2021,7012465,9.92,ON A ROLL SANDWICH COMPANY,391893,Commissioning & Asset Management,Children's & Education Services,103,Supplies and Services,504,Equipment,5023,Revenue,CATERING.FOOD & BEVERAGES
26-NOV-2021,7012465,9.92,ON A ROLL SANDWICH COMPANY,391893,Commissioning & Asset Management,Children's & Education Services,103,Supplies and Services,504,Equipment,5023,Revenue,CATERING.FOOD & BEVERAGES
26-NOV-2021,7012465,10,ON A ROLL SANDWICH COMPANY,391893,Commissioning & Asset Management,Children's & Education Services,103,Supplies and Services,504,Equipment,5023,Revenue,CATERING.FOOD & BEVERAGES
26-NOV-2021,7012465,10,ON A ROLL SANDWICH COMPANY,391893,Commissioning & Asset Management,Children's & Education Services,103,Supplies and Services,504,Equipment,5023,Revenue,CATERING.FOOD & BEVERAGES
26-NOV-2021,7012465,10,ON A ROLL SANDWICH COMPANY,391893,Commissioning & Asset Management,Children's & Education Services,103,Supplies and Services,504,Equipment,5023,Revenue,CATERING.FOOD & BEVERAGES
26-NOV-2021,7012465,10,ON A ROLL SANDWICH COMPANY,391893,Commissioning & Asset Management,Children's & Education Services,103,Supplies and Services,504,Equipment,5023,Revenue,CATERING.FOOD & BEVERAGES
26-NOV-2021,7012465,10.08,ON A ROLL SANDWICH COMPANY,391893,Commissioning & Asset Management,Children's & Education Services,103,Supplies and Services,504,Equipment,5023,Revenue,CATERING.FOOD & BEVERAGES
26-NOV-2021,7012465,10.2,ON A ROLL SANDWICH COMPANY,391893,Commissioning & Asset Management,Children's & Education Services,103,Supplies and Services,504,Equipment,5023,Revenue,CATERING.FOOD & BEVERAGES
26-NOV-2021,7012465,10.2,ON A ROLL SANDWICH COMPANY,391893,Commissioning & Asset Management,Children's & Education Services,103,Supplies and Services,504,Equipment,5023,Revenue,CATERING.FOOD & BEVERAGES
26-NOV-2021,7012465,10.27,ON A ROLL SANDWICH COMPANY,391893,Commissioning & Asset Management,Children's & Education Services,103,Supplies and Services,504,Equipment,5023,Revenue,CATERING.FOOD & BEVERAGES
26-NOV-2021,7012465,10.5,ON A ROLL SANDWICH COMPANY,391893,Commissioning & Asset Management,Children's & Education Services,103,Supplies and Services,504,Equipment,5023,Revenue,CATERING.FOOD & BEVERAGES
26-NOV-2021,7012465,10.5,ON A ROLL SANDWICH COMPANY,391893,Commissioning & Asset Management,Children's & Education Services,103,Supplies and Services,504,Equipment,5023,Revenue,CATERING.FOOD & BEVERAGES
26-NOV-2021,7012465,10.6,ON A ROLL SANDWICH COMPANY,391893,Commissioning & Asset Management,Children's & Education Services,103,Supplies and Services,504,Equipment,5023,Revenue,CATERING.FOOD & BEVERAGES
26-NOV-2021,7012465,10.72,ON A ROLL SANDWICH COMPANY,391893,Commissioning & Asset Management,Children's & Education Services,103,Supplies and Services,504,Equipment,5023,Revenue,CATERING.FOOD & BEVERAGES
26-NOV-2021,7012465,10.8,ON A ROLL SANDWICH COMPANY,391893,Commissioning & Asset Management,Children's & Education Services,103,Supplies and Services,504,Equipment,5023,Revenue,CATERING.FOOD & BEVERAGES
26-NOV-2021,7012465,10.8,ON A ROLL SANDWICH COMPANY,391893,Commissioning & Asset Management,Children's & Education Services,103,Supplies and Services,504,Equipment,5023,Revenue,CATERING.FOOD & BEVERAGES
26-NOV-2021,7012465,10.9,ON A ROLL SANDWICH COMPANY,391893,Commissioning & Asset Management,Children's & Education Services,103,Supplies and Services,504,Equipment,5023,Revenue,CATERING.FOOD & BEVERAGES
26-NOV-2021,7012465,10.92,ON A ROLL SANDWICH COMPANY,391893,Commissioning & Asset Management,Children's & Education Services,103,Supplies and Services,504,Equipment,5023,Revenue,CATERING.FOOD & BEVERAGES
26-NOV-2021,7012465,11,ON A ROLL SANDWICH COMPANY,391893,Commissioning & Asset Management,Children's & Education Services,103,Supplies and Services,504,Equipment,5023,Revenue,CATERING.FOOD & BEVERAGES
26-NOV-2021,7012465,11.04,ON A ROLL SANDWICH COMPANY,391893,Commissioning & Asset Management,Children's & Education Services,103,Supplies and Services,504,Equipment,5023,Revenue,CATERING.FOOD & BEVERAGES
26-NOV-2021,7012465,11.04,ON A ROLL SANDWICH COMPANY,391893,Commissioning & Asset Management,Children's & Education Services,103,Supplies and Services,504,Equipment,5023,Revenue,CATERING.FOOD & BEVERAGES
26-NOV-2021,7012465,11.04,ON A ROLL SANDWICH COMPANY,391893,Commissioning & Asset Management,Children's & Education Services,103,Supplies and Services,504,Equipment,5023,Revenue,CATERING.FOOD & BEVERAGES
26-NOV-2021,7012465,11.04,ON A ROLL SANDWICH COMPANY,391893,Commissioning & Asset Management,Children's & Education Services,103,Supplies and Services,504,Equipment,5023,Revenue,CATERING.FOOD & BEVERAGES
26-NOV-2021,7012465,11.04,ON A ROLL SANDWICH COMPANY,391893,Commissioning & Asset Management,Children's & Education Services,103,Supplies and Services,504,Equipment,5023,Revenue,CATERING.FOOD & BEVERAGES
26-NOV-2021,7012465,11.04,ON A ROLL SANDWICH COMPANY,391893,Commissioning & Asset Management,Children's & Education Services,103,Supplies and Services,504,Equipment,5023,Revenue,CATERING.FOOD & BEVERAGES
26-NOV-2021,7012465,11.06,ON A ROLL SANDWICH COMPANY,391893,Commissioning & Asset Management,Children's & Education Services,103,Supplies and Services,504,Equipment,5023,Revenue,CATERING.FOOD & BEVERAGES
26-NOV-2021,7012465,11.06,ON A ROLL SANDWICH COMPANY,391893,Commissioning & Asset Management,Children's & Education Services,103,Supplies and Services,504,Equipment,5023,Revenue,CATERING.FOOD & BEVERAGES
26-NOV-2021,7012465,11.1,ON A ROLL SANDWICH COMPANY,391893,Commissioning & Asset Management,Children's & Education Services,103,Supplies and Services,504,Equipment,5023,Revenue,CATERING.FOOD & BEVERAGES
26-NOV-2021,7012465,11.1,ON A ROLL SANDWICH COMPANY,391893,Commissioning & Asset Management,Children's & Education Services,103,Supplies and Services,504,Equipment,5023,Revenue,CATERING.FOOD & BEVERAGES
26-NOV-2021,7012465,11.1,ON A ROLL SANDWICH COMPANY,391893,Commissioning & Asset Management,Children's & Education Services,103,Supplies and Services,504,Equipment,5023,Revenue,CATERING.FOOD & BEVERAGES
26-NOV-2021,7012465,11.22,ON A ROLL SANDWICH COMPANY,391893,Commissioning & Asset Management,Children's & Education Services,103,Supplies and Services,504,Equipment,5023,Revenue,CATERING.FOOD & BEVERAGES
26-NOV-2021,7012465,11.28,ON A ROLL SANDWICH COMPANY,391893,Commissioning & Asset Management,Children's & Education Services,103,Supplies and Services,504,Equipment,5023,Revenue,CATERING.FOOD & BEVERAGES
26-NOV-2021,7012465,11.28,ON A ROLL SANDWICH COMPANY,391893,Commissioning & Asset Management,Children's & Education Services,103,Supplies and Services,504,Equipment,5023,Revenue,CATERING.FOOD & BEVERAGES
26-NOV-2021,7012465,11.28,ON A ROLL SANDWICH COMPANY,391893,Commissioning & Asset Management,Children's & Education Services,103,Supplies and Services,504,Equipment,5023,Revenue,CATERING.FOOD & BEVERAGES
26-NOV-2021,7012465,11.3,ON A ROLL SANDWICH COMPANY,391893,Commissioning & Asset Management,Children's & Education Services,103,Supplies and Services,504,Equipment,5023,Revenue,CATERING.FOOD & BEVERAGES
26-NOV-2021,7012465,11.3,ON A ROLL SANDWICH COMPANY,391893,Commissioning & Asset Management,Children's & Education Services,103,Supplies and Services,504,Equipment,5023,Revenue,CATERING.FOOD & BEVERAGES
26-NOV-2021,7012465,11.3,ON A ROLL SANDWICH COMPANY,391893,Commissioning & Asset Management,Children's & Education Services,103,Supplies and Services,504,Equipment,5023,Revenue,CATERING.FOOD & BEVERAGES
26-NOV-2021,7012465,11.3,ON A ROLL SANDWICH COMPANY,391893,Commissioning & Asset Management,Children's & Education Services,103,Supplies and Services,504,Equipment,5023,Revenue,CATERING.FOOD & BEVERAGES
26-NOV-2021,7012465,11.3,ON A ROLL SANDWICH COMPANY,391893,Commissioning & Asset Management,Children's & Education Services,103,Supplies and Services,504,Equipment,5023,Revenue,CATERING.FOOD & BEVERAGES
26-NOV-2021,7012465,11.6,ON A ROLL SANDWICH COMPANY,391893,Commissioning & Asset Management,Children's & Education Services,103,Supplies and Services,504,Equipment,5023,Revenue,CATERING.FOOD & BEVERAGES
26-NOV-2021,7012465,11.8,ON A ROLL SANDWICH COMPANY,391893,Commissioning & Asset Management,Children's & Education Services,103,Supplies and Services,504,Equipment,5023,Revenue,CATERING.FOOD & BEVERAGES
26-NOV-2021,7012465,11.83,ON A ROLL SANDWICH COMPANY,391893,Commissioning & Asset Management,Children's & Education Services,103,Supplies and Services,504,Equipment,5023,Revenue,CATERING.FOOD & BEVERAGES
26-NOV-2021,7012465,11.85,ON A ROLL SANDWICH COMPANY,391893,Commissioning & Asset Management,Children's & Education Services,103,Supplies and Services,504,Equipment,5023,Revenue,CATERING.FOOD & BEVERAGES
26-NOV-2021,7012465,11.85,ON A ROLL SANDWICH COMPANY,391893,Commissioning & Asset Management,Children's & Education Services,103,Supplies and Services,504,Equipment,5023,Revenue,CATERING.FOOD & BEVERAGES
26-NOV-2021,7012465,11.85,ON A ROLL SANDWICH COMPANY,391893,Commissioning & Asset Management,Children's & Education Services,103,Supplies and Services,504,Equipment,5023,Revenue,CATERING.FOOD & BEVERAGES
26-NOV-2021,7012465,11.85,ON A ROLL SANDWICH COMPANY,391893,Commissioning & Asset Management,Children's & Education Services,103,Supplies and Services,504,Equipment,5023,Revenue,CATERING.FOOD & BEVERAGES
26-NOV-2021,7012465,11.85,ON A ROLL SANDWICH COMPANY,391893,Commissioning & Asset Management,Children's & Education Services,103,Supplies and Services,504,Equipment,5023,Revenue,CATERING.FOOD & BEVERAGES
26-NOV-2021,7012465,11.85,ON A ROLL SANDWICH COMPANY,391893,Commissioning & Asset Management,Children's & Education Services,103,Supplies and Services,504,Equipment,5023,Revenue,CATERING.FOOD & BEVERAGES
26-NOV-2021,7012465,11.85,ON A ROLL SANDWICH COMPANY,391893,Commissioning & Asset Management,Children's & Education Services,103,Supplies and Services,504,Equipment,5023,Revenue,CATERING.FOOD & BEVERAGES
26-NOV-2021,7012465,11.85,ON A ROLL SANDWICH COMPANY,391893,Commissioning & Asset Management,Children's & Education Services,103,Supplies and Services,504,Equipment,5023,Revenue,CATERING.FOOD & BEVERAGES
26-NOV-2021,7012465,11.85,ON A ROLL SANDWICH COMPANY,391893,Commissioning & Asset Management,Children's & Education Services,103,Supplies and Services,504,Equipment,5023,Revenue,CATERING.FOOD & BEVERAGES
26-NOV-2021,7012465,11.85,ON A ROLL SANDWICH COMPANY,391893,Commissioning & Asset Management,Children's & Education Services,103,Supplies and Services,504,Equipment,5023,Revenue,CATERING.FOOD & BEVERAGES
26-NOV-2021,7012465,11.85,ON A ROLL SANDWICH COMPANY,391893,Commissioning & Asset Management,Children's & Education Services,103,Supplies and Services,504,Equipment,5023,Revenue,CATERING.FOOD & BEVERAGES
26-NOV-2021,7012465,11.85,ON A ROLL SANDWICH COMPANY,391893,Commissioning & Asset Management,Children's & Education Services,103,Supplies and Services,504,Equipment,5023,Revenue,CATERING.FOOD & BEVERAGES
26-NOV-2021,7012465,11.85,ON A ROLL SANDWICH COMPANY,391893,Commissioning & Asset Management,Children's & Education Services,103,Supplies and Services,504,Equipment,5023,Revenue,CATERING.FOOD & BEVERAGES
26-NOV-2021,7012465,11.85,ON A ROLL SANDWICH COMPANY,391893,Commissioning & Asset Management,Children's & Education Services,103,Supplies and Services,504,Equipment,5023,Revenue,CATERING.FOOD & BEVERAGES
26-NOV-2021,7012465,11.85,ON A ROLL SANDWICH COMPANY,391893,Commissioning & Asset Management,Children's & Education Services,103,Supplies and Services,504,Equipment,5023,Revenue,CATERING.FOOD & BEVERAGES
26-NOV-2021,7012465,11.85,ON A ROLL SANDWICH COMPANY,391893,Commissioning & Asset Management,Children's & Education Services,103,Supplies and Services,504,Equipment,5023,Revenue,CATERING.FOOD & BEVERAGES
26-NOV-2021,7012465,11.85,ON A ROLL SANDWICH COMPANY,391893,Commissioning & Asset Management,Children's & Education Services,103,Supplies and Services,504,Equipment,5023,Revenue,CATERING.FOOD & BEVERAGES
26-NOV-2021,7012465,11.85,ON A ROLL SANDWICH COMPANY,391893,Commissioning & Asset Management,Children's & Education Services,103,Supplies and Services,504,Equipment,5023,Revenue,CATERING.FOOD & BEVERAGES
26-NOV-2021,7012465,11.85,ON A ROLL SANDWICH COMPANY,391893,Commissioning & Asset Management,Children's & Education Services,103,Supplies and Services,504,Equipment,5023,Revenue,CATERING.FOOD & BEVERAGES
26-NOV-2021,7012465,11.85,ON A ROLL SANDWICH COMPANY,391893,Commissioning & Asset Management,Children's & Education Services,103,Supplies and Services,504,Equipment,5023,Revenue,CATERING.FOOD & BEVERAGES
26-NOV-2021,7012465,11.85,ON A ROLL SANDWICH COMPANY,391893,Commissioning & Asset Management,Children's & Education Services,103,Supplies and Services,504,Equipment,5023,Revenue,CATERING.FOOD & BEVERAGES
26-NOV-2021,7012465,11.85,ON A ROLL SANDWICH COMPANY,391893,Commissioning & Asset Management,Children's & Education Services,103,Supplies and Services,504,Equipment,5023,Revenue,CATERING.FOOD & BEVERAGES
26-NOV-2021,7012465,11.85,ON A ROLL SANDWICH COMPANY,391893,Commissioning & Asset Management,Children's & Education Services,103,Supplies and Services,504,Equipment,5023,Revenue,CATERING.FOOD & BEVERAGES
26-NOV-2021,7012465,11.85,ON A ROLL SANDWICH COMPANY,391893,Commissioning & Asset Management,Children's & Education Services,103,Supplies and Services,504,Equipment,5023,Revenue,CATERING.FOOD & BEVERAGES
26-NOV-2021,7012465,11.85,ON A ROLL SANDWICH COMPANY,391893,Commissioning & Asset Management,Children's & Education Services,103,Supplies and Services,504,Equipment,5023,Revenue,CATERING.FOOD & BEVERAGES
26-NOV-2021,7012465,11.85,ON A ROLL SANDWICH COMPANY,391893,Commissioning & Asset Management,Children's & Education Services,103,Supplies and Services,504,Equipment,5023,Revenue,CATERING.FOOD & BEVERAGES
26-NOV-2021,7012465,11.85,ON A ROLL SANDWICH COMPANY,391893,Commissioning & Asset Management,Children's & Education Services,103,Supplies and Services,504,Equipment,5023,Revenue,CATERING.FOOD & BEVERAGES
26-NOV-2021,7012465,11.85,ON A ROLL SANDWICH COMPANY,391893,Commissioning & Asset Management,Children's & Education Services,103,Supplies and Services,504,Equipment,5023,Revenue,CATERING.FOOD & BEVERAGES
26-NOV-2021,7012465,11.85,ON A ROLL SANDWICH COMPANY,391893,Commissioning & Asset Management,Children's & Education Services,103,Supplies and Services,504,Equipment,5023,Revenue,CATERING.FOOD & BEVERAGES
26-NOV-2021,7012465,11.85,ON A ROLL SANDWICH COMPANY,391893,Commissioning & Asset Management,Children's & Education Services,103,Supplies and Services,504,Equipment,5023,Revenue,CATERING.FOOD & BEVERAGES
26-NOV-2021,7012465,11.97,ON A ROLL SANDWICH COMPANY,391893,Commissioning & Asset Management,Children's & Education Services,103,Supplies and Services,504,Equipment,5023,Revenue,CATERING.FOOD & BEVERAGES
26-NOV-2021,7012465,12.21,ON A ROLL SANDWICH COMPANY,391893,Commissioning & Asset Management,Children's & Education Services,103,Supplies and Services,504,Equipment,5023,Revenue,CATERING.FOOD & BEVERAGES
26-NOV-2021,7012465,12.3,ON A ROLL SANDWICH COMPANY,391893,Commissioning & Asset Management,Children's & Education Services,103,Supplies and Services,504,Equipment,5023,Revenue,CATERING.FOOD & BEVERAGES
26-NOV-2021,7012465,12.3,ON A ROLL SANDWICH COMPANY,391893,Commissioning & Asset Management,Children's & Education Services,103,Supplies and Services,504,Equipment,5023,Revenue,CATERING.FOOD & BEVERAGES
26-NOV-2021,7012465,12.3,ON A ROLL SANDWICH COMPANY,391893,Commissioning & Asset Management,Children's & Education Services,103,Supplies and Services,504,Equipment,5023,Revenue,CATERING.FOOD & BEVERAGES
26-NOV-2021,7012465,12.3,ON A ROLL SANDWICH COMPANY,391893,Commissioning & Asset Management,Children's & Education Services,103,Supplies and Services,504,Equipment,5023,Revenue,CATERING.FOOD & BEVERAGES
26-NOV-2021,7012465,12.32,ON A ROLL SANDWICH COMPANY,391893,Commissioning & Asset Management,Children's & Education Services,103,Supplies and Services,504,Equipment,5023,Revenue,CATERING.FOOD & BEVERAGES
26-NOV-2021,7012465,12.32,ON A ROLL SANDWICH COMPANY,391893,Commissioning & Asset Management,Children's & Education Services,103,Supplies and Services,504,Equipment,5023,Revenue,CATERING.FOOD & BEVERAGES
26-NOV-2021,7012465,12.4,ON A ROLL SANDWICH COMPANY,391893,Commissioning & Asset Management,Children's & Education Services,103,Supplies and Services,504,Equipment,5023,Revenue,CATERING.FOOD & BEVERAGES
26-NOV-2021,7012465,12.4,ON A ROLL SANDWICH COMPANY,391893,Commissioning & Asset Management,Children's & Education Services,103,Supplies and Services,504,Equipment,5023,Revenue,CATERING.FOOD & BEVERAGES
26-NOV-2021,7012465,12.42,ON A ROLL SANDWICH COMPANY,391893,Commissioning & Asset Management,Children's & Education Services,103,Supplies and Services,504,Equipment,5023,Revenue,CATERING.FOOD & BEVERAGES
26-NOV-2021,7012465,12.42,ON A ROLL SANDWICH COMPANY,391893,Commissioning & Asset Management,Children's & Education Services,103,Supplies and Services,504,Equipment,5023,Revenue,CATERING.FOOD & BEVERAGES
26-NOV-2021,7012465,12.43,ON A ROLL SANDWICH COMPANY,391893,Commissioning & Asset Management,Children's & Education Services,103,Supplies and Services,504,Equipment,5023,Revenue,CATERING.FOOD & BEVERAGES
26-NOV-2021,7012465,12.6,ON A ROLL SANDWICH COMPANY,391893,Commissioning & Asset Management,Children's & Education Services,103,Supplies and Services,504,Equipment,5023,Revenue,CATERING.FOOD & BEVERAGES
26-NOV-2021,7012465,12.61,ON A ROLL SANDWICH COMPANY,391893,Commissioning & Asset Management,Children's & Education Services,103,Supplies and Services,504,Equipment,5023,Revenue,CATERING.FOOD & BEVERAGES
26-NOV-2021,7012465,12.64,ON A ROLL SANDWICH COMPANY,391893,Commissioning & Asset Management,Children's & Education Services,103,Supplies and Services,504,Equipment,5023,Revenue,CATERING.FOOD & BEVERAGES
26-NOV-2021,7012465,12.64,ON A ROLL SANDWICH COMPANY,391893,Commissioning & Asset Management,Children's & Education Services,103,Supplies and Services,504,Equipment,5023,Revenue,CATERING.FOOD & BEVERAGES
26-NOV-2021,7012465,12.64,ON A ROLL SANDWICH COMPANY,391893,Commissioning & Asset Management,Children's & Education Services,103,Supplies and Services,504,Equipment,5023,Revenue,CATERING.FOOD & BEVERAGES
26-NOV-2021,7012465,12.64,ON A ROLL SANDWICH COMPANY,391893,Commissioning & Asset Management,Children's & Education Services,103,Supplies and Services,504,Equipment,5023,Revenue,CATERING.FOOD & BEVERAGES
26-NOV-2021,7012465,12.64,ON A ROLL SANDWICH COMPANY,391893,Commissioning & Asset Management,Children's & Education Services,103,Supplies and Services,504,Equipment,5023,Revenue,CATERING.FOOD & BEVERAGES
26-NOV-2021,7012465,12.64,ON A ROLL SANDWICH COMPANY,391893,Commissioning & Asset Management,Children's & Education Services,103,Supplies and Services,504,Equipment,5023,Revenue,CATERING.FOOD & BEVERAGES
26-NOV-2021,7012465,12.69,ON A ROLL SANDWICH COMPANY,391893,Commissioning & Asset Management,Children's & Education Services,103,Supplies and Services,504,Equipment,5023,Revenue,CATERING.FOOD & BEVERAGES
26-NOV-2021,7012465,12.74,ON A ROLL SANDWICH COMPANY,391893,Commissioning & Asset Management,Children's & Education Services,103,Supplies and Services,504,Equipment,5023,Revenue,CATERING.FOOD & BEVERAGES
26-NOV-2021,7012465,12.74,ON A ROLL SANDWICH COMPANY,391893,Commissioning & Asset Management,Children's & Education Services,103,Supplies and Services,504,Equipment,5023,Revenue,CATERING.FOOD & BEVERAGES
26-NOV-2021,7012465,12.74,ON A ROLL SANDWICH COMPANY,391893,Commissioning & Asset Management,Children's & Education Services,103,Supplies and Services,504,Equipment,5023,Revenue,CATERING.FOOD & BEVERAGES
26-NOV-2021,7012465,12.76,ON A ROLL SANDWICH COMPANY,391893,Commissioning & Asset Management,Children's & Education Services,103,Supplies and Services,504,Equipment,5023,Revenue,CATERING.FOOD & BEVERAGES
26-NOV-2021,7012465,12.8,ON A ROLL SANDWICH COMPANY,391893,Commissioning & Asset Management,Children's & Education Services,103,Supplies and Services,504,Equipment,5023,Revenue,CATERING.FOOD & BEVERAGES
26-NOV-2021,7012465,12.8,ON A ROLL SANDWICH COMPANY,391893,Commissioning & Asset Management,Children's & Education Services,103,Supplies and Services,504,Equipment,5023,Revenue,CATERING.FOOD & BEVERAGES
26-NOV-2021,7012465,12.8,ON A ROLL SANDWICH COMPANY,391893,Commissioning & Asset Management,Children's & Education Services,103,Supplies and Services,504,Equipment,5023,Revenue,CATERING.FOOD & BEVERAGES
26-NOV-2021,7012465,12.8,ON A ROLL SANDWICH COMPANY,391893,Commissioning & Asset Management,Children's & Education Services,103,Supplies and Services,504,Equipment,5023,Revenue,CATERING.FOOD & BEVERAGES
26-NOV-2021,7012465,12.8,ON A ROLL SANDWICH COMPANY,391893,Commissioning & Asset Management,Children's & Education Services,103,Supplies and Services,504,Equipment,5023,Revenue,CATERING.FOOD & BEVERAGES
26-NOV-2021,7012465,12.8,ON A ROLL SANDWICH COMPANY,391893,Commissioning & Asset Management,Children's & Education Services,103,Supplies and Services,504,Equipment,5023,Revenue,CATERING.FOOD & BEVERAGES
26-NOV-2021,7012465,12.96,ON A ROLL SANDWICH COMPANY,391893,Commissioning & Asset Management,Children's & Education Services,103,Supplies and Services,504,Equipment,5023,Revenue,CATERING.FOOD & BEVERAGES
26-NOV-2021,7012465,12.96,ON A ROLL SANDWICH COMPANY,391893,Commissioning & Asset Management,Children's & Education Services,103,Supplies and Services,504,Equipment,5023,Revenue,CATERING.FOOD & BEVERAGES
26-NOV-2021,7012465,12.96,ON A ROLL SANDWICH COMPANY,391893,Commissioning & Asset Management,Children's & Education Services,103,Supplies and Services,504,Equipment,5023,Revenue,CATERING.FOOD & BEVERAGES
26-NOV-2021,7012465,12.96,ON A ROLL SANDWICH COMPANY,391893,Commissioning & Asset Management,Children's & Education Services,103,Supplies and Services,504,Equipment,5023,Revenue,CATERING.FOOD & BEVERAGES
26-NOV-2021,7012465,13.2,ON A ROLL SANDWICH COMPANY,391893,Commissioning & Asset Management,Children's & Education Services,103,Supplies and Services,504,Equipment,5023,Revenue,CATERING.FOOD & BEVERAGES
26-NOV-2021,7012465,13.2,ON A ROLL SANDWICH COMPANY,391893,Commissioning & Asset Management,Children's & Education Services,103,Supplies and Services,504,Equipment,5023,Revenue,CATERING.FOOD & BEVERAGES
26-NOV-2021,7012465,13.3,ON A ROLL SANDWICH COMPANY,391893,Commissioning & Asset Management,Children's & Education Services,103,Supplies and Services,504,Equipment,5023,Revenue,CATERING.FOOD & BEVERAGES
26-NOV-2021,7012465,13.3,ON A ROLL SANDWICH COMPANY,391893,Commissioning & Asset Management,Children's & Education Services,103,Supplies and Services,504,Equipment,5023,Revenue,CATERING.FOOD & BEVERAGES
26-NOV-2021,7012465,13.43,ON A ROLL SANDWICH COMPANY,391893,Commissioning & Asset Management,Children's & Education Services,103,Supplies and Services,504,Equipment,5023,Revenue,CATERING.FOOD & BEVERAGES
26-NOV-2021,7012465,13.56,ON A ROLL SANDWICH COMPANY,391893,Commissioning & Asset Management,Children's & Education Services,103,Supplies and Services,504,Equipment,5023,Revenue,CATERING.FOOD & BEVERAGES
26-NOV-2021,7012465,13.64,ON A ROLL SANDWICH COMPANY,391893,Commissioning & Asset Management,Children's & Education Services,103,Supplies and Services,504,Equipment,5023,Revenue,CATERING.FOOD & BEVERAGES
26-NOV-2021,7012465,13.65,ON A ROLL SANDWICH COMPANY,391893,Commissioning & Asset Management,Children's & Education Services,103,Supplies and Services,504,Equipment,5023,Revenue,CATERING.FOOD & BEVERAGES
26-NOV-2021,7012465,13.65,ON A ROLL SANDWICH COMPANY,391893,Commissioning & Asset Management,Children's & Education Services,103,Supplies and Services,504,Equipment,5023,Revenue,CATERING.FOOD & BEVERAGES
26-NOV-2021,7012465,13.65,ON A ROLL SANDWICH COMPANY,391893,Commissioning & Asset Management,Children's & Education Services,103,Supplies and Services,504,Equipment,5023,Revenue,CATERING.FOOD & BEVERAGES
26-NOV-2021,7012465,13.65,ON A ROLL SANDWICH COMPANY,391893,Commissioning & Asset Management,Children's & Education Services,103,Supplies and Services,504,Equipment,5023,Revenue,CATERING.FOOD & BEVERAGES
26-NOV-2021,7012465,13.65,ON A ROLL SANDWICH COMPANY,391893,Commissioning & Asset Management,Children's & Education Services,103,Supplies and Services,504,Equipment,5023,Revenue,CATERING.FOOD & BEVERAGES
26-NOV-2021,7012465,13.65,ON A ROLL SANDWICH COMPANY,391893,Commissioning & Asset Management,Children's & Education Services,103,Supplies and Services,504,Equipment,5023,Revenue,CATERING.FOOD & BEVERAGES
26-NOV-2021,7012465,13.65,ON A ROLL SANDWICH COMPANY,391893,Commissioning & Asset Management,Children's & Education Services,103,Supplies and Services,504,Equipment,5023,Revenue,CATERING.FOOD & BEVERAGES
26-NOV-2021,7012465,13.65,ON A ROLL SANDWICH COMPANY,391893,Commissioning & Asset Management,Children's & Education Services,103,Supplies and Services,504,Equipment,5023,Revenue,CATERING.FOOD & BEVERAGES
26-NOV-2021,7012465,13.8,ON A ROLL SANDWICH COMPANY,391893,Commissioning & Asset Management,Children's & Education Services,103,Supplies and Services,504,Equipment,5023,Revenue,CATERING.FOOD & BEVERAGES
26-NOV-2021,7012465,13.8,ON A ROLL SANDWICH COMPANY,391893,Commissioning & Asset Management,Children's & Education Services,103,Supplies and Services,504,Equipment,5023,Revenue,CATERING.FOOD & BEVERAGES
26-NOV-2021,7012465,13.8,ON A ROLL SANDWICH COMPANY,391893,Commissioning & Asset Management,Children's & Education Services,103,Supplies and Services,504,Equipment,5023,Revenue,CATERING.FOOD & BEVERAGES
26-NOV-2021,7012465,13.8,ON A ROLL SANDWICH COMPANY,391893,Commissioning & Asset Management,Children's & Education Services,103,Supplies and Services,504,Equipment,5023,Revenue,CATERING.FOOD & BEVERAGES
26-NOV-2021,7012465,13.8,ON A ROLL SANDWICH COMPANY,391893,Commissioning & Asset Management,Children's & Education Services,103,Supplies and Services,504,Equipment,5023,Revenue,CATERING.FOOD & BEVERAGES
26-NOV-2021,7012465,13.8,ON A ROLL SANDWICH COMPANY,391893,Commissioning & Asset Management,Children's & Education Services,103,Supplies and Services,504,Equipment,5023,Revenue,CATERING.FOOD & BEVERAGES
26-NOV-2021,7012465,13.8,ON A ROLL SANDWICH COMPANY,391893,Commissioning & Asset Management,Children's & Education Services,103,Supplies and Services,504,Equipment,5023,Revenue,CATERING.FOOD & BEVERAGES
26-NOV-2021,7012465,14.08,ON A ROLL SANDWICH COMPANY,391893,Commissioning & Asset Management,Children's & Education Services,103,Supplies and Services,504,Equipment,5023,Revenue,CATERING.FOOD & BEVERAGES
26-NOV-2021,7012465,14.1,ON A ROLL SANDWICH COMPANY,391893,Commissioning & Asset Management,Children's & Education Services,103,Supplies and Services,504,Equipment,5023,Revenue,CATERING.FOOD & BEVERAGES
26-NOV-2021,7012465,14.1,ON A ROLL SANDWICH COMPANY,391893,Commissioning & Asset Management,Children's & Education Services,103,Supplies and Services,504,Equipment,5023,Revenue,CATERING.FOOD & BEVERAGES
26-NOV-2021,7012465,14.16,ON A ROLL SANDWICH COMPANY,391893,Commissioning & Asset Management,Children's & Education Services,103,Supplies and Services,504,Equipment,5023,Revenue,CATERING.FOOD & BEVERAGES
26-NOV-2021,7012465,14.22,ON A ROLL SANDWICH COMPANY,391893,Commissioning & Asset Management,Children's & Education Services,103,Supplies and Services,504,Equipment,5023,Revenue,CATERING.FOOD & BEVERAGES
26-NOV-2021,7012465,14.22,ON A ROLL SANDWICH COMPANY,391893,Commissioning & Asset Management,Children's & Education Services,103,Supplies and Services,504,Equipment,5023,Revenue,CATERING.FOOD & BEVERAGES
26-NOV-2021,7012465,14.22,ON A ROLL SANDWICH COMPANY,391893,Commissioning & Asset Management,Children's & Education Services,103,Supplies and Services,504,Equipment,5023,Revenue,CATERING.FOOD & BEVERAGES
26-NOV-2021,7012465,14.41,ON A ROLL SANDWICH COMPANY,391893,Commissioning & Asset Management,Children's & Education Services,103,Supplies and Services,504,Equipment,5023,Revenue,CATERING.FOOD & BEVERAGES
26-NOV-2021,7012465,14.56,ON A ROLL SANDWICH COMPANY,391893,Commissioning & Asset Management,Children's & Education Services,103,Supplies and Services,504,Equipment,5023,Revenue,CATERING.FOOD & BEVERAGES
26-NOV-2021,7012465,14.56,ON A ROLL SANDWICH COMPANY,391893,Commissioning & Asset Management,Children's & Education Services,103,Supplies and Services,504,Equipment,5023,Revenue,CATERING.FOOD & BEVERAGES
26-NOV-2021,7012465,14.56,ON A ROLL SANDWICH COMPANY,391893,Commissioning & Asset Management,Children's & Education Services,103,Supplies and Services,504,Equipment,5023,Revenue,CATERING.FOOD & BEVERAGES
26-NOV-2021,7012465,14.56,ON A ROLL SANDWICH COMPANY,391893,Commissioning & Asset Management,Children's & Education Services,103,Supplies and Services,504,Equipment,5023,Revenue,CATERING.FOOD & BEVERAGES
26-NOV-2021,7012465,14.56,ON A ROLL SANDWICH COMPANY,391893,Commissioning & Asset Management,Children's & Education Services,103,Supplies and Services,504,Equipment,5023,Revenue,CATERING.FOOD & BEVERAGES
26-NOV-2021,7012465,14.56,ON A ROLL SANDWICH COMPANY,391893,Commissioning & Asset Management,Children's & Education Services,103,Supplies and Services,504,Equipment,5023,Revenue,CATERING.FOOD & BEVERAGES
26-NOV-2021,7012465,14.56,ON A ROLL SANDWICH COMPANY,391893,Commissioning & Asset Management,Children's & Education Services,103,Supplies and Services,504,Equipment,5023,Revenue,CATERING.FOOD & BEVERAGES
26-NOV-2021,7012465,15,ON A ROLL SANDWICH COMPANY,391893,Commissioning & Asset Management,Children's & Education Services,103,Supplies and Services,504,Equipment,5023,Revenue,CATERING.FOOD & BEVERAGES
26-NOV-2021,7012465,15,ON A ROLL SANDWICH COMPANY,391893,Commissioning & Asset Management,Children's & Education Services,103,Supplies and Services,504,Equipment,5023,Revenue,CATERING.FOOD & BEVERAGES
26-NOV-2021,7012465,15.01,ON A ROLL SANDWICH COMPANY,391893,Commissioning & Asset Management,Children's & Education Services,103,Supplies and Services,504,Equipment,5023,Revenue,CATERING.FOOD & BEVERAGES
26-NOV-2021,7012465,15.18,ON A ROLL SANDWICH COMPANY,391893,Commissioning & Asset Management,Children's & Education Services,103,Supplies and Services,504,Equipment,5023,Revenue,CATERING.FOOD & BEVERAGES
26-NOV-2021,7012465,15.18,ON A ROLL SANDWICH COMPANY,391893,Commissioning & Asset Management,Children's & Education Services,103,Supplies and Services,504,Equipment,5023,Revenue,CATERING.FOOD & BEVERAGES
26-NOV-2021,7012465,15.18,ON A ROLL SANDWICH COMPANY,391893,Commissioning & Asset Management,Children's & Education Services,103,Supplies and Services,504,Equipment,5023,Revenue,CATERING.FOOD & BEVERAGES
26-NOV-2021,7012465,15.18,ON A ROLL SANDWICH COMPANY,391893,Commissioning & Asset Management,Children's & Education Services,103,Supplies and Services,504,Equipment,5023,Revenue,CATERING.FOOD & BEVERAGES
26-NOV-2021,7012465,15.3,ON A ROLL SANDWICH COMPANY,391893,Commissioning & Asset Management,Children's & Education Services,103,Supplies and Services,504,Equipment,5023,Revenue,CATERING.FOOD & BEVERAGES
26-NOV-2021,7012465,15.3,ON A ROLL SANDWICH COMPANY,391893,Commissioning & Asset Management,Children's & Education Services,103,Supplies and Services,504,Equipment,5023,Revenue,CATERING.FOOD & BEVERAGES
26-NOV-2021,7012465,15.3,ON A ROLL SANDWICH COMPANY,391893,Commissioning & Asset Management,Children's & Education Services,103,Supplies and Services,504,Equipment,5023,Revenue,CATERING.FOOD & BEVERAGES
26-NOV-2021,7012465,15.8,ON A ROLL SANDWICH COMPANY,391893,Commissioning & Asset Management,Children's & Education Services,103,Supplies and Services,504,Equipment,5023,Revenue,CATERING.FOOD & BEVERAGES
26-NOV-2021,7012465,15.8,ON A ROLL SANDWICH COMPANY,391893,Commissioning & Asset Management,Children's & Education Services,103,Supplies and Services,504,Equipment,5023,Revenue,CATERING.FOOD & BEVERAGES
26-NOV-2021,7012465,15.8,ON A ROLL SANDWICH COMPANY,391893,Commissioning & Asset Management,Children's & Education Services,103,Supplies and Services,504,Equipment,5023,Revenue,CATERING.FOOD & BEVERAGES
26-NOV-2021,7012465,15.8,ON A ROLL SANDWICH COMPANY,391893,Commissioning & Asset Management,Children's & Education Services,103,Supplies and Services,504,Equipment,5023,Revenue,CATERING.FOOD & BEVERAGES
26-NOV-2021,7012465,15.8,ON A ROLL SANDWICH COMPANY,391893,Commissioning & Asset Management,Children's & Education Services,103,Supplies and Services,504,Equipment,5023,Revenue,CATERING.FOOD & BEVERAGES
26-NOV-2021,7012465,15.8,ON A ROLL SANDWICH COMPANY,391893,Commissioning & Asset Management,Children's & Education Services,103,Supplies and Services,504,Equipment,5023,Revenue,CATERING.FOOD & BEVERAGES
26-NOV-2021,7012465,15.8,ON A ROLL SANDWICH COMPANY,391893,Commissioning & Asset Management,Children's & Education Services,103,Supplies and Services,504,Equipment,5023,Revenue,CATERING.FOOD & BEVERAGES
26-NOV-2021,7012465,15.8,ON A ROLL SANDWICH COMPANY,391893,Commissioning & Asset Management,Children's & Education Services,103,Supplies and Services,504,Equipment,5023,Revenue,CATERING.FOOD & BEVERAGES
26-NOV-2021,7012465,15.8,ON A ROLL SANDWICH COMPANY,391893,Commissioning & Asset Management,Children's & Education Services,103,Supplies and Services,504,Equipment,5023,Revenue,CATERING.FOOD & BEVERAGES
26-NOV-2021,7012465,15.8,ON A ROLL SANDWICH COMPANY,391893,Commissioning & Asset Management,Children's & Education Services,103,Supplies and Services,504,Equipment,5023,Revenue,CATERING.FOOD & BEVERAGES
26-NOV-2021,7012465,15.8,ON A ROLL SANDWICH COMPANY,391893,Commissioning & Asset Management,Children's & Education Services,103,Supplies and Services,504,Equipment,5023,Revenue,CATERING.FOOD & BEVERAGES
26-NOV-2021,7012465,15.8,ON A ROLL SANDWICH COMPANY,391893,Commissioning & Asset Management,Children's & Education Services,103,Supplies and Services,504,Equipment,5023,Revenue,CATERING.FOOD & BEVERAGES
26-NOV-2021,7012465,15.8,ON A ROLL SANDWICH COMPANY,391893,Commissioning & Asset Management,Children's & Education Services,103,Supplies and Services,504,Equipment,5023,Revenue,CATERING.FOOD & BEVERAGES
26-NOV-2021,7012465,15.82,ON A ROLL SANDWICH COMPANY,391893,Commissioning & Asset Management,Children's & Education Services,103,Supplies and Services,504,Equipment,5023,Revenue,CATERING.FOOD & BEVERAGES
26-NOV-2021,7012465,16.35,ON A ROLL SANDWICH COMPANY,391893,Commissioning & Asset Management,Children's & Education Services,103,Supplies and Services,504,Equipment,5023,Revenue,CATERING.FOOD & BEVERAGES
26-NOV-2021,7012465,16.35,ON A ROLL SANDWICH COMPANY,391893,Commissioning & Asset Management,Children's & Education Services,103,Supplies and Services,504,Equipment,5023,Revenue,CATERING.FOOD & BEVERAGES
26-NOV-2021,7012465,16.38,ON A ROLL SANDWICH COMPANY,391893,Commissioning & Asset Management,Children's & Education Services,103,Supplies and Services,504,Equipment,5023,Revenue,CATERING.FOOD & BEVERAGES
26-NOV-2021,7012465,16.52,ON A ROLL SANDWICH COMPANY,391893,Commissioning & Asset Management,Children's & Education Services,103,Supplies and Services,504,Equipment,5023,Revenue,CATERING.FOOD & BEVERAGES
26-NOV-2021,7012465,16.59,ON A ROLL SANDWICH COMPANY,391893,Commissioning & Asset Management,Children's & Education Services,103,Supplies and Services,504,Equipment,5023,Revenue,CATERING.FOOD & BEVERAGES
26-NOV-2021,7012465,16.59,ON A ROLL SANDWICH COMPANY,391893,Commissioning & Asset Management,Children's & Education Services,103,Supplies and Services,504,Equipment,5023,Revenue,CATERING.FOOD & BEVERAGES
26-NOV-2021,7012465,16.59,ON A ROLL SANDWICH COMPANY,391893,Commissioning & Asset Management,Children's & Education Services,103,Supplies and Services,504,Equipment,5023,Revenue,CATERING.FOOD & BEVERAGES
26-NOV-2021,7012465,16.59,ON A ROLL SANDWICH COMPANY,391893,Commissioning & Asset Management,Children's & Education Services,103,Supplies and Services,504,Equipment,5023,Revenue,CATERING.FOOD & BEVERAGES
26-NOV-2021,7012465,16.8,ON A ROLL SANDWICH COMPANY,391893,Commissioning & Asset Management,Children's & Education Services,103,Supplies and Services,504,Equipment,5023,Revenue,CATERING.FOOD & BEVERAGES
26-NOV-2021,7012465,17.29,ON A ROLL SANDWICH COMPANY,391893,Commissioning & Asset Management,Children's & Education Services,103,Supplies and Services,504,Equipment,5023,Revenue,CATERING.FOOD & BEVERAGES
26-NOV-2021,7012465,17.29,ON A ROLL SANDWICH COMPANY,391893,Commissioning & Asset Management,Children's & Education Services,103,Supplies and Services,504,Equipment,5023,Revenue,CATERING.FOOD & BEVERAGES
26-NOV-2021,7012465,17.38,ON A ROLL SANDWICH COMPANY,391893,Commissioning & Asset Management,Children's & Education Services,103,Supplies and Services,504,Equipment,5023,Revenue,CATERING.FOOD & BEVERAGES
26-NOV-2021,7012465,17.6,ON A ROLL SANDWICH COMPANY,391893,Commissioning & Asset Management,Children's & Education Services,103,Supplies and Services,504,Equipment,5023,Revenue,CATERING.FOOD & BEVERAGES
26-NOV-2021,7012465,17.76,ON A ROLL SANDWICH COMPANY,391893,Commissioning & Asset Management,Children's & Education Services,103,Supplies and Services,504,Equipment,5023,Revenue,CATERING.FOOD & BEVERAGES
26-NOV-2021,7012465,17.76,ON A ROLL SANDWICH COMPANY,391893,Commissioning & Asset Management,Children's & Education Services,103,Supplies and Services,504,Equipment,5023,Revenue,CATERING.FOOD & BEVERAGES
26-NOV-2021,7012465,18.2,ON A ROLL SANDWICH COMPANY,391893,Commissioning & Asset Management,Children's & Education Services,103,Supplies and Services,504,Equipment,5023,Revenue,CATERING.FOOD & BEVERAGES
26-NOV-2021,7012465,18.2,ON A ROLL SANDWICH COMPANY,391893,Commissioning & Asset Management,Children's & Education Services,103,Supplies and Services,504,Equipment,5023,Revenue,CATERING.FOOD & BEVERAGES
26-NOV-2021,7012465,18.2,ON A ROLL SANDWICH COMPANY,391893,Commissioning & Asset Management,Children's & Education Services,103,Supplies and Services,504,Equipment,5023,Revenue,CATERING.FOOD & BEVERAGES
26-NOV-2021,7012465,18.2,ON A ROLL SANDWICH COMPANY,391893,Commissioning & Asset Management,Children's & Education Services,103,Supplies and Services,504,Equipment,5023,Revenue,CATERING.FOOD & BEVERAGES
26-NOV-2021,7012465,18.2,ON A ROLL SANDWICH COMPANY,391893,Commissioning & Asset Management,Children's & Education Services,103,Supplies and Services,504,Equipment,5023,Revenue,CATERING.FOOD & BEVERAGES
26-NOV-2021,7012465,18.2,ON A ROLL SANDWICH COMPANY,391893,Commissioning & Asset Management,Children's & Education Services,103,Supplies and Services,504,Equipment,5023,Revenue,CATERING.FOOD & BEVERAGES
26-NOV-2021,7012465,18.2,ON A ROLL SANDWICH COMPANY,391893,Commissioning & Asset Management,Children's & Education Services,103,Supplies and Services,504,Equipment,5023,Revenue,CATERING.FOOD & BEVERAGES
26-NOV-2021,7012465,18.2,ON A ROLL SANDWICH COMPANY,391893,Commissioning & Asset Management,Children's & Education Services,103,Supplies and Services,504,Equipment,5023,Revenue,CATERING.FOOD & BEVERAGES
26-NOV-2021,7012465,18.2,ON A ROLL SANDWICH COMPANY,391893,Commissioning & Asset Management,Children's & Education Services,103,Supplies and Services,504,Equipment,5023,Revenue,CATERING.FOOD & BEVERAGES
26-NOV-2021,7012465,18.2,ON A ROLL SANDWICH COMPANY,391893,Commissioning & Asset Management,Children's & Education Services,103,Supplies and Services,504,Equipment,5023,Revenue,CATERING.FOOD & BEVERAGES
26-NOV-2021,7012465,18.2,ON A ROLL SANDWICH COMPANY,391893,Commissioning & Asset Management,Children's & Education Services,103,Supplies and Services,504,Equipment,5023,Revenue,CATERING.FOOD & BEVERAGES
26-NOV-2021,7012465,18.8,ON A ROLL SANDWICH COMPANY,391893,Commissioning & Asset Management,Children's & Education Services,103,Supplies and Services,504,Equipment,5023,Revenue,CATERING.FOOD & BEVERAGES
26-NOV-2021,7012465,18.8,ON A ROLL SANDWICH COMPANY,391893,Commissioning & Asset Management,Children's & Education Services,103,Supplies and Services,504,Equipment,5023,Revenue,CATERING.FOOD & BEVERAGES
26-NOV-2021,7012465,18.8,ON A ROLL SANDWICH COMPANY,391893,Commissioning & Asset Management,Children's & Education Services,103,Supplies and Services,504,Equipment,5023,Revenue,CATERING.FOOD & BEVERAGES
26-NOV-2021,7012465,18.88,ON A ROLL SANDWICH COMPANY,391893,Commissioning & Asset Management,Children's & Education Services,103,Supplies and Services,504,Equipment,5023,Revenue,CATERING.FOOD & BEVERAGES
26-NOV-2021,7012465,18.88,ON A ROLL SANDWICH COMPANY,391893,Commissioning & Asset Management,Children's & Education Services,103,Supplies and Services,504,Equipment,5023,Revenue,CATERING.FOOD & BEVERAGES
26-NOV-2021,7012465,18.88,ON A ROLL SANDWICH COMPANY,391893,Commissioning & Asset Management,Children's & Education Services,103,Supplies and Services,504,Equipment,5023,Revenue,CATERING.FOOD & BEVERAGES
26-NOV-2021,7012465,18.88,ON A ROLL SANDWICH COMPANY,391893,Commissioning & Asset Management,Children's & Education Services,103,Supplies and Services,504,Equipment,5023,Revenue,CATERING.FOOD & BEVERAGES
26-NOV-2021,7012465,18.96,ON A ROLL SANDWICH COMPANY,391893,Commissioning & Asset Management,Children's & Education Services,103,Supplies and Services,504,Equipment,5023,Revenue,CATERING.FOOD & BEVERAGES
26-NOV-2021,7012465,18.96,ON A ROLL SANDWICH COMPANY,391893,Commissioning & Asset Management,Children's & Education Services,103,Supplies and Services,504,Equipment,5023,Revenue,CATERING.FOOD & BEVERAGES
26-NOV-2021,7012465,18.96,ON A ROLL SANDWICH COMPANY,391893,Commissioning & Asset Management,Children's & Education Services,103,Supplies and Services,504,Equipment,5023,Revenue,CATERING.FOOD & BEVERAGES
26-NOV-2021,7012465,18.96,ON A ROLL SANDWICH COMPANY,391893,Commissioning & Asset Management,Children's & Education Services,103,Supplies and Services,504,Equipment,5023,Revenue,CATERING.FOOD & BEVERAGES
26-NOV-2021,7012465,18.96,ON A ROLL SANDWICH COMPANY,391893,Commissioning & Asset Management,Children's & Education Services,103,Supplies and Services,504,Equipment,5023,Revenue,CATERING.FOOD & BEVERAGES
26-NOV-2021,7012465,19.11,ON A ROLL SANDWICH COMPANY,391893,Commissioning & Asset Management,Children's & Education Services,103,Supplies and Services,504,Equipment,5023,Revenue,CATERING.FOOD & BEVERAGES
26-NOV-2021,7012465,19.2,ON A ROLL SANDWICH COMPANY,391893,Commissioning & Asset Management,Children's & Education Services,103,Supplies and Services,504,Equipment,5023,Revenue,CATERING.FOOD & BEVERAGES
26-NOV-2021,7012465,19.2,ON A ROLL SANDWICH COMPANY,391893,Commissioning & Asset Management,Children's & Education Services,103,Supplies and Services,504,Equipment,5023,Revenue,CATERING.FOOD & BEVERAGES
26-NOV-2021,7012465,19.2,ON A ROLL SANDWICH COMPANY,391893,Commissioning & Asset Management,Children's & Education Services,103,Supplies and Services,504,Equipment,5023,Revenue,CATERING.FOOD & BEVERAGES
26-NOV-2021,7012465,19.2,ON A ROLL SANDWICH COMPANY,391893,Commissioning & Asset Management,Children's & Education Services,103,Supplies and Services,504,Equipment,5023,Revenue,CATERING.FOOD & BEVERAGES
26-NOV-2021,7012465,19.32,ON A ROLL SANDWICH COMPANY,391893,Commissioning & Asset Management,Children's & Education Services,103,Supplies and Services,504,Equipment,5023,Revenue,CATERING.FOOD & BEVERAGES
26-NOV-2021,7012465,19.75,ON A ROLL SANDWICH COMPANY,391893,Commissioning & Asset Management,Children's & Education Services,103,Supplies and Services,504,Equipment,5023,Revenue,CATERING.FOOD & BEVERAGES
26-NOV-2021,7012465,19.75,ON A ROLL SANDWICH COMPANY,391893,Commissioning & Asset Management,Children's & Education Services,103,Supplies and Services,504,Equipment,5023,Revenue,CATERING.FOOD & BEVERAGES
26-NOV-2021,7012465,19.75,ON A ROLL SANDWICH COMPANY,391893,Commissioning & Asset Management,Children's & Education Services,103,Supplies and Services,504,Equipment,5023,Revenue,CATERING.FOOD & BEVERAGES
26-NOV-2021,7012465,19.75,ON A ROLL SANDWICH COMPANY,391893,Commissioning & Asset Management,Children's & Education Services,103,Supplies and Services,504,Equipment,5023,Revenue,CATERING.FOOD & BEVERAGES
26-NOV-2021,7012465,19.8,ON A ROLL SANDWICH COMPANY,391893,Commissioning & Asset Management,Children's & Education Services,103,Supplies and Services,504,Equipment,5023,Revenue,CATERING.FOOD & BEVERAGES
26-NOV-2021,7012465,19.8,ON A ROLL SANDWICH COMPANY,391893,Commissioning & Asset Management,Children's & Education Services,103,Supplies and Services,504,Equipment,5023,Revenue,CATERING.FOOD & BEVERAGES
26-NOV-2021,7012465,20.4,ON A ROLL SANDWICH COMPANY,391893,Commissioning & Asset Management,Children's & Education Services,103,Supplies and Services,504,Equipment,5023,Revenue,CATERING.FOOD & BEVERAGES
26-NOV-2021,7012465,20.4,ON A ROLL SANDWICH COMPANY,391893,Commissioning & Asset Management,Children's & Education Services,103,Supplies and Services,504,Equipment,5023,Revenue,CATERING.FOOD & BEVERAGES
26-NOV-2021,7012465,20.54,ON A ROLL SANDWICH COMPANY,391893,Commissioning & Asset Management,Children's & Education Services,103,Supplies and Services,504,Equipment,5023,Revenue,CATERING.FOOD & BEVERAGES
26-NOV-2021,7012465,20.54,ON A ROLL SANDWICH COMPANY,391893,Commissioning & Asset Management,Children's & Education Services,103,Supplies and Services,504,Equipment,5023,Revenue,CATERING.FOOD & BEVERAGES
26-NOV-2021,7012465,20.54,ON A ROLL SANDWICH COMPANY,391893,Commissioning & Asset Management,Children's & Education Services,103,Supplies and Services,504,Equipment,5023,Revenue,CATERING.FOOD & BEVERAGES
26-NOV-2021,7012465,20.7,ON A ROLL SANDWICH COMPANY,391893,Commissioning & Asset Management,Children's & Education Services,103,Supplies and Services,504,Equipment,5023,Revenue,CATERING.FOOD & BEVERAGES
26-NOV-2021,7012465,20.93,ON A ROLL SANDWICH COMPANY,391893,Commissioning & Asset Management,Children's & Education Services,103,Supplies and Services,504,Equipment,5023,Revenue,CATERING.FOOD & BEVERAGES
26-NOV-2021,7012465,20.93,ON A ROLL SANDWICH COMPANY,391893,Commissioning & Asset Management,Children's & Education Services,103,Supplies and Services,504,Equipment,5023,Revenue,CATERING.FOOD & BEVERAGES
26-NOV-2021,7012465,20.93,ON A ROLL SANDWICH COMPANY,391893,Commissioning & Asset Management,Children's & Education Services,103,Supplies and Services,504,Equipment,5023,Revenue,CATERING.FOOD & BEVERAGES
26-NOV-2021,7012465,20.93,ON A ROLL SANDWICH COMPANY,391893,Commissioning & Asset Management,Children's & Education Services,103,Supplies and Services,504,Equipment,5023,Revenue,CATERING.FOOD & BEVERAGES
26-NOV-2021,7012465,21,ON A ROLL SANDWICH COMPANY,391893,Commissioning & Asset Management,Children's & Education Services,103,Supplies and Services,504,Equipment,5023,Revenue,CATERING.FOOD & BEVERAGES
26-NOV-2021,7012465,21,ON A ROLL SANDWICH COMPANY,391893,Commissioning & Asset Management,Children's & Education Services,103,Supplies and Services,504,Equipment,5023,Revenue,CATERING.FOOD & BEVERAGES
26-NOV-2021,7012465,21.15,ON A ROLL SANDWICH COMPANY,391893,Commissioning & Asset Management,Children's & Education Services,103,Supplies and Services,504,Equipment,5023,Revenue,CATERING.FOOD & BEVERAGES
26-NOV-2021,7012465,21.15,ON A ROLL SANDWICH COMPANY,391893,Commissioning & Asset Management,Children's & Education Services,103,Supplies and Services,504,Equipment,5023,Revenue,CATERING.FOOD & BEVERAGES
26-NOV-2021,7012465,21.6,ON A ROLL SANDWICH COMPANY,391893,Commissioning & Asset Management,Children's & Education Services,103,Supplies and Services,504,Equipment,5023,Revenue,CATERING.FOOD & BEVERAGES
26-NOV-2021,7012465,21.6,ON A ROLL SANDWICH COMPANY,391893,Commissioning & Asset Management,Children's & Education Services,103,Supplies and Services,504,Equipment,5023,Revenue,CATERING.FOOD & BEVERAGES
26-NOV-2021,7012465,21.84,ON A ROLL SANDWICH COMPANY,391893,Commissioning & Asset Management,Children's & Education Services,103,Supplies and Services,504,Equipment,5023,Revenue,CATERING.FOOD & BEVERAGES
26-NOV-2021,7012465,21.84,ON A ROLL SANDWICH COMPANY,391893,Commissioning & Asset Management,Children's & Education Services,103,Supplies and Services,504,Equipment,5023,Revenue,CATERING.FOOD & BEVERAGES
26-NOV-2021,7012465,21.84,ON A ROLL SANDWICH COMPANY,391893,Commissioning & Asset Management,Children's & Education Services,103,Supplies and Services,504,Equipment,5023,Revenue,CATERING.FOOD & BEVERAGES
26-NOV-2021,7012465,21.84,ON A ROLL SANDWICH COMPANY,391893,Commissioning & Asset Management,Children's & Education Services,103,Supplies and Services,504,Equipment,5023,Revenue,CATERING.FOOD & BEVERAGES
26-NOV-2021,7012465,21.84,ON A ROLL SANDWICH COMPANY,391893,Commissioning & Asset Management,Children's & Education Services,103,Supplies and Services,504,Equipment,5023,Revenue,CATERING.FOOD & BEVERAGES
26-NOV-2021,7012465,22.12,ON A ROLL SANDWICH COMPANY,391893,Commissioning & Asset Management,Children's & Education Services,103,Supplies and Services,504,Equipment,5023,Revenue,CATERING.FOOD & BEVERAGES
26-NOV-2021,7012465,22.12,ON A ROLL SANDWICH COMPANY,391893,Commissioning & Asset Management,Children's & Education Services,103,Supplies and Services,504,Equipment,5023,Revenue,CATERING.FOOD & BEVERAGES
26-NOV-2021,7012465,22.44,ON A ROLL SANDWICH COMPANY,391893,Commissioning & Asset Management,Children's & Education Services,103,Supplies and Services,504,Equipment,5023,Revenue,CATERING.FOOD & BEVERAGES
26-NOV-2021,7012465,22.75,ON A ROLL SANDWICH COMPANY,391893,Commissioning & Asset Management,Children's & Education Services,103,Supplies and Services,504,Equipment,5023,Revenue,CATERING.FOOD & BEVERAGES
26-NOV-2021,7012465,22.75,ON A ROLL SANDWICH COMPANY,391893,Commissioning & Asset Management,Children's & Education Services,103,Supplies and Services,504,Equipment,5023,Revenue,CATERING.FOOD & BEVERAGES
26-NOV-2021,7012465,22.75,ON A ROLL SANDWICH COMPANY,391893,Commissioning & Asset Management,Children's & Education Services,103,Supplies and Services,504,Equipment,5023,Revenue,CATERING.FOOD & BEVERAGES
26-NOV-2021,7012465,22.75,ON A ROLL SANDWICH COMPANY,391893,Commissioning & Asset Management,Children's & Education Services,103,Supplies and Services,504,Equipment,5023,Revenue,CATERING.FOOD & BEVERAGES
26-NOV-2021,7012465,22.75,ON A ROLL SANDWICH COMPANY,391893,Commissioning & Asset Management,Children's & Education Services,103,Supplies and Services,504,Equipment,5023,Revenue,CATERING.FOOD & BEVERAGES
26-NOV-2021,7012465,22.75,ON A ROLL SANDWICH COMPANY,391893,Commissioning & Asset Management,Children's & Education Services,103,Supplies and Services,504,Equipment,5023,Revenue,CATERING.FOOD & BEVERAGES
26-NOV-2021,7012465,22.91,ON A ROLL SANDWICH COMPANY,391893,Commissioning & Asset Management,Children's & Education Services,103,Supplies and Services,504,Equipment,5023,Revenue,CATERING.FOOD & BEVERAGES
26-NOV-2021,7012465,22.91,ON A ROLL SANDWICH COMPANY,391893,Commissioning & Asset Management,Children's & Education Services,103,Supplies and Services,504,Equipment,5023,Revenue,CATERING.FOOD & BEVERAGES
26-NOV-2021,7012465,23,ON A ROLL SANDWICH COMPANY,391893,Commissioning & Asset Management,Children's & Education Services,103,Supplies and Services,504,Equipment,5023,Revenue,CATERING.FOOD & BEVERAGES
26-NOV-2021,7012465,23.66,ON A ROLL SANDWICH COMPANY,391893,Commissioning & Asset Management,Children's & Education Services,103,Supplies and Services,504,Equipment,5023,Revenue,CATERING.FOOD & BEVERAGES
26-NOV-2021,7012465,23.7,ON A ROLL SANDWICH COMPANY,391893,Commissioning & Asset Management,Children's & Education Services,103,Supplies and Services,504,Equipment,5023,Revenue,CATERING.FOOD & BEVERAGES
26-NOV-2021,7012465,23.7,ON A ROLL SANDWICH COMPANY,391893,Commissioning & Asset Management,Children's & Education Services,103,Supplies and Services,504,Equipment,5023,Revenue,CATERING.FOOD & BEVERAGES
26-NOV-2021,7012465,23.7,ON A ROLL SANDWICH COMPANY,391893,Commissioning & Asset Management,Children's & Education Services,103,Supplies and Services,504,Equipment,5023,Revenue,CATERING.FOOD & BEVERAGES
26-NOV-2021,7012465,23.7,ON A ROLL SANDWICH COMPANY,391893,Commissioning & Asset Management,Children's & Education Services,103,Supplies and Services,504,Equipment,5023,Revenue,CATERING.FOOD & BEVERAGES
26-NOV-2021,7012465,23.7,ON A ROLL SANDWICH COMPANY,391893,Commissioning & Asset Management,Children's & Education Services,103,Supplies and Services,504,Equipment,5023,Revenue,CATERING.FOOD & BEVERAGES
26-NOV-2021,7012465,23.7,ON A ROLL SANDWICH COMPANY,391893,Commissioning & Asset Management,Children's & Education Services,103,Supplies and Services,504,Equipment,5023,Revenue,CATERING.FOOD & BEVERAGES
26-NOV-2021,7012465,23.7,ON A ROLL SANDWICH COMPANY,391893,Commissioning & Asset Management,Children's & Education Services,103,Supplies and Services,504,Equipment,5023,Revenue,CATERING.FOOD & BEVERAGES
26-NOV-2021,7012465,23.7,ON A ROLL SANDWICH COMPANY,391893,Commissioning & Asset Management,Children's & Education Services,103,Supplies and Services,504,Equipment,5023,Revenue,CATERING.FOOD & BEVERAGES
26-NOV-2021,7012465,23.7,ON A ROLL SANDWICH COMPANY,391893,Commissioning & Asset Management,Children's & Education Services,103,Supplies and Services,504,Equipment,5023,Revenue,CATERING.FOOD & BEVERAGES
26-NOV-2021,7012465,23.7,ON A ROLL SANDWICH COMPANY,391893,Commissioning & Asset Management,Children's & Education Services,103,Supplies and Services,504,Equipment,5023,Revenue,CATERING.FOOD & BEVERAGES
26-NOV-2021,7012465,23.7,ON A ROLL SANDWICH COMPANY,391893,Commissioning & Asset Management,Children's & Education Services,103,Supplies and Services,504,Equipment,5023,Revenue,CATERING.FOOD & BEVERAGES
26-NOV-2021,7012465,23.7,ON A ROLL SANDWICH COMPANY,391893,Commissioning & Asset Management,Children's & Education Services,103,Supplies and Services,504,Equipment,5023,Revenue,CATERING.FOOD & BEVERAGES
26-NOV-2021,7012465,23.7,ON A ROLL SANDWICH COMPANY,391893,Commissioning & Asset Management,Children's & Education Services,103,Supplies and Services,504,Equipment,5023,Revenue,CATERING.FOOD & BEVERAGES
26-NOV-2021,7012465,23.7,ON A ROLL SANDWICH COMPANY,391893,Commissioning & Asset Management,Children's & Education Services,103,Supplies and Services,504,Equipment,5023,Revenue,CATERING.FOOD & BEVERAGES
26-NOV-2021,7012465,23.7,ON A ROLL SANDWICH COMPANY,391893,Commissioning & Asset Management,Children's & Education Services,103,Supplies and Services,504,Equipment,5023,Revenue,CATERING.FOOD & BEVERAGES
26-NOV-2021,7012465,24,ON A ROLL SANDWICH COMPANY,391893,Commissioning & Asset Management,Children's & Education Services,103,Supplies and Services,504,Equipment,5023,Revenue,CATERING.FOOD & BEVERAGES
26-NOV-2021,7012465,24.2,ON A ROLL SANDWICH COMPANY,391893,Commissioning & Asset Management,Children's & Education Services,103,Supplies and Services,504,Equipment,5023,Revenue,CATERING.FOOD & BEVERAGES
26-NOV-2021,7012465,24.2,ON A ROLL SANDWICH COMPANY,391893,Commissioning & Asset Management,Children's & Education Services,103,Supplies and Services,504,Equipment,5023,Revenue,CATERING.FOOD & BEVERAGES
26-NOV-2021,7012465,24.48,ON A ROLL SANDWICH COMPANY,391893,Commissioning & Asset Management,Children's & Education Services,103,Supplies and Services,504,Equipment,5023,Revenue,CATERING.FOOD & BEVERAGES
26-NOV-2021,7012465,24.64,ON A ROLL SANDWICH COMPANY,391893,Commissioning & Asset Management,Children's & Education Services,103,Supplies and Services,504,Equipment,5023,Revenue,CATERING.FOOD & BEVERAGES
26-NOV-2021,7012465,24.84,ON A ROLL SANDWICH COMPANY,391893,Commissioning & Asset Management,Children's & Education Services,103,Supplies and Services,504,Equipment,5023,Revenue,CATERING.FOOD & BEVERAGES
26-NOV-2021,7012465,25,ON A ROLL SANDWICH COMPANY,391893,Commissioning & Asset Management,Children's & Education Services,103,Supplies and Services,504,Equipment,5023,Revenue,CATERING.FOOD & BEVERAGES
26-NOV-2021,7012465,25,ON A ROLL SANDWICH COMPANY,391893,Commissioning & Asset Management,Children's & Education Services,103,Supplies and Services,504,Equipment,5023,Revenue,CATERING.FOOD & BEVERAGES
26-NOV-2021,7012465,25.28,ON A ROLL SANDWICH COMPANY,391893,Commissioning & Asset Management,Children's & Education Services,103,Supplies and Services,504,Equipment,5023,Revenue,CATERING.FOOD & BEVERAGES
26-NOV-2021,7012465,25.48,ON A ROLL SANDWICH COMPANY,391893,Commissioning & Asset Management,Children's & Education Services,103,Supplies and Services,504,Equipment,5023,Revenue,CATERING.FOOD & BEVERAGES
26-NOV-2021,7012465,25.48,ON A ROLL SANDWICH COMPANY,391893,Commissioning & Asset Management,Children's & Education Services,103,Supplies and Services,504,Equipment,5023,Revenue,CATERING.FOOD & BEVERAGES
26-NOV-2021,7012465,25.48,ON A ROLL SANDWICH COMPANY,391893,Commissioning & Asset Management,Children's & Education Services,103,Supplies and Services,504,Equipment,5023,Revenue,CATERING.FOOD & BEVERAGES
26-NOV-2021,7012465,25.5,ON A ROLL SANDWICH COMPANY,391893,Commissioning & Asset Management,Children's & Education Services,103,Supplies and Services,504,Equipment,5023,Revenue,CATERING.FOOD & BEVERAGES
26-NOV-2021,7012465,25.85,ON A ROLL SANDWICH COMPANY,391893,Commissioning & Asset Management,Children's & Education Services,103,Supplies and Services,504,Equipment,5023,Revenue,CATERING.FOOD & BEVERAGES
26-NOV-2021,7012465,26.07,ON A ROLL SANDWICH COMPANY,391893,Commissioning & Asset Management,Children's & Education Services,103,Supplies and Services,504,Equipment,5023,Revenue,CATERING.FOOD & BEVERAGES
26-NOV-2021,7012465,26.07,ON A ROLL SANDWICH COMPANY,391893,Commissioning & Asset Management,Children's & Education Services,103,Supplies and Services,504,Equipment,5023,Revenue,CATERING.FOOD & BEVERAGES
26-NOV-2021,7012465,26.39,ON A ROLL SANDWICH COMPANY,391893,Commissioning & Asset Management,Children's & Education Services,103,Supplies and Services,504,Equipment,5023,Revenue,CATERING.FOOD & BEVERAGES
26-NOV-2021,7012465,26.86,ON A ROLL SANDWICH COMPANY,391893,Commissioning & Asset Management,Children's & Education Services,103,Supplies and Services,504,Equipment,5023,Revenue,CATERING.FOOD & BEVERAGES
26-NOV-2021,7012465,26.86,ON A ROLL SANDWICH COMPANY,391893,Commissioning & Asset Management,Children's & Education Services,103,Supplies and Services,504,Equipment,5023,Revenue,CATERING.FOOD & BEVERAGES
26-NOV-2021,7012465,27,ON A ROLL SANDWICH COMPANY,391893,Commissioning & Asset Management,Children's & Education Services,103,Supplies and Services,504,Equipment,5023,Revenue,CATERING.FOOD & BEVERAGES
26-NOV-2021,7012465,27.3,ON A ROLL SANDWICH COMPANY,391893,Commissioning & Asset Management,Children's & Education Services,103,Supplies and Services,504,Equipment,5023,Revenue,CATERING.FOOD & BEVERAGES
26-NOV-2021,7012465,27.3,ON A ROLL SANDWICH COMPANY,391893,Commissioning & Asset Management,Children's & Education Services,103,Supplies and Services,504,Equipment,5023,Revenue,CATERING.FOOD & BEVERAGES
26-NOV-2021,7012465,27.3,ON A ROLL SANDWICH COMPANY,391893,Commissioning & Asset Management,Children's & Education Services,103,Supplies and Services,504,Equipment,5023,Revenue,CATERING.FOOD & BEVERAGES
26-NOV-2021,7012465,27.3,ON A ROLL SANDWICH COMPANY,391893,Commissioning & Asset Management,Children's & Education Services,103,Supplies and Services,504,Equipment,5023,Revenue,CATERING.FOOD & BEVERAGES
26-NOV-2021,7012465,27.3,ON A ROLL SANDWICH COMPANY,391893,Commissioning & Asset Management,Children's & Education Services,103,Supplies and Services,504,Equipment,5023,Revenue,CATERING.FOOD & BEVERAGES
26-NOV-2021,7012465,27.3,ON A ROLL SANDWICH COMPANY,391893,Commissioning & Asset Management,Children's & Education Services,103,Supplies and Services,504,Equipment,5023,Revenue,CATERING.FOOD & BEVERAGES
26-NOV-2021,7012465,27.3,ON A ROLL SANDWICH COMPANY,391893,Commissioning & Asset Management,Children's & Education Services,103,Supplies and Services,504,Equipment,5023,Revenue,CATERING.FOOD & BEVERAGES
26-NOV-2021,7012465,27.3,ON A ROLL SANDWICH COMPANY,391893,Commissioning & Asset Management,Children's & Education Services,103,Supplies and Services,504,Equipment,5023,Revenue,CATERING.FOOD & BEVERAGES
26-NOV-2021,7012465,27.3,ON A ROLL SANDWICH COMPANY,391893,Commissioning & Asset Management,Children's & Education Services,103,Supplies and Services,504,Equipment,5023,Revenue,CATERING.FOOD & BEVERAGES
26-NOV-2021,7012465,27.3,ON A ROLL SANDWICH COMPANY,391893,Commissioning & Asset Management,Children's & Education Services,103,Supplies and Services,504,Equipment,5023,Revenue,CATERING.FOOD & BEVERAGES
26-NOV-2021,7012465,27.3,ON A ROLL SANDWICH COMPANY,391893,Commissioning & Asset Management,Children's & Education Services,103,Supplies and Services,504,Equipment,5023,Revenue,CATERING.FOOD & BEVERAGES
26-NOV-2021,7012465,27.6,ON A ROLL SANDWICH COMPANY,391893,Commissioning & Asset Management,Children's & Education Services,103,Supplies and Services,504,Equipment,5023,Revenue,CATERING.FOOD & BEVERAGES
26-NOV-2021,7012465,27.65,ON A ROLL SANDWICH COMPANY,391893,Commissioning & Asset Management,Children's & Education Services,103,Supplies and Services,504,Equipment,5023,Revenue,CATERING.FOOD & BEVERAGES
26-NOV-2021,7012465,28.2,ON A ROLL SANDWICH COMPANY,391893,Commissioning & Asset Management,Children's & Education Services,103,Supplies and Services,504,Equipment,5023,Revenue,CATERING.FOOD & BEVERAGES
26-NOV-2021,7012465,28.44,ON A ROLL SANDWICH COMPANY,391893,Commissioning & Asset Management,Children's & Education Services,103,Supplies and Services,504,Equipment,5023,Revenue,CATERING.FOOD & BEVERAGES
26-NOV-2021,7012465,28.44,ON A ROLL SANDWICH COMPANY,391893,Commissioning & Asset Management,Children's & Education Services,103,Supplies and Services,504,Equipment,5023,Revenue,CATERING.FOOD & BEVERAGES
26-NOV-2021,7012465,28.44,ON A ROLL SANDWICH COMPANY,391893,Commissioning & Asset Management,Children's & Education Services,103,Supplies and Services,504,Equipment,5023,Revenue,CATERING.FOOD & BEVERAGES
26-NOV-2021,7012465,29.26,ON A ROLL SANDWICH COMPANY,391893,Commissioning & Asset Management,Children's & Education Services,103,Supplies and Services,504,Equipment,5023,Revenue,CATERING.FOOD & BEVERAGES
26-NOV-2021,7012465,30.03,ON A ROLL SANDWICH COMPANY,391893,Commissioning & Asset Management,Children's & Education Services,103,Supplies and Services,504,Equipment,5023,Revenue,CATERING.FOOD & BEVERAGES
26-NOV-2021,7012465,30.94,ON A ROLL SANDWICH COMPANY,391893,Commissioning & Asset Management,Children's & Education Services,103,Supplies and Services,504,Equipment,5023,Revenue,CATERING.FOOD & BEVERAGES
26-NOV-2021,7012465,30.94,ON A ROLL SANDWICH COMPANY,391893,Commissioning & Asset Management,Children's & Education Services,103,Supplies and Services,504,Equipment,5023,Revenue,CATERING.FOOD & BEVERAGES
26-NOV-2021,7012465,31.6,ON A ROLL SANDWICH COMPANY,391893,Commissioning & Asset Management,Children's & Education Services,103,Supplies and Services,504,Equipment,5023,Revenue,CATERING.FOOD & BEVERAGES
26-NOV-2021,7012465,31.6,ON A ROLL SANDWICH COMPANY,391893,Commissioning & Asset Management,Children's & Education Services,103,Supplies and Services,504,Equipment,5023,Revenue,CATERING.FOOD & BEVERAGES
26-NOV-2021,7012465,31.6,ON A ROLL SANDWICH COMPANY,391893,Commissioning & Asset Management,Children's & Education Services,103,Supplies and Services,504,Equipment,5023,Revenue,CATERING.FOOD & BEVERAGES
26-NOV-2021,7012465,31.6,ON A ROLL SANDWICH COMPANY,391893,Commissioning & Asset Management,Children's & Education Services,103,Supplies and Services,504,Equipment,5023,Revenue,CATERING.FOOD & BEVERAGES
26-NOV-2021,7012465,31.85,ON A ROLL SANDWICH COMPANY,391893,Commissioning & Asset Management,Children's & Education Services,103,Supplies and Services,504,Equipment,5023,Revenue,CATERING.FOOD & BEVERAGES
26-NOV-2021,7012465,31.85,ON A ROLL SANDWICH COMPANY,391893,Commissioning & Asset Management,Children's & Education Services,103,Supplies and Services,504,Equipment,5023,Revenue,CATERING.FOOD & BEVERAGES
26-NOV-2021,7012465,32,ON A ROLL SANDWICH COMPANY,391893,Commissioning & Asset Management,Children's & Education Services,103,Supplies and Services,504,Equipment,5023,Revenue,CATERING.FOOD & BEVERAGES
26-NOV-2021,7012465,32,ON A ROLL SANDWICH COMPANY,391893,Commissioning & Asset Management,Children's & Education Services,103,Supplies and Services,504,Equipment,5023,Revenue,CATERING.FOOD & BEVERAGES
26-NOV-2021,7012465,32.2,ON A ROLL SANDWICH COMPANY,391893,Commissioning & Asset Management,Children's & Education Services,103,Supplies and Services,504,Equipment,5023,Revenue,CATERING.FOOD & BEVERAGES
26-NOV-2021,7012465,32.2,ON A ROLL SANDWICH COMPANY,391893,Commissioning & Asset Management,Children's & Education Services,103,Supplies and Services,504,Equipment,5023,Revenue,CATERING.FOOD & BEVERAGES
26-NOV-2021,7012465,32.76,ON A ROLL SANDWICH COMPANY,391893,Commissioning & Asset Management,Children's & Education Services,103,Supplies and Services,504,Equipment,5023,Revenue,CATERING.FOOD & BEVERAGES
26-NOV-2021,7012465,33.12,ON A ROLL SANDWICH COMPANY,391893,Commissioning & Asset Management,Children's & Education Services,103,Supplies and Services,504,Equipment,5023,Revenue,CATERING.FOOD & BEVERAGES
26-NOV-2021,7012465,33.12,ON A ROLL SANDWICH COMPANY,391893,Commissioning & Asset Management,Children's & Education Services,103,Supplies and Services,504,Equipment,5023,Revenue,CATERING.FOOD & BEVERAGES
26-NOV-2021,7012465,33.18,ON A ROLL SANDWICH COMPANY,391893,Commissioning & Asset Management,Children's & Education Services,103,Supplies and Services,504,Equipment,5023,Revenue,CATERING.FOOD & BEVERAGES
26-NOV-2021,7012465,33.18,ON A ROLL SANDWICH COMPANY,391893,Commissioning & Asset Management,Children's & Education Services,103,Supplies and Services,504,Equipment,5023,Revenue,CATERING.FOOD & BEVERAGES
26-NOV-2021,7012465,33.25,ON A ROLL SANDWICH COMPANY,391893,Commissioning & Asset Management,Children's & Education Services,103,Supplies and Services,504,Equipment,5023,Revenue,CATERING.FOOD & BEVERAGES
26-NOV-2021,7012465,33.67,ON A ROLL SANDWICH COMPANY,391893,Commissioning & Asset Management,Children's & Education Services,103,Supplies and Services,504,Equipment,5023,Revenue,CATERING.FOOD & BEVERAGES
26-NOV-2021,7012465,33.9,ON A ROLL SANDWICH COMPANY,391893,Commissioning & Asset Management,Children's & Education Services,103,Supplies and Services,504,Equipment,5023,Revenue,CATERING.FOOD & BEVERAGES
26-NOV-2021,7012465,33.9,ON A ROLL SANDWICH COMPANY,391893,Commissioning & Asset Management,Children's & Education Services,103,Supplies and Services,504,Equipment,5023,Revenue,CATERING.FOOD & BEVERAGES
26-NOV-2021,7012465,34,ON A ROLL SANDWICH COMPANY,391893,Commissioning & Asset Management,Children's & Education Services,103,Supplies and Services,504,Equipment,5023,Revenue,CATERING.FOOD & BEVERAGES
26-NOV-2021,7012465,34.5,ON A ROLL SANDWICH COMPANY,391893,Commissioning & Asset Management,Children's & Education Services,103,Supplies and Services,504,Equipment,5023,Revenue,CATERING.FOOD & BEVERAGES
26-NOV-2021,7012465,34.5,ON A ROLL SANDWICH COMPANY,391893,Commissioning & Asset Management,Children's & Education Services,103,Supplies and Services,504,Equipment,5023,Revenue,CATERING.FOOD & BEVERAGES
26-NOV-2021,7012465,34.5,ON A ROLL SANDWICH COMPANY,391893,Commissioning & Asset Management,Children's & Education Services,103,Supplies and Services,504,Equipment,5023,Revenue,CATERING.FOOD & BEVERAGES
26-NOV-2021,7012465,34.56,ON A ROLL SANDWICH COMPANY,391893,Commissioning & Asset Management,Children's & Education Services,103,Supplies and Services,504,Equipment,5023,Revenue,CATERING.FOOD & BEVERAGES
26-NOV-2021,7012465,35.88,ON A ROLL SANDWICH COMPANY,391893,Commissioning & Asset Management,Children's & Education Services,103,Supplies and Services,504,Equipment,5023,Revenue,CATERING.FOOD & BEVERAGES
26-NOV-2021,7012465,35.88,ON A ROLL SANDWICH COMPANY,391893,Commissioning & Asset Management,Children's & Education Services,103,Supplies and Services,504,Equipment,5023,Revenue,CATERING.FOOD & BEVERAGES
26-NOV-2021,7012465,35.91,ON A ROLL SANDWICH COMPANY,391893,Commissioning & Asset Management,Children's & Education Services,103,Supplies and Services,504,Equipment,5023,Revenue,CATERING.FOOD & BEVERAGES
26-NOV-2021,7012465,36.16,ON A ROLL SANDWICH COMPANY,391893,Commissioning & Asset Management,Children's & Education Services,103,Supplies and Services,504,Equipment,5023,Revenue,CATERING.FOOD & BEVERAGES
26-NOV-2021,7012465,36.16,ON A ROLL SANDWICH COMPANY,391893,Commissioning & Asset Management,Children's & Education Services,103,Supplies and Services,504,Equipment,5023,Revenue,CATERING.FOOD & BEVERAGES
26-NOV-2021,7012465,36.16,ON A ROLL SANDWICH COMPANY,391893,Commissioning & Asset Management,Children's & Education Services,103,Supplies and Services,504,Equipment,5023,Revenue,CATERING.FOOD & BEVERAGES
26-NOV-2021,7012465,36.16,ON A ROLL SANDWICH COMPANY,391893,Commissioning & Asset Management,Children's & Education Services,103,Supplies and Services,504,Equipment,5023,Revenue,CATERING.FOOD & BEVERAGES
26-NOV-2021,7012465,36.4,ON A ROLL SANDWICH COMPANY,391893,Commissioning & Asset Management,Children's & Education Services,103,Supplies and Services,504,Equipment,5023,Revenue,CATERING.FOOD & BEVERAGES
26-NOV-2021,7012465,36.4,ON A ROLL SANDWICH COMPANY,391893,Commissioning & Asset Management,Children's & Education Services,103,Supplies and Services,504,Equipment,5023,Revenue,CATERING.FOOD & BEVERAGES
26-NOV-2021,7012465,36.4,ON A ROLL SANDWICH COMPANY,391893,Commissioning & Asset Management,Children's & Education Services,103,Supplies and Services,504,Equipment,5023,Revenue,CATERING.FOOD & BEVERAGES
26-NOV-2021,7012465,37.12,ON A ROLL SANDWICH COMPANY,391893,Commissioning & Asset Management,Children's & Education Services,103,Supplies and Services,504,Equipment,5023,Revenue,CATERING.FOOD & BEVERAGES
26-NOV-2021,7012465,37.26,ON A ROLL SANDWICH COMPANY,391893,Commissioning & Asset Management,Children's & Education Services,103,Supplies and Services,504,Equipment,5023,Revenue,CATERING.FOOD & BEVERAGES
26-NOV-2021,7012465,37.26,ON A ROLL SANDWICH COMPANY,391893,Commissioning & Asset Management,Children's & Education Services,103,Supplies and Services,504,Equipment,5023,Revenue,CATERING.FOOD & BEVERAGES
26-NOV-2021,7012465,37.26,ON A ROLL SANDWICH COMPANY,391893,Commissioning & Asset Management,Children's & Education Services,103,Supplies and Services,504,Equipment,5023,Revenue,CATERING.FOOD & BEVERAGES
26-NOV-2021,7012465,37.92,ON A ROLL SANDWICH COMPANY,391893,Commissioning & Asset Management,Children's & Education Services,103,Supplies and Services,504,Equipment,5023,Revenue,CATERING.FOOD & BEVERAGES
26-NOV-2021,7012465,38,ON A ROLL SANDWICH COMPANY,391893,Commissioning & Asset Management,Children's & Education Services,103,Supplies and Services,504,Equipment,5023,Revenue,CATERING.FOOD & BEVERAGES
26-NOV-2021,7012465,38.4,ON A ROLL SANDWICH COMPANY,391893,Commissioning & Asset Management,Children's & Education Services,103,Supplies and Services,504,Equipment,5023,Revenue,CATERING.FOOD & BEVERAGES
26-NOV-2021,7012465,38.64,ON A ROLL SANDWICH COMPANY,391893,Commissioning & Asset Management,Children's & Education Services,103,Supplies and Services,504,Equipment,5023,Revenue,CATERING.FOOD & BEVERAGES
26-NOV-2021,7012465,39.5,ON A ROLL SANDWICH COMPANY,391893,Commissioning & Asset Management,Children's & Education Services,103,Supplies and Services,504,Equipment,5023,Revenue,CATERING.FOOD & BEVERAGES
26-NOV-2021,7012465,39.5,ON A ROLL SANDWICH COMPANY,391893,Commissioning & Asset Management,Children's & Education Services,103,Supplies and Services,504,Equipment,5023,Revenue,CATERING.FOOD & BEVERAGES
26-NOV-2021,7012465,39.5,ON A ROLL SANDWICH COMPANY,391893,Commissioning & Asset Management,Children's & Education Services,103,Supplies and Services,504,Equipment,5023,Revenue,CATERING.FOOD & BEVERAGES
26-NOV-2021,7012465,39.5,ON A ROLL SANDWICH COMPANY,391893,Commissioning & Asset Management,Children's & Education Services,103,Supplies and Services,504,Equipment,5023,Revenue,CATERING.FOOD & BEVERAGES
26-NOV-2021,7012465,39.9,ON A ROLL SANDWICH COMPANY,391893,Commissioning & Asset Management,Children's & Education Services,103,Supplies and Services,504,Equipment,5023,Revenue,CATERING.FOOD & BEVERAGES
26-NOV-2021,7012465,40.02,ON A ROLL SANDWICH COMPANY,391893,Commissioning & Asset Management,Children's & Education Services,103,Supplies and Services,504,Equipment,5023,Revenue,CATERING.FOOD & BEVERAGES
26-NOV-2021,7012465,40.12,ON A ROLL SANDWICH COMPANY,391893,Commissioning & Asset Management,Children's & Education Services,103,Supplies and Services,504,Equipment,5023,Revenue,CATERING.FOOD & BEVERAGES
26-NOV-2021,7012465,40.12,ON A ROLL SANDWICH COMPANY,391893,Commissioning & Asset Management,Children's & Education Services,103,Supplies and Services,504,Equipment,5023,Revenue,CATERING.FOOD & BEVERAGES
26-NOV-2021,7012465,40.29,ON A ROLL SANDWICH COMPANY,391893,Commissioning & Asset Management,Children's & Education Services,103,Supplies and Services,504,Equipment,5023,Revenue,CATERING.FOOD & BEVERAGES
26-NOV-2021,7012465,40.8,ON A ROLL SANDWICH COMPANY,391893,Commissioning & Asset Management,Children's & Education Services,103,Supplies and Services,504,Equipment,5023,Revenue,CATERING.FOOD & BEVERAGES
26-NOV-2021,7012465,40.95,ON A ROLL SANDWICH COMPANY,391893,Commissioning & Asset Management,Children's & Education Services,103,Supplies and Services,504,Equipment,5023,Revenue,CATERING.FOOD & BEVERAGES
26-NOV-2021,7012465,40.95,ON A ROLL SANDWICH COMPANY,391893,Commissioning & Asset Management,Children's & Education Services,103,Supplies and Services,504,Equipment,5023,Revenue,CATERING.FOOD & BEVERAGES
26-NOV-2021,7012465,41.23,ON A ROLL SANDWICH COMPANY,391893,Commissioning & Asset Management,Children's & Education Services,103,Supplies and Services,504,Equipment,5023,Revenue,CATERING.FOOD & BEVERAGES
26-NOV-2021,7012465,41.4,ON A ROLL SANDWICH COMPANY,391893,Commissioning & Asset Management,Children's & Education Services,103,Supplies and Services,504,Equipment,5023,Revenue,CATERING.FOOD & BEVERAGES
26-NOV-2021,7012465,41.4,ON A ROLL SANDWICH COMPANY,391893,Commissioning & Asset Management,Children's & Education Services,103,Supplies and Services,504,Equipment,5023,Revenue,CATERING.FOOD & BEVERAGES
26-NOV-2021,7012465,41.4,ON A ROLL SANDWICH COMPANY,391893,Commissioning & Asset Management,Children's & Education Services,103,Supplies and Services,504,Equipment,5023,Revenue,CATERING.FOOD & BEVERAGES
26-NOV-2021,7012465,41.4,ON A ROLL SANDWICH COMPANY,391893,Commissioning & Asset Management,Children's & Education Services,103,Supplies and Services,504,Equipment,5023,Revenue,CATERING.FOOD & BEVERAGES
26-NOV-2021,7012465,41.9,ON A ROLL SANDWICH COMPANY,391893,Commissioning & Asset Management,Children's & Education Services,103,Supplies and Services,504,Equipment,5023,Revenue,CATERING.FOOD & BEVERAGES
26-NOV-2021,7012465,42.3,ON A ROLL SANDWICH COMPANY,391893,Commissioning & Asset Management,Children's & Education Services,103,Supplies and Services,504,Equipment,5023,Revenue,CATERING.FOOD & BEVERAGES
26-NOV-2021,7012465,42.3,ON A ROLL SANDWICH COMPANY,391893,Commissioning & Asset Management,Children's & Education Services,103,Supplies and Services,504,Equipment,5023,Revenue,CATERING.FOOD & BEVERAGES
26-NOV-2021,7012465,42.56,ON A ROLL SANDWICH COMPANY,391893,Commissioning & Asset Management,Children's & Education Services,103,Supplies and Services,504,Equipment,5023,Revenue,CATERING.FOOD & BEVERAGES
26-NOV-2021,7012465,42.56,ON A ROLL SANDWICH COMPANY,391893,Commissioning & Asset Management,Children's & Education Services,103,Supplies and Services,504,Equipment,5023,Revenue,CATERING.FOOD & BEVERAGES
26-NOV-2021,7012465,42.56,ON A ROLL SANDWICH COMPANY,391893,Commissioning & Asset Management,Children's & Education Services,103,Supplies and Services,504,Equipment,5023,Revenue,CATERING.FOOD & BEVERAGES
26-NOV-2021,7012465,42.78,ON A ROLL SANDWICH COMPANY,391893,Commissioning & Asset Management,Children's & Education Services,103,Supplies and Services,504,Equipment,5023,Revenue,CATERING.FOOD & BEVERAGES
26-NOV-2021,7012465,42.78,ON A ROLL SANDWICH COMPANY,391893,Commissioning & Asset Management,Children's & Education Services,103,Supplies and Services,504,Equipment,5023,Revenue,CATERING.FOOD & BEVERAGES
26-NOV-2021,7012465,43.1,ON A ROLL SANDWICH COMPANY,391893,Commissioning & Asset Management,Children's & Education Services,103,Supplies and Services,504,Equipment,5023,Revenue,CATERING.FOOD & BEVERAGES
26-NOV-2021,7012465,43.2,ON A ROLL SANDWICH COMPANY,391893,Commissioning & Asset Management,Children's & Education Services,103,Supplies and Services,504,Equipment,5023,Revenue,CATERING.FOOD & BEVERAGES
26-NOV-2021,7012465,43.45,ON A ROLL SANDWICH COMPANY,391893,Commissioning & Asset Management,Children's & Education Services,103,Supplies and Services,504,Equipment,5023,Revenue,CATERING.FOOD & BEVERAGES
26-NOV-2021,7012465,43.45,ON A ROLL SANDWICH COMPANY,391893,Commissioning & Asset Management,Children's & Education Services,103,Supplies and Services,504,Equipment,5023,Revenue,CATERING.FOOD & BEVERAGES
26-NOV-2021,7012465,43.45,ON A ROLL SANDWICH COMPANY,391893,Commissioning & Asset Management,Children's & Education Services,103,Supplies and Services,504,Equipment,5023,Revenue,CATERING.FOOD & BEVERAGES
26-NOV-2021,7012465,43.68,ON A ROLL SANDWICH COMPANY,391893,Commissioning & Asset Management,Children's & Education Services,103,Supplies and Services,504,Equipment,5023,Revenue,CATERING.FOOD & BEVERAGES
26-NOV-2021,7012465,43.68,ON A ROLL SANDWICH COMPANY,391893,Commissioning & Asset Management,Children's & Education Services,103,Supplies and Services,504,Equipment,5023,Revenue,CATERING.FOOD & BEVERAGES
26-NOV-2021,7012465,45,ON A ROLL SANDWICH COMPANY,391893,Commissioning & Asset Management,Children's & Education Services,103,Supplies and Services,504,Equipment,5023,Revenue,CATERING.FOOD & BEVERAGES
26-NOV-2021,7012465,45.2,ON A ROLL SANDWICH COMPANY,391893,Commissioning & Asset Management,Children's & Education Services,103,Supplies and Services,504,Equipment,5023,Revenue,CATERING.FOOD & BEVERAGES
26-NOV-2021,7012465,45.2,ON A ROLL SANDWICH COMPANY,391893,Commissioning & Asset Management,Children's & Education Services,103,Supplies and Services,504,Equipment,5023,Revenue,CATERING.FOOD & BEVERAGES
26-NOV-2021,7012465,45.36,ON A ROLL SANDWICH COMPANY,391893,Commissioning & Asset Management,Children's & Education Services,103,Supplies and Services,504,Equipment,5023,Revenue,CATERING.FOOD & BEVERAGES
26-NOV-2021,7012465,45.36,ON A ROLL SANDWICH COMPANY,391893,Commissioning & Asset Management,Children's & Education Services,103,Supplies and Services,504,Equipment,5023,Revenue,CATERING.FOOD & BEVERAGES
26-NOV-2021,7012465,45.5,ON A ROLL SANDWICH COMPANY,391893,Commissioning & Asset Management,Children's & Education Services,103,Supplies and Services,504,Equipment,5023,Revenue,CATERING.FOOD & BEVERAGES
26-NOV-2021,7012465,46.08,ON A ROLL SANDWICH COMPANY,391893,Commissioning & Asset Management,Children's & Education Services,103,Supplies and Services,504,Equipment,5023,Revenue,CATERING.FOOD & BEVERAGES
26-NOV-2021,7012465,47.4,ON A ROLL SANDWICH COMPANY,391893,Commissioning & Asset Management,Children's & Education Services,103,Supplies and Services,504,Equipment,5023,Revenue,CATERING.FOOD & BEVERAGES
26-NOV-2021,7012465,47.4,ON A ROLL SANDWICH COMPANY,391893,Commissioning & Asset Management,Children's & Education Services,103,Supplies and Services,504,Equipment,5023,Revenue,CATERING.FOOD & BEVERAGES
26-NOV-2021,7012465,47.4,ON A ROLL SANDWICH COMPANY,391893,Commissioning & Asset Management,Children's & Education Services,103,Supplies and Services,504,Equipment,5023,Revenue,CATERING.FOOD & BEVERAGES
26-NOV-2021,7012465,47.4,ON A ROLL SANDWICH COMPANY,391893,Commissioning & Asset Management,Children's & Education Services,103,Supplies and Services,504,Equipment,5023,Revenue,CATERING.FOOD & BEVERAGES
26-NOV-2021,7012465,47.4,ON A ROLL SANDWICH COMPANY,391893,Commissioning & Asset Management,Children's & Education Services,103,Supplies and Services,504,Equipment,5023,Revenue,CATERING.FOOD & BEVERAGES
26-NOV-2021,7012465,47.4,ON A ROLL SANDWICH COMPANY,391893,Commissioning & Asset Management,Children's & Education Services,103,Supplies and Services,504,Equipment,5023,Revenue,CATERING.FOOD & BEVERAGES
26-NOV-2021,7012465,48.96,ON A ROLL SANDWICH COMPANY,391893,Commissioning & Asset Management,Children's & Education Services,103,Supplies and Services,504,Equipment,5023,Revenue,CATERING.FOOD & BEVERAGES
26-NOV-2021,7012465,48.96,ON A ROLL SANDWICH COMPANY,391893,Commissioning & Asset Management,Children's & Education Services,103,Supplies and Services,504,Equipment,5023,Revenue,CATERING.FOOD & BEVERAGES
26-NOV-2021,7012465,48.98,ON A ROLL SANDWICH COMPANY,391893,Commissioning & Asset Management,Children's & Education Services,103,Supplies and Services,504,Equipment,5023,Revenue,CATERING.FOOD & BEVERAGES
26-NOV-2021,7012465,49.68,ON A ROLL SANDWICH COMPANY,391893,Commissioning & Asset Management,Children's & Education Services,103,Supplies and Services,504,Equipment,5023,Revenue,CATERING.FOOD & BEVERAGES
26-NOV-2021,7012465,50,ON A ROLL SANDWICH COMPANY,391893,Commissioning & Asset Management,Children's & Education Services,103,Supplies and Services,504,Equipment,5023,Revenue,CATERING.FOOD & BEVERAGES
26-NOV-2021,7012465,50.96,ON A ROLL SANDWICH COMPANY,391893,Commissioning & Asset Management,Children's & Education Services,103,Supplies and Services,504,Equipment,5023,Revenue,CATERING.FOOD & BEVERAGES
26-NOV-2021,7012465,51.35,ON A ROLL SANDWICH COMPANY,391893,Commissioning & Asset Management,Children's & Education Services,103,Supplies and Services,504,Equipment,5023,Revenue,CATERING.FOOD & BEVERAGES
26-NOV-2021,7012465,51.35,ON A ROLL SANDWICH COMPANY,391893,Commissioning & Asset Management,Children's & Education Services,103,Supplies and Services,504,Equipment,5023,Revenue,CATERING.FOOD & BEVERAGES
26-NOV-2021,7012465,51.84,ON A ROLL SANDWICH COMPANY,391893,Commissioning & Asset Management,Children's & Education Services,103,Supplies and Services,504,Equipment,5023,Revenue,CATERING.FOOD & BEVERAGES
26-NOV-2021,7012465,51.84,ON A ROLL SANDWICH COMPANY,391893,Commissioning & Asset Management,Children's & Education Services,103,Supplies and Services,504,Equipment,5023,Revenue,CATERING.FOOD & BEVERAGES
26-NOV-2021,7012465,51.87,ON A ROLL SANDWICH COMPANY,391893,Commissioning & Asset Management,Children's & Education Services,103,Supplies and Services,504,Equipment,5023,Revenue,CATERING.FOOD & BEVERAGES
26-NOV-2021,7012465,53.76,ON A ROLL SANDWICH COMPANY,391893,Commissioning & Asset Management,Children's & Education Services,103,Supplies and Services,504,Equipment,5023,Revenue,CATERING.FOOD & BEVERAGES
26-NOV-2021,7012465,53.82,ON A ROLL SANDWICH COMPANY,391893,Commissioning & Asset Management,Children's & Education Services,103,Supplies and Services,504,Equipment,5023,Revenue,CATERING.FOOD & BEVERAGES
26-NOV-2021,7012465,54.51,ON A ROLL SANDWICH COMPANY,391893,Commissioning & Asset Management,Children's & Education Services,103,Supplies and Services,504,Equipment,5023,Revenue,CATERING.FOOD & BEVERAGES
26-NOV-2021,7012465,54.6,ON A ROLL SANDWICH COMPANY,391893,Commissioning & Asset Management,Children's & Education Services,103,Supplies and Services,504,Equipment,5023,Revenue,CATERING.FOOD & BEVERAGES
26-NOV-2021,7012465,55.51,ON A ROLL SANDWICH COMPANY,391893,Commissioning & Asset Management,Children's & Education Services,103,Supplies and Services,504,Equipment,5023,Revenue,CATERING.FOOD & BEVERAGES
26-NOV-2021,7012465,56.42,ON A ROLL SANDWICH COMPANY,391893,Commissioning & Asset Management,Children's & Education Services,103,Supplies and Services,504,Equipment,5023,Revenue,CATERING.FOOD & BEVERAGES
26-NOV-2021,7012465,56.5,ON A ROLL SANDWICH COMPANY,391893,Commissioning & Asset Management,Children's & Education Services,103,Supplies and Services,504,Equipment,5023,Revenue,CATERING.FOOD & BEVERAGES
26-NOV-2021,7012465,56.5,ON A ROLL SANDWICH COMPANY,391893,Commissioning & Asset Management,Children's & Education Services,103,Supplies and Services,504,Equipment,5023,Revenue,CATERING.FOOD & BEVERAGES
26-NOV-2021,7012465,56.5,ON A ROLL SANDWICH COMPANY,391893,Commissioning & Asset Management,Children's & Education Services,103,Supplies and Services,504,Equipment,5023,Revenue,CATERING.FOOD & BEVERAGES
26-NOV-2021,7012465,56.88,ON A ROLL SANDWICH COMPANY,391893,Commissioning & Asset Management,Children's & Education Services,103,Supplies and Services,504,Equipment,5023,Revenue,CATERING.FOOD & BEVERAGES
26-NOV-2021,7012465,58.88,ON A ROLL SANDWICH COMPANY,391893,Commissioning & Asset Management,Children's & Education Services,103,Supplies and Services,504,Equipment,5023,Revenue,CATERING.FOOD & BEVERAGES
26-NOV-2021,7012465,59.15,ON A ROLL SANDWICH COMPANY,391893,Commissioning & Asset Management,Children's & Education Services,103,Supplies and Services,504,Equipment,5023,Revenue,CATERING.FOOD & BEVERAGES
26-NOV-2021,7012465,59.15,ON A ROLL SANDWICH COMPANY,391893,Commissioning & Asset Management,Children's & Education Services,103,Supplies and Services,504,Equipment,5023,Revenue,CATERING.FOOD & BEVERAGES
26-NOV-2021,7012465,59.25,ON A ROLL SANDWICH COMPANY,391893,Commissioning & Asset Management,Children's & Education Services,103,Supplies and Services,504,Equipment,5023,Revenue,CATERING.FOOD & BEVERAGES
26-NOV-2021,7012465,63.2,ON A ROLL SANDWICH COMPANY,391893,Commissioning & Asset Management,Children's & Education Services,103,Supplies and Services,504,Equipment,5023,Revenue,CATERING.FOOD & BEVERAGES
26-NOV-2021,7012465,63.2,ON A ROLL SANDWICH COMPANY,391893,Commissioning & Asset Management,Children's & Education Services,103,Supplies and Services,504,Equipment,5023,Revenue,CATERING.FOOD & BEVERAGES
26-NOV-2021,7012465,63.2,ON A ROLL SANDWICH COMPANY,391893,Commissioning & Asset Management,Children's & Education Services,103,Supplies and Services,504,Equipment,5023,Revenue,CATERING.FOOD & BEVERAGES
26-NOV-2021,7012465,63.36,ON A ROLL SANDWICH COMPANY,391893,Commissioning & Asset Management,Children's & Education Services,103,Supplies and Services,504,Equipment,5023,Revenue,CATERING.FOOD & BEVERAGES
